date,department/service,beneficiary,amount,summary of purpose,category,transaction number,SAP vendor number
01.07.2023,ADULT SOCIAL CARE,BRITISH GAS,750.48,CASTLEMEAD,ELECTRICITY,5902586431,1000054825
01.07.2023,ADULT SOCIAL CARE,LONDON CARE LTD,"45,989.79",EXTRA CARE CONTRACT,HOMECARE - C&V,5902586291,1000003398
01.07.2023,ADULT SOCIAL CARE,LONDON CARE LTD,"58,449.33",EXTRA CARE CONTRACT,HOMECARE - C&V,5902585896,1000003398
01.07.2023,CHILDREN AND FAMILIES,KENT COUNTY COUNCIL - LASER,782.07,CENTRAL SUPPORT,GAS,5902585954,1000012926
01.07.2023,CORPORATE FACILITIES MANAGEMENT,KENT COUNTY COUNCIL - LASER,988.42,BOURNEMOUTH GROVE,GAS,5902585909,1000012926
01.07.2023,ENVIRONMENT AND LEISURE,F M CONWAY LTD,"21,269.45",CAPITAL PS (LEISURE),CONSTRUCTION,2103711723,4001384
01.07.2023,ENVIRONMENT AND LEISURE,F M CONWAY LTD,"75,000.00",CAPITAL PS (LEISURE),CONSTRUCTION FEES  - EXTERNAL,2103711726,4001384
01.07.2023,ENVIRONMENT AND LEISURE,RH WROUGHT IRON,"3,000.00",CAPITAL PS (LEISURE),CONSTRUCTION MAIN CONTRACT -CERTIFICATED,2103711729,3000000680
01.07.2023,EXTERNAL AFFAIRS,DENMAUR INDEPENDENT PAPERS LTD,"12,598.96",SOUTHWARK LIFE,PROFESSIONAL FEES,5902586544,1000064794
01.07.2023,HOUSING HRA,BANKSIDE OPEN SPACES TRADING LTD,"11,796.23",CAPITAL PS (HRA),CONSTRUCTION FEES,5902586698,1000069665
01.07.2023,HOUSING HRA,CALFORD SEADEN (HEALTH & SAFETY) LTD,660,CAPITAL PS (HRA),CONSTRUCTION FEES  - EXTERNAL,5902586009,1097125
01.07.2023,HOUSING HRA,LEWIS HUBBARD ENGINEERING LIMITED,"8,000.00",CAPITAL PS (HRA),CONSTRUCTION FEES  - EXTERNAL,5902585950,1000089675
01.07.2023,HOUSING HRA,CALFORD SEADEN LLP,"1,550.00",CAPITAL PS (HRA),CONSTRUCTION FEES - EMPLOYERS AGENT,5902587083,1061592
01.07.2023,HOUSING HRA,CALFORD SEADEN LLP,"6,200.00",CAPITAL PS (HRA),CONSTRUCTION FEES - EMPLOYERS AGENT,5902587066,1061592
01.07.2023,HOUSING HRA,CALFORD SEADEN LLP,"6,210.00",CAPITAL PS (HRA),CONSTRUCTION FEES - EMPLOYERS AGENT,5902585977,1061592
01.07.2023,HOUSING HRA,FAITHFUL & GOULD,"25,328.30",CAPITAL PS (HRA),CONSTRUCTION FEES - EMPLOYERS AGENT,5902585859,1000061390
01.07.2023,HOUSING HRA,NIBLOCK (BUILDERS) LTD,"145,151.05",CAPITAL PS (HRA),CONSTRUCTION MAIN CONTRACT -CERTIFICATED,2103714137,3000000235
01.07.2023,HOUSING HRA,HILL PARTNERSHIP LTD,"142,933.35",CAPITAL PS (HRA),CONSTRUCTION MAIN CONTRACT -CERTIFICATED,2103711727,3000002185
01.07.2023,HOUSING HRA,BY DEVELOPMENT LTD,"2,873,910.55",CAPITAL PS (HRA),CONSTRUCTION MAIN CONTRACT -CERTIFICATED,2103711728,3000002255
01.07.2023,LEISURE DIRECTORATE,KENT COUNTY COUNCIL - LASER,"1,163.94",CAMBERWELL LIBRARY,GAS,5902586976,1000012926
01.07.2023,LEISURE DIRECTORATE,KENT COUNTY COUNCIL - LASER,"4,839.23",CANADA WATER LIBRARY,GAS,5902586957,1000012926
01.07.2023,LEISURE DIRECTORATE,BANKSIDE OPEN SPACES TRUST,"5,714.00",CULTURAL CELEBRATIONS FUND,GRANTS,5902586418,1000018290
01.07.2023,LEISURE DIRECTORATE,KENT COUNTY COUNCIL - LASER,"1,484.60",DULWICH LIBRARY,GAS,5902586974,1000012926
01.07.2023,LEISURE DIRECTORATE,KENT COUNTY COUNCIL - LASER,391.72,PLAY NORTH,GAS,5902585900,1000012926
01.07.2023,LEISURE DIRECTORATE,KENT COUNTY COUNCIL - LASER,322.85,PLAY SOUTH,GAS,5902585933,1000012926
01.07.2023,LEISURE DIRECTORATE,A.G.A. GROUP CONSULTANCY LIMITED,"1,288.00",SOUTHWARK AREA TEAM,GROUNDS MAINTENANCE,5902586740,1000088660
01.07.2023,PLANNING & GROWTH,KENT COUNTY COUNCIL - LASER,894.53,LBS SOJOURNER TRUTH COMMUNITY CENTRE,GAS,5902586356,1000012926
01.07.2023,RESIDENT SERVICES HGF,DINERS CLUB INTERNATIONAL,516.69,HOUSING OPTIONS,PUBLIC TRANSPORT,5902586080,1000084943
01.07.2023,RESIDENT SERVICES HGF,BFS GROUP LTD T/A BIDFOOD,380.16,JOE RICHARDS HOSTEL,CATERING MATERIALS & SUPPLIES,5902586420,1000089816
02.07.2023,ADULT SOCIAL CARE,VOICEABILITY ADVOCACY,"30,750.00",INDEPENDENT MC ADVOCACY,ADVOCACY,5902586134,1000064254
02.07.2023,CENTRAL FUNCTIONS,KALMARS COMMERCIAL LTD,"2,000.00",COMMERCIAL PROPERTIES,PROFESSIONAL FEES,5902586598,1000081844
02.07.2023,CHILDREN AND FAMILIES,RICHMOND MUSIC TRUST LTD,268,ADOPTION SUPP FUND 3,EXTERNAL AGENCIES AND BODIES,5902586060,1000085665
02.07.2023,CHILDREN AND FAMILIES,RICHMOND MUSIC TRUST LTD,268,ADOPTION SUPP FUND 3,EXTERNAL AGENCIES AND BODIES,5902586079,1000085665
02.07.2023,CHILDREN AND FAMILIES,RICHMOND MUSIC TRUST LTD,408,ADOPTION SUPP FUND 3,EXTERNAL AGENCIES AND BODIES,5902586642,1000085665
02.07.2023,CHILDREN AND FAMILIES,ROUNDABOUT,510,ADOPTION SUPP FUND 3,EXTERNAL AGENCIES AND BODIES,5902586179,1000089443
02.07.2023,DIRECTORATE,CAMPBELL TICKELL LTD,"3,302.34",DIRECTOR OF H&M,CONSULTANTS SERVICES,5902586559,1000052505
02.07.2023,DIRECTORATE,EMMA MARINOS COACHING LIMITED,"2,750.00",DIRECTOR OF H&M,CONSULTANTS SERVICES,5902586462,1000086554
02.07.2023,ENVIRONMENT AND LEISURE,F M CONWAY LTD,"36,550.27",CAPITAL PS (LEISURE),CONSTR'N SUB CONTRACT - NON CERTIFICATED,2103711736,4001384
02.07.2023,ENVIRONMENT AND LEISURE,F M CONWAY LTD,"39,915.99",CAPITAL PS (LEISURE),CONSTR'N SUB CONTRACT - NON CERTIFICATED,2103712117,4001384
02.07.2023,ENVIRONMENT AND LEISURE,F M CONWAY LTD,"107,189.56",CAPITAL PS (LEISURE),CONSTR'N SUB CONTRACT - NON CERTIFICATED,2103711782,4001384
02.07.2023,ENVIRONMENT AND LEISURE,F M CONWAY LTD,"41,376.24",CAPITAL PS (LEISURE),CONSTRUCTION,2103711735,4001384
02.07.2023,ENVIRONMENT AND LEISURE,F M CONWAY LTD,"66,787.00",CAPITAL PS (LEISURE),CONSTRUCTION FEES,2103711785,4001384
02.07.2023,ENVIRONMENT AND LEISURE,BCS (ELECTRICAL & BUILDING SERVICES LTD),"1,209.09",CAPITAL PS (LEISURE),CONSTRUCTION MAIN CONTRACT -CERTIFICATED,5902586612,1000062321
02.07.2023,ENVIRONMENT AND LEISURE,ALEXANDRA ROSE CHARITY,"25,000.00",HEALTHY WEIGHT,EXTERNAL AGENCIES AND BODIES,5902587027,1000089616
02.07.2023,ENVIRONMENT DIRECTORATE,GRADKO INTERNATIONAL LTD,312.85,ENVIRONMENTAL PROTECTION,EQUIPMENT PURCHASE & REPAIR,5902586390,1000068330
02.07.2023,ENVIRONMENT DIRECTORATE,F M CONWAY LTD,"2,508.44",HIGHWAY MAINTENANCE OVERHEADS,HIGHWAYS TERM CONTRACT,2103711787,4001384
02.07.2023,ENVIRONMENT DIRECTORATE,MSI MEDIA LTD.,"16,320.00",RESIDENTIAL SERVICES,MARKETING & PUBLICITY SERVICES,5902586053,1000003237
02.07.2023,HOUSING GENERAL FUND,UNIFIED CONSULTANCY LTD,"59,670.00",CAPITAL PS (HOUSING GF),ICT ACQUISITION,5902586044,1000081827
02.07.2023,HOUSING HRA,PULSE ASSOCIATES LTD (T/A PULSE CONSULT),"14,225.00",CAPITAL PS (HRA),CONSTRUCTION FEES,5902586314,1000087233
02.07.2023,HOUSING HRA,ARJ CONSTRUCTION LTD,"12,948.20",CAPITAL PS (HRA),CONSTRUCTION MAIN CONTRACT,2103711784,3000002232
02.07.2023,HOUSING HRA,ARJ CONSTRUCTION LTD,"651,062.07",CAPITAL PS (HRA),CONSTRUCTION MAIN CONTRACT,2103711784,3000002232
02.07.2023,LEISURE DIRECTORATE,A B KEY LLP,310,SDM BUDGET,EQUIPMENT PURCHASE & REPAIR,5902586613,1000036348
02.07.2023,LEISURE DIRECTORATE,CONSTELLIA PUBLIC LIMITED,"9,455.62",TREES TERM CONTRACT,TREE MAINTENANCE,5902586315,1000088137
02.07.2023,PLANNING & GROWTH,LIVE-IN CARETAKERS LTD,"2,408.00",22 SHAND STREET,SECURITY SERVICES,5902586469,1000088236
03.07.2023,ASSET MANAGEMENT,LPS CONSULTING (LONDON) LIMITED,"11,900.00",DIRECTOR OF ASSET MANAGEMENT,PROFESSIONAL FEES,5902586579,1000084208
03.07.2023,CENTRAL FUNCTIONS,BRESLIN CONSTRUCTION LTD,"1,280.00",COMMERCIAL PROPERTIES,BUILDING R&M,2103711738,3000001948
03.07.2023,CENTRAL FUNCTIONS,BRESLIN CONSTRUCTION LTD,"3,800.00",COMMERCIAL PROPERTIES,BUILDING R&M,2103711788,3000001948
03.07.2023,CHILDREN AND FAMILIES,FAMILY FUTURES CIC,560,ADOPTION SUPP FUND 3,EXTERNAL AGENCIES AND BODIES,5902586402,1000027893
03.07.2023,CHILDREN AND FAMILIES,REDACTED PERSONAL DATA,885,ADOPTION SUPP FUND 3,EXTERNAL AGENCIES AND BODIES,REDACTED,REDACTED
03.07.2023,COMMISSIONING & CENTRAL,BRESLIN CONSTRUCTION LTD,"3,600.00",COMMISSIONING DIRECTORATE,SECURITY EQUIPMENT F&F,5902586320,1000078031
03.07.2023,ENVIRONMENT AND LEISURE,F M CONWAY LTD,"36,500.00",CAPITAL PS (LEISURE),CONSTRUCTION,2103711734,4001384
03.07.2023,ENVIRONMENT AND LEISURE,THE PLAY INSPECTION COMPANY LTD,395,CAPITAL PS (LEISURE),CONSTRUCTION FEES  - EXTERNAL,5902586554,1000072456
03.07.2023,EXTERNAL AFFAIRS,BETA DISTRIBUTION (SOUTH) LTD,"13,215.50",SOUTHWARK LIFE,PROFESSIONAL FEES,5902586923,1000044844
03.07.2023,HOUSING HRA,SILVER DCC LTD,538.97,CAPITAL PS (HRA),CONSTRUCTION FEES  - EXTERNAL,5902586581,1000087546
03.07.2023,HOUSING HRA,SILVER DCC LTD,"1,181.19",CAPITAL PS (HRA),CONSTRUCTION FEES  - EXTERNAL,5902587069,1000087546
03.07.2023,HOUSING HRA,SILVER DCC LTD,"1,225.90",CAPITAL PS (HRA),CONSTRUCTION FEES  - EXTERNAL,5902586542,1000087546
03.07.2023,HOUSING HRA,SILVER DCC LTD,"1,315.17",CAPITAL PS (HRA),CONSTRUCTION FEES  - EXTERNAL,5902586553,1000087546
03.07.2023,HOUSING HRA,APW SERVICING LTD,520,CAPITAL PS (HRA),CONSTRUCTION FEES  - EXTERNAL,5902586806,1000087916
03.07.2023,LEISURE DIRECTORATE,QUADRON SERVICES LIMITED,347.04,ACCOMMODATION,PLANNED MAINTENANCE,5902586526,1000066528
03.07.2023,LEISURE DIRECTORATE,SALIX MECHANICAL SERVICES LLP,"3,712.00",CAMBERWELL LEISURE CENTRE,PLANNED MAINTENANCE,5902586386,1000088961
03.07.2023,LEISURE DIRECTORATE,SALIX MECHANICAL SERVICES LLP,"13,017.00",CAMBERWELL LEISURE CENTRE,PLANNED MAINTENANCE,5902586386,1000088961
03.07.2023,LEISURE DIRECTORATE,SALIX MECHANICAL SERVICES LLP,845,GMH GERALDINE MARY HARMSWORTH,PLANNED MAINTENANCE,5902586489,1000088961
03.07.2023,LEISURE DIRECTORATE,SALIX MECHANICAL SERVICES LLP,"2,962.00",GMH GERALDINE MARY HARMSWORTH,PLANNED MAINTENANCE,5902586489,1000088961
03.07.2023,LEISURE DIRECTORATE,WF EDUCATION GROUP LIMITED,"25,267.26",LIBRARIES DEVELOPMENT,EQUIPMENT PURCHASE & REPAIR,5902587030,1000086286
03.07.2023,LEISURE DIRECTORATE,SALIX MECHANICAL SERVICES LLP,"5,252.00",PECKHAM PULSE LEISURE CENTRE,PLANNED MAINTENANCE,5902586397,1000088961
03.07.2023,LEISURE DIRECTORATE,SALIX MECHANICAL SERVICES LLP,"18,416.00",PECKHAM PULSE LEISURE CENTRE,PLANNED MAINTENANCE,5902586397,1000088961
03.07.2023,LEISURE DIRECTORATE,SALIX MECHANICAL SERVICES LLP,"2,383.00",SEVEN ISLANDS LEISURE CENTRE,PLANNED MAINTENANCE,5902586492,1000088961
03.07.2023,LEISURE DIRECTORATE,SALIX MECHANICAL SERVICES LLP,"8,354.00",SEVEN ISLANDS LEISURE CENTRE,PLANNED MAINTENANCE,5902586492,1000088961
03.07.2023,LEISURE DIRECTORATE,SALIX MECHANICAL SERVICES LLP,"2,199.00",SURREY DOCKS FITNESS & WATERSPORTS CENTR,PLANNED MAINTENANCE,5902586385,1000088961
03.07.2023,LEISURE DIRECTORATE,SALIX MECHANICAL SERVICES LLP,"7,710.00",SURREY DOCKS FITNESS & WATERSPORTS CENTR,PLANNED MAINTENANCE,5902586385,1000088961
03.07.2023,LEISURE DIRECTORATE,SALIX MECHANICAL SERVICES LLP,"3,956.00",THE CASTLE CENTRE,PLANNED MAINTENANCE,5902586388,1000088961
03.07.2023,LEISURE DIRECTORATE,SALIX MECHANICAL SERVICES LLP,"13,869.00",THE CASTLE CENTRE,PLANNED MAINTENANCE,5902586388,1000088961
03.07.2023,LEISURE DIRECTORATE,SMART PLATFORM RENTAL LTD,625,TREES � IN-HOUSE TEAM,HIRED VEHICLES,5902586483,1000082961
03.07.2023,RESIDENT SERVICES,NEWINGTON BUTTS MANAGEMENT LTD,"93,679.98",PRIVATE SERVICE CHARGES,SERVICE CHARGES,5902586615,1000081298
04.07.2023,ADULT SOCIAL CARE,ALCOHOL RESEARCH UK,490,ASC PRACTICE EDUCATION,TRAINING,5902587307,1000089939
04.07.2023,ADULT SOCIAL CARE,KENT HOMEFINDING & FOSTERING LTD,"5,000.10",DISABILITIES LAC,EXTERNAL AGENCIES AND BODIES,2103717808,1000033978
04.07.2023,ADULT SOCIAL CARE,BROADLANDS HALL LIMITED,"9,940.00",DISABILITIES LAC,EXTERNAL AGENCIES AND BODIES,2103717770,1000084303
04.07.2023,ADULT SOCIAL CARE,DAISYBROOK LTD,257.15,DISABILITIES LAC,OTHER PAYMENTS FOR CLIENTS,2103717756,1000088357
04.07.2023,ADULT SOCIAL CARE,BROADLANDS HALL LIMITED,"7,900.00",DISABILITIES LAC,RESIDENTIAL CARE,2103717769,1000084303
04.07.2023,ADULT SOCIAL CARE,DAISYBROOK LTD,"15,814.28",DISABILITIES LAC,RESIDENTIAL CARE,2103717757,1000088357
04.07.2023,ADULT SOCIAL CARE,MEDACS HOMECARE,346,SPECIALIST CARE,SECTION 17 PAYMENTS TO AGENCIES/CARERS,2103717746,11287415
04.07.2023,ADULT SOCIAL CARE,METRO HOMECARE LTD,792,SPECIALIST CARE,SECTION 17 PAYMENTS TO AGENCIES/CARERS,2103717751,1000070695
04.07.2023,ADULT SOCIAL CARE,METRO HOMECARE LTD,"1,848.00",SPECIALIST CARE,SECTION 17 PAYMENTS TO AGENCIES/CARERS,2103717750,1000070695
04.07.2023,ADULT SOCIAL CARE,ELDERS SAFE HANDS PLUS LTD,970.92,SPECIALIST CARE,SECTION 17 PAYMENTS TO AGENCIES/CARERS,2103717754,1000087058
04.07.2023,ADULT SOCIAL CARE,ELDERS SAFE HANDS PLUS LTD,"31,716.50",SPECIALIST CARE,SECTION 17 PAYMENTS TO AGENCIES/CARERS,2103717748,1000087058
04.07.2023,ASSET MANAGEMENT,ANTONY HODARI  SOLICITORS,300,DISREPAIR,PAYMENTS FOR LEGAL SERVICES,2103717357,1000031040
04.07.2023,ASSET MANAGEMENT,ANTONY HODARI  SOLICITORS,333.33,DISREPAIR,PAYMENTS FOR LEGAL SERVICES,2103717352,1000031040
04.07.2023,ASSET MANAGEMENT,ANTONY HODARI  SOLICITORS,833.33,DISREPAIR,PAYMENTS FOR LEGAL SERVICES,2103717339,1000031040
04.07.2023,ASSET MANAGEMENT,ANTONY HODARI  SOLICITORS,"1,500.00",DISREPAIR,PAYMENTS FOR LEGAL SERVICES,2103717366,1000031040
04.07.2023,ASSET MANAGEMENT,ANTONY HODARI  SOLICITORS,"2,083.33",DISREPAIR,PAYMENTS FOR LEGAL SERVICES,2103717350,1000031040
04.07.2023,ASSET MANAGEMENT,ANTONY HODARI  SOLICITORS,"3,541.67",DISREPAIR,PAYMENTS FOR LEGAL SERVICES,2103717345,1000031040
04.07.2023,ASSET MANAGEMENT,ANTONY HODARI  SOLICITORS,"3,666.67",DISREPAIR,PAYMENTS FOR LEGAL SERVICES,2103717361,1000031040
04.07.2023,ASSET MANAGEMENT,ANTONY HODARI  SOLICITORS,"3,750.00",DISREPAIR,PAYMENTS FOR LEGAL SERVICES,2103717344,1000031040
04.07.2023,ASSET MANAGEMENT,ANTONY HODARI  SOLICITORS,"4,166.67",DISREPAIR,PAYMENTS FOR LEGAL SERVICES,2103717341,1000031040
04.07.2023,ASSET MANAGEMENT,CHESHIRE ESTATE AND LEGAL LTD,"1,250.00",DISREPAIR,PAYMENTS FOR LEGAL SERVICES,2103717353,1000081908
04.07.2023,ASSET MANAGEMENT,CHESHIRE ESTATE AND LEGAL LTD,"2,500.00",DISREPAIR,PAYMENTS FOR LEGAL SERVICES,2103717338,1000081908
04.07.2023,ASSET MANAGEMENT,BROWN TURNER ROSS SOLICITORS,"4,916.67",DISREPAIR,PAYMENTS FOR LEGAL SERVICES,2103717367,1000082981
04.07.2023,ASSET MANAGEMENT,BARNES SOLICITORS LLP,"3,625.00",DISREPAIR,PAYMENTS FOR LEGAL SERVICES,2103717346,1000083820
04.07.2023,ASSET MANAGEMENT,BOND TURNER  SOLICITORS,479.17,DISREPAIR,PAYMENTS FOR LEGAL SERVICES,2103717351,1000085362
04.07.2023,ASSET MANAGEMENT,BOND TURNER  SOLICITORS,833.33,DISREPAIR,PAYMENTS FOR LEGAL SERVICES,2103717340,1000085362
04.07.2023,ASSET MANAGEMENT,BOND TURNER  SOLICITORS,"1,000.00",DISREPAIR,PAYMENTS FOR LEGAL SERVICES,2103717362,1000085362
04.07.2023,ASSET MANAGEMENT,BOND TURNER  SOLICITORS,"1,250.00",DISREPAIR,PAYMENTS FOR LEGAL SERVICES,2103717349,1000085362
04.07.2023,ASSET MANAGEMENT,BOND TURNER  SOLICITORS,"5,416.67",DISREPAIR,PAYMENTS FOR LEGAL SERVICES,2103717355,1000085362
04.07.2023,ASSET MANAGEMENT,SATCHELL MORAN SOLICITORS LTD,291.67,DISREPAIR,PAYMENTS FOR LEGAL SERVICES,2103717359,1000087281
04.07.2023,ASSET MANAGEMENT,SATCHELL MORAN SOLICITORS LTD,500,DISREPAIR,PAYMENTS FOR LEGAL SERVICES,2103717360,1000087281
04.07.2023,ASSET MANAGEMENT,SATCHELL MORAN SOLICITORS LTD,"1,250.00",DISREPAIR,PAYMENTS FOR LEGAL SERVICES,2103717343,1000087281
04.07.2023,ASSET MANAGEMENT,COYNE LEARMONTH (CROSBY) LIMITED,"1,816.67",DISREPAIR,PAYMENTS FOR LEGAL SERVICES,2103717342,1000088221
04.07.2023,ASSET MANAGEMENT,MJW LAW  LIMITED,"3,750.00",DISREPAIR,PAYMENTS FOR LEGAL SERVICES,2103717358,1000089485
04.07.2023,ASSET MANAGEMENT,YOUR LEGAL COSTS LIMITED,"5,166.67",DISREPAIR,PAYMENTS FOR LEGAL SERVICES,2103717365,1000089552
04.07.2023,ASSET MANAGEMENT,RJM LAW  LIMITED,"4,583.33",DISREPAIR,PAYMENTS FOR LEGAL SERVICES,2103717354,1000089664
04.07.2023,ASSET MANAGEMENT,HATTONS SOLICITORS LLP,"3,562.50",DISREPAIR,PAYMENTS FOR LEGAL SERVICES,2103717364,1000089775
04.07.2023,ASSET MANAGEMENT,METRO DIGITAL TELEVISION LTD,803.76,ENG CONTRACTS (NORTH),TV AERIALS R&M,5902587280,1000070713
04.07.2023,ASSET MANAGEMENT,SEDGWICK INTERNATIONAL UK,"1,246.96",MAJOR REPAIRS,BUILDING R&M,5902587320,1000082289
04.07.2023,CHILDREN AND FAMILIES,REDACTED PERSONAL DATA,"1,210.00",ADOPTION SUPP FUND 2,EXTERNAL AGENCIES AND BODIES,REDACTED,REDACTED
04.07.2023,CHILDREN AND FAMILIES,SHURGARD UK LTD,544,CENTRAL SUPPORT,OFFICE EXPENSES,5902586990,1000082132
04.07.2023,CHILDREN AND FAMILIES,SHURGARD UK LTD,544,CENTRAL SUPPORT,OFFICE EXPENSES,5902587055,1000082132
04.07.2023,CHILDREN AND FAMILIES,1ST PLACE CHILDREN & PARENTS CENTRE,"105,116.00",CHILD & FAM CENTRES,EXTERNAL AGENCIES AND BODIES,5902587182,1000049952
04.07.2023,CHILDREN AND FAMILIES,IVYDALE PRIMARY SCHOOL,"163,122.00",CHILD & FAM CENTRES,EXTERNAL AGENCIES AND BODIES,5902587196,5001000038
04.07.2023,CHILDREN AND FAMILIES,PILGRIM'S WAY PRIMARY SCHOOL,"133,309.00",CHILD & FAM CENTRES,EXTERNAL AGENCIES AND BODIES,5902587197,5001000054
04.07.2023,CHILDREN AND FAMILIES,DULWICH WOOD CHILDRENS CENTRE,"148,741.00",CHILD & FAM CENTRES,EXTERNAL AGENCIES AND BODIES,5902587198,5001000099
04.07.2023,CHILDREN AND FAMILIES,NOTTINGHAMSHIRE COUNTY COUNCIL,832,CHILDREN�S RESID,RESIDENTIAL CARE,2103717762,11133399
04.07.2023,CHILDREN AND FAMILIES,PLUS ONE LTD,"22,178.57",CHILDREN�S RESID,RESIDENTIAL CARE,2103717768,1000013874
04.07.2023,CHILDREN AND FAMILIES,THE CALDECOTT FOUNDATION,"20,678.57",CHILDREN�S RESID,RESIDENTIAL CARE,2103717765,1000074757
04.07.2023,CHILDREN AND FAMILIES,HORIZON CARE & EDUCATION GROUP LTD,"16,337.10",CHILDREN�S RESID,RESIDENTIAL CARE,2103717778,1000075467
04.07.2023,CHILDREN AND FAMILIES,CHILDHOOD FIRST,"20,922.86",CHILDREN�S RESID,RESIDENTIAL CARE,2103717771,1000076330
04.07.2023,CHILDREN AND FAMILIES,CHILDHOOD FIRST,"25,637.14",CHILDREN�S RESID,RESIDENTIAL CARE,2103717772,1000076330
04.07.2023,CHILDREN AND FAMILIES,KEYS PCE LTD,"17,380.00",CHILDREN�S RESID,RESIDENTIAL CARE,2103717763,1000080090
04.07.2023,CHILDREN AND FAMILIES,KEYS PCE LTD,"18,240.00",CHILDREN�S RESID,RESIDENTIAL CARE,2103717774,1000080090
04.07.2023,CHILDREN AND FAMILIES,ACORN HOMES (UK) LTD,"16,285.80",CHILDREN�S RESID,RESIDENTIAL CARE,2103717758,1000080423
04.07.2023,CHILDREN AND FAMILIES,MY CHOICE CHILDREN'S HOMES LIMITED,"16,877.14",CHILDREN�S RESID,RESIDENTIAL CARE,2103717773,1000085839
04.07.2023,CHILDREN AND FAMILIES,MY CHOICE CHILDREN'S HOMES LIMITED,"17,723.14",CHILDREN�S RESID,RESIDENTIAL CARE,2103717766,1000085839
04.07.2023,CHILDREN AND FAMILIES,KEDLESTON GROUP LIMITED,"-9,000.00",CHILDREN�S RESID,RESIDENTIAL CARE,2103716168,1000086192
04.07.2023,CHILDREN AND FAMILIES,KEDLESTON GROUP LIMITED,"15,000.00",CHILDREN�S RESID,RESIDENTIAL CARE,2103717764,1000086192
04.07.2023,CHILDREN AND FAMILIES,CHILDREN OF THE MANGROVE LTD,"1,150.49",CHILDREN�S RESID,RESIDENTIAL CARE,2103717767,1000087612
04.07.2023,CHILDREN AND FAMILIES,CHILDREN OF THE MANGROVE LTD,"19,174.84",CHILDREN�S RESID,RESIDENTIAL CARE,2103717760,1000087612
04.07.2023,CHILDREN AND FAMILIES,CHILDREN OF THE MANGROVE LTD,"39,985.71",CHILDREN�S RESID,RESIDENTIAL CARE,2103717761,1000087612
04.07.2023,CHILDREN AND FAMILIES,HEADSTART RESIDENTIAL CARE LIMITED,"20,785.80",CHILDREN�S RESID,RESIDENTIAL CARE,2103717759,1000088836
04.07.2023,CHILDREN AND FAMILIES,REDACTED PERSONAL DATA,300,FE SUPPORT,CLIENT TRANSPORT,REDACTED,REDACTED
04.07.2023,CHILDREN AND FAMILIES,REDACTED PERSONAL DATA,500,FE SUPPORT,OTHER PAYMENTS FOR CLIENTS,REDACTED,REDACTED
04.07.2023,CHILDREN AND FAMILIES,REDACTED PERSONAL DATA,300,FOSTERING ALLOWANCES,ADDITIONAL PAYMENTS TO AGENCIES/CARERS,REDACTED,REDACTED
04.07.2023,CHILDREN AND FAMILIES,REDACTED PERSONAL DATA,300,FOSTERING ALLOWANCES,ADDITIONAL PAYMENTS TO AGENCIES/CARERS,REDACTED,REDACTED
04.07.2023,CHILDREN AND FAMILIES,REDACTED PERSONAL DATA,-400,FOSTERING ALLOWANCES,ADDITIONAL PAYMENTS TO AGENCIES/CARERS,REDACTED,REDACTED
04.07.2023,CHILDREN AND FAMILIES,REDACTED PERSONAL DATA,600,FOSTERING ALLOWANCES,ADDITIONAL PAYMENTS TO AGENCIES/CARERS,REDACTED,REDACTED
04.07.2023,CHILDREN AND FAMILIES,REDACTED PERSONAL DATA,700,FOSTERING ALLOWANCES,PAYMENTS TO CARERS,REDACTED,REDACTED
04.07.2023,CHILDREN AND FAMILIES,REDACTED PERSONAL DATA,355,FOSTERING ALLOWANCES,PAYMENTS TO CARERS,REDACTED,REDACTED
04.07.2023,CHILDREN AND FAMILIES,INTEGRATED SERVICES PROGRAMME,"-1,655.41",FRIENDS & FAMILY FOSTERING,EXTERNAL AGENCIES AND BODIES,2103717803,1642068
04.07.2023,CHILDREN AND FAMILIES,INTEGRATED SERVICES PROGRAMME,"4,966.24",FRIENDS & FAMILY FOSTERING,EXTERNAL AGENCIES AND BODIES,2103717795,1642068
04.07.2023,CHILDREN AND FAMILIES,INTEGRATED SERVICES PROGRAMME,"5,121.34",FRIENDS & FAMILY FOSTERING,EXTERNAL AGENCIES AND BODIES,2103717785,1642068
04.07.2023,CHILDREN AND FAMILIES,INTEGRATED SERVICES PROGRAMME,"5,214.30",FRIENDS & FAMILY FOSTERING,EXTERNAL AGENCIES AND BODIES,2103717796,1642068
04.07.2023,CHILDREN AND FAMILIES,INTEGRATED SERVICES PROGRAMME,"5,214.30",FRIENDS & FAMILY FOSTERING,EXTERNAL AGENCIES AND BODIES,2103717811,1642068
04.07.2023,CHILDREN AND FAMILIES,INTEGRATED SERVICES PROGRAMME,"5,241.89",FRIENDS & FAMILY FOSTERING,EXTERNAL AGENCIES AND BODIES,2103717786,1642068
04.07.2023,CHILDREN AND FAMILIES,INTEGRATED SERVICES PROGRAMME,"5,241.89",FRIENDS & FAMILY FOSTERING,EXTERNAL AGENCIES AND BODIES,2103717800,1642068
04.07.2023,CHILDREN AND FAMILIES,INTEGRATED SERVICES PROGRAMME,"6,122.14",FRIENDS & FAMILY FOSTERING,EXTERNAL AGENCIES AND BODIES,2103717801,1642068
04.07.2023,CHILDREN AND FAMILIES,INTEGRATED SERVICES PROGRAMME,"6,122.14",FRIENDS & FAMILY FOSTERING,EXTERNAL AGENCIES AND BODIES,2103717802,1642068
04.07.2023,CHILDREN AND FAMILIES,INTEGRATED SERVICES PROGRAMME,"6,122.14",FRIENDS & FAMILY FOSTERING,EXTERNAL AGENCIES AND BODIES,2103717818,1642068
04.07.2023,CHILDREN AND FAMILIES,INTEGRATED SERVICES PROGRAMME,"6,424.54",FRIENDS & FAMILY FOSTERING,EXTERNAL AGENCIES AND BODIES,2103717817,1642068
04.07.2023,CHILDREN AND FAMILIES,ETHELBERT SPECIALIST HOMES,"3,559.46",FRIENDS & FAMILY FOSTERING,EXTERNAL AGENCIES AND BODIES,2103717792,1796129
04.07.2023,CHILDREN AND FAMILIES,ETHELBERT SPECIALIST HOMES,"3,559.46",FRIENDS & FAMILY FOSTERING,EXTERNAL AGENCIES AND BODIES,2103717793,1796129
04.07.2023,CHILDREN AND FAMILIES,ETHELBERT SPECIALIST HOMES,"3,559.46",FRIENDS & FAMILY FOSTERING,EXTERNAL AGENCIES AND BODIES,2103717806,1796129
04.07.2023,CHILDREN AND FAMILIES,FIVE RIVERS CHILD CARE LTD,"3,514.29",FRIENDS & FAMILY FOSTERING,EXTERNAL AGENCIES AND BODIES,2103717821,1000018792
04.07.2023,CHILDREN AND FAMILIES,FIVE RIVERS CHILD CARE LTD,"4,928.70",FRIENDS & FAMILY FOSTERING,EXTERNAL AGENCIES AND BODIES,2103717819,1000018792
04.07.2023,CHILDREN AND FAMILIES,FIVE RIVERS CHILD CARE LTD,"5,142.86",FRIENDS & FAMILY FOSTERING,EXTERNAL AGENCIES AND BODIES,2103717820,1000018792
04.07.2023,CHILDREN AND FAMILIES,SYNERGY FOSTERING LTD,"5,550.00",FRIENDS & FAMILY FOSTERING,EXTERNAL AGENCIES AND BODIES,2103717810,1000031559
04.07.2023,CHILDREN AND FAMILIES,SYNERGY FOSTERING LTD,"7,410.00",FRIENDS & FAMILY FOSTERING,EXTERNAL AGENCIES AND BODIES,2103717807,1000031559
04.07.2023,CHILDREN AND FAMILIES,KENT HOMEFINDING & FOSTERING LTD,"2,943.00",FRIENDS & FAMILY FOSTERING,EXTERNAL AGENCIES AND BODIES,2103717777,1000033978
04.07.2023,CHILDREN AND FAMILIES,FUTURES FOR CHILDREN LIMITED,"3,396.00",FRIENDS & FAMILY FOSTERING,EXTERNAL AGENCIES AND BODIES,2103717781,1000041984
04.07.2023,CHILDREN AND FAMILIES,FUTURES FOR CHILDREN LIMITED,"3,396.00",FRIENDS & FAMILY FOSTERING,EXTERNAL AGENCIES AND BODIES,2103717797,1000041984
04.07.2023,CHILDREN AND FAMILIES,FUTURES FOR CHILDREN LIMITED,"3,396.00",FRIENDS & FAMILY FOSTERING,EXTERNAL AGENCIES AND BODIES,2103717804,1000041984
04.07.2023,CHILDREN AND FAMILIES,FUTURES FOR CHILDREN LIMITED,"6,497.40",FRIENDS & FAMILY FOSTERING,EXTERNAL AGENCIES AND BODIES,2103717812,1000041984
04.07.2023,CHILDREN AND FAMILIES,BY THE BRIDGE LTD,"4,297.20",FRIENDS & FAMILY FOSTERING,EXTERNAL AGENCIES AND BODIES,2103717809,1000043961
04.07.2023,CHILDREN AND FAMILIES,BY THE BRIDGE LTD,"4,745.40",FRIENDS & FAMILY FOSTERING,EXTERNAL AGENCIES AND BODIES,2103717787,1000043961
04.07.2023,CHILDREN AND FAMILIES,CHILDREN OF COLOUR,"3,444.00",FRIENDS & FAMILY FOSTERING,EXTERNAL AGENCIES AND BODIES,2103717805,1000044955
04.07.2023,CHILDREN AND FAMILIES,CHILDREN OF COLOUR,"4,714.28",FRIENDS & FAMILY FOSTERING,EXTERNAL AGENCIES AND BODIES,2103717789,1000044955
04.07.2023,CHILDREN AND FAMILIES,CAPSTONE FOSTER CARE (SOUTH EAST) LTD,"3,880.20",FRIENDS & FAMILY FOSTERING,EXTERNAL AGENCIES AND BODIES,2103717790,1000050353
04.07.2023,CHILDREN AND FAMILIES,DIVERSE CARE (UK) LTD,"4,892.40",FRIENDS & FAMILY FOSTERING,EXTERNAL AGENCIES AND BODIES,2103717813,1000055636
04.07.2023,CHILDREN AND FAMILIES,COMPASS FOSTERING LONDON LTD,"3,642.90",FRIENDS & FAMILY FOSTERING,EXTERNAL AGENCIES AND BODIES,2103717815,1000057908
04.07.2023,CHILDREN AND FAMILIES,CHILDREN OF ALL NATIONS LTD,"3,814.29",FRIENDS & FAMILY FOSTERING,EXTERNAL AGENCIES AND BODIES,2103717776,1000060151
04.07.2023,CHILDREN AND FAMILIES,ANCHOR FOSTERCARE,"3,732.30",FRIENDS & FAMILY FOSTERING,EXTERNAL AGENCIES AND BODIES,2103717779,1000065675
04.07.2023,CHILDREN AND FAMILIES,COMPASS FOSTERING SOUTH LTD,"3,514.20",FRIENDS & FAMILY FOSTERING,EXTERNAL AGENCIES AND BODIES,2103717791,1000073772
04.07.2023,CHILDREN AND FAMILIES,ASCENT FOSTERING AGENCY LTD,"4,673.40",FRIENDS & FAMILY FOSTERING,EXTERNAL AGENCIES AND BODIES,2103717784,1000074714
04.07.2023,CHILDREN AND FAMILIES,ASCENT FOSTERING AGENCY LTD,"5,919.90",FRIENDS & FAMILY FOSTERING,EXTERNAL AGENCIES AND BODIES,2103717816,1000074714
04.07.2023,CHILDREN AND FAMILIES,ASCENT FOSTERING AGENCY LTD,"6,407.10",FRIENDS & FAMILY FOSTERING,EXTERNAL AGENCIES AND BODIES,2103717794,1000074714
04.07.2023,CHILDREN AND FAMILIES,MOSAIC FOSTER CARE LTD,"6,412.50",FRIENDS & FAMILY FOSTERING,EXTERNAL AGENCIES AND BODIES,2103717799,1000076259
04.07.2023,CHILDREN AND FAMILIES,PARENT AND CHILD FOSTERING ASSESSMENTS,"8,300.00",FRIENDS & FAMILY FOSTERING,EXTERNAL AGENCIES AND BODIES,2103717798,1000078962
04.07.2023,CHILDREN AND FAMILIES,CONNECT FOSTERING SERVICES LTD,"4,050.00",FRIENDS & FAMILY FOSTERING,EXTERNAL AGENCIES AND BODIES,2103717782,1000079969
04.07.2023,CHILDREN AND FAMILIES,CONNECT FOSTERING SERVICES LTD,"5,614.29",FRIENDS & FAMILY FOSTERING,EXTERNAL AGENCIES AND BODIES,2103717783,1000079969
04.07.2023,CHILDREN AND FAMILIES,HYTHE HOUSE SUPPORT LTD,"4,029.04",FRIENDS & FAMILY FOSTERING,EXTERNAL AGENCIES AND BODIES,2103717788,1000081618
04.07.2023,CHILDREN AND FAMILIES,HYTHE HOUSE SUPPORT LTD,"6,067.07",FRIENDS & FAMILY FOSTERING,EXTERNAL AGENCIES AND BODIES,2103717780,1000081618
04.07.2023,CHILDREN AND FAMILIES,SURE START FOSTERING AGENCY,"3,836.01",FRIENDS & FAMILY FOSTERING,EXTERNAL AGENCIES AND BODIES,2103717814,1000088495
04.07.2023,CHILDREN AND FAMILIES,REDACTED PERSONAL DATA,667,KINSHIP FOSTERING,ADDITIONAL PAYMENTS TO AGENCIES/CARERS,REDACTED,REDACTED
04.07.2023,CHILDREN AND FAMILIES,HEXAGON HOUSING ASSOCIATION LTD,768.55,SEMI-IND CARELEAVERS,EXTERNAL AGENCIES AND BODIES,2103717740,1000056905
04.07.2023,CHILDREN AND FAMILIES,FUTURE FOUNDATIONS LTD,"1,667.14",SEMI-IND CARELEAVERS,EXTERNAL AGENCIES AND BODIES,2103717716,1000063272
04.07.2023,CHILDREN AND FAMILIES,FUTURE FOUNDATIONS LTD,"1,667.14",SEMI-IND CARELEAVERS,EXTERNAL AGENCIES AND BODIES,2103717723,1000063272
04.07.2023,CHILDREN AND FAMILIES,FUTURE FOUNDATIONS LTD,"1,667.14",SEMI-IND CARELEAVERS,EXTERNAL AGENCIES AND BODIES,2103717731,1000063272
04.07.2023,CHILDREN AND FAMILIES,FUTURE FOUNDATIONS LTD,"1,667.14",SEMI-IND CARELEAVERS,EXTERNAL AGENCIES AND BODIES,2103717732,1000063272
04.07.2023,CHILDREN AND FAMILIES,FUTURE FOUNDATIONS LTD,"1,667.14",SEMI-IND CARELEAVERS,EXTERNAL AGENCIES AND BODIES,2103717744,1000063272
04.07.2023,CHILDREN AND FAMILIES,FUTURE FOUNDATIONS LTD,"1,962.85",SEMI-IND CARELEAVERS,EXTERNAL AGENCIES AND BODIES,2103717742,1000063272
04.07.2023,CHILDREN AND FAMILIES,FUTURE FOUNDATIONS LTD,"2,310.00",SEMI-IND CARELEAVERS,EXTERNAL AGENCIES AND BODIES,2103717717,1000063272
04.07.2023,CHILDREN AND FAMILIES,FUTURE FOUNDATIONS LTD,"2,408.57",SEMI-IND CARELEAVERS,EXTERNAL AGENCIES AND BODIES,2103717720,1000063272
04.07.2023,CHILDREN AND FAMILIES,FUTURE FOUNDATIONS LTD,"2,802.85",SEMI-IND CARELEAVERS,EXTERNAL AGENCIES AND BODIES,2103717741,1000063272
04.07.2023,CHILDREN AND FAMILIES,FUTURE FOUNDATIONS LTD,"4,277.14",SEMI-IND CARELEAVERS,EXTERNAL AGENCIES AND BODIES,2103717729,1000063272
04.07.2023,CHILDREN AND FAMILIES,BARNARDOS SERVICES LTD,642.86,SEMI-IND CARELEAVERS,EXTERNAL AGENCIES AND BODIES,2103717718,1000063730
04.07.2023,CHILDREN AND FAMILIES,RELA SUPPORT SERVICES LTD,"15,085.71",SEMI-IND CARELEAVERS,EXTERNAL AGENCIES AND BODIES,2103717730,1000073128
04.07.2023,CHILDREN AND FAMILIES,BRIGHT YOUNG FUTURES LTD,"1,894.26",SEMI-IND CARELEAVERS,EXTERNAL AGENCIES AND BODIES,2103717724,1000083958
04.07.2023,CHILDREN AND FAMILIES,BRIGHT YOUNG FUTURES LTD,"2,184.00",SEMI-IND CARELEAVERS,EXTERNAL AGENCIES AND BODIES,2103717743,1000083958
04.07.2023,CHILDREN AND FAMILIES,PCS SERVICES LIMITED,"2,035.00",SEMI-IND CARELEAVERS,EXTERNAL AGENCIES AND BODIES,2103717725,1000087059
04.07.2023,CHILDREN AND FAMILIES,REDACTED PERSONAL DATA,300,SEMI-IND LAC 16-17,OTHER PAYMENTS FOR CLIENTS,REDACTED,REDACTED
04.07.2023,CHILDREN AND FAMILIES,JOSHUA SWIRSKY,800,SFS MGMT & SUPPORT,LEGAL FEES & COURT COSTS,2103717320,1000017798
04.07.2023,CHILDREN AND FAMILIES,FORESIGHT CLINICAL SERVICES LTD,756,SFS MGMT & SUPPORT,LEGAL FEES & COURT COSTS,2103717312,1000061649
04.07.2023,CHILDREN AND FAMILIES,FORESIGHT CLINICAL SERVICES LTD,856.32,SFS MGMT & SUPPORT,LEGAL FEES & COURT COSTS,2103717313,1000061649
04.07.2023,CHILDREN AND FAMILIES,LAURA BUMPUS,750,SFS MGMT & SUPPORT,LEGAL FEES & COURT COSTS,2103717322,1000064937
04.07.2023,CHILDREN AND FAMILIES,PAUL PAVLOU,700,SFS MGMT & SUPPORT,LEGAL FEES & COURT COSTS,2103717327,1000068944
04.07.2023,CHILDREN AND FAMILIES,GAYLE BISBEY,"1,270.00",SFS MGMT & SUPPORT,LEGAL FEES & COURT COSTS,2103717316,1000074738
04.07.2023,CHILDREN AND FAMILIES,GAYLE BISBEY,"1,400.00",SFS MGMT & SUPPORT,LEGAL FEES & COURT COSTS,2103717315,1000074738
04.07.2023,CHILDREN AND FAMILIES,RICHARD HARRIS,350,SFS MGMT & SUPPORT,LEGAL FEES & COURT COSTS,2103717329,1000075786
04.07.2023,CHILDREN AND FAMILIES,RICHARD HARRIS,800,SFS MGMT & SUPPORT,LEGAL FEES & COURT COSTS,2103717330,1000075786
04.07.2023,CHILDREN AND FAMILIES,RICHARD HARRIS,850,SFS MGMT & SUPPORT,LEGAL FEES & COURT COSTS,2103717331,1000075786
04.07.2023,CHILDREN AND FAMILIES,MARC TREGIDGO,750,SFS MGMT & SUPPORT,LEGAL FEES & COURT COSTS,2103717323,1000087496
04.07.2023,CHILDREN AND FAMILIES,BARNARDOS SERVICES LTD,"1,500.00",STAYPUT- FOST CARERS,EXTERNAL AGENCIES AND BODIES,2103717722,1000063730
04.07.2023,CHILDREN AND FAMILIES,MOSAIC FOSTER CARE LTD,"3,051.43",STAYPUT- FOST CARERS,EXTERNAL AGENCIES AND BODIES,2103717739,1000076259
04.07.2023,CHILDREN AND FAMILIES,DIAMOND PROPERTY MANAGEMENT LTD,"1,612.00",TEMP ACCOM FOR IH,EXTERNAL AGENCIES AND BODIES,5902587328,1000088789
04.07.2023,CHILDREN AND FAMILIES,HEXAGON HOUSING ASSOCIATION LTD,902.65,UASC CARELEAVERS,EXTERNAL AGENCIES AND BODIES,2103717728,1000056905
04.07.2023,CHILDREN AND FAMILIES,FUTURE FOUNDATIONS LTD,389,UASC CARELEAVERS,EXTERNAL AGENCIES AND BODIES,2103717738,1000063272
04.07.2023,CHILDREN AND FAMILIES,FUTURE FOUNDATIONS LTD,"1,667.14",UASC CARELEAVERS,EXTERNAL AGENCIES AND BODIES,2103717733,1000063272
04.07.2023,CHILDREN AND FAMILIES,FUTURE FOUNDATIONS LTD,"1,667.14",UASC CARELEAVERS,EXTERNAL AGENCIES AND BODIES,2103717735,1000063272
04.07.2023,CHILDREN AND FAMILIES,FUTURE FOUNDATIONS LTD,"1,864.28",UASC CARELEAVERS,EXTERNAL AGENCIES AND BODIES,2103717736,1000063272
04.07.2023,CHILDREN AND FAMILIES,JORDAN XAVIER LTD,664.29,UASC CARELEAVERS,EXTERNAL AGENCIES AND BODIES,2103717745,1000081470
04.07.2023,CHILDREN AND FAMILIES,JORDAN XAVIER LTD,"2,214.29",UASC CARELEAVERS,EXTERNAL AGENCIES AND BODIES,2103717737,1000081470
04.07.2023,CHILDREN AND FAMILIES,PCS SERVICES LIMITED,"3,208.85",UASC CARELEAVERS,EXTERNAL AGENCIES AND BODIES,2103717727,1000087059
04.07.2023,CHILDREN AND FAMILIES,FUTURE FOUNDATIONS LTD,300,UASC CARELEAVERS,OTHER PAYMENTS FOR CLIENTS,2103717721,1000063272
04.07.2023,CHILDREN AND FAMILIES,PCS SERVICES LIMITED,257.15,UASC CARELEAVERS,OTHER PAYMENTS FOR CLIENTS,2103717726,1000087059
04.07.2023,COMMUNITIES,S & G PROPERTIES,"1,056.00",NO RECOURSE TO PUBLIC FUNDS,ACCOMMODATION CHARGES,5902587272,1000005082
04.07.2023,COMMUNITIES,S & G PROPERTIES,"1,170.00",NO RECOURSE TO PUBLIC FUNDS,ACCOMMODATION CHARGES,5902587273,1000005082
04.07.2023,COMMUNITIES,HOMELY HOUSING LETS LTD,"1,145.00",NO RECOURSE TO PUBLIC FUNDS,ACCOMMODATION CHARGES,5902587316,1000050013
04.07.2023,COMMUNITIES,MENTAL FIGHT CLUB,"4,332.00",NORTH WEST,GRANTS,5902587119,1000051170
04.07.2023,COMMUNITIES,REDACTED PERSONAL DATA,350,UKRAINIAN PROGRAMME,GRANTS,REDACTED,REDACTED
04.07.2023,COMMUNITIES,REDACTED PERSONAL DATA,500,UKRAINIAN PROGRAMME,GRANTS,REDACTED,REDACTED
04.07.2023,COMMUNITIES,REDACTED PERSONAL DATA,500,UKRAINIAN PROGRAMME,GRANTS,REDACTED,REDACTED
04.07.2023,COMMUNITIES,REDACTED PERSONAL DATA,"1,750.00",UKRAINIAN PROGRAMME,GRANTS,REDACTED,REDACTED
04.07.2023,COMMUNITIES,REDACTED PERSONAL DATA,500,UKRAINIAN PROGRAMME,GRANTS,REDACTED,REDACTED
04.07.2023,COMMUNITIES,REDACTED PERSONAL DATA,350,UKRAINIAN PROGRAMME,GRANTS,REDACTED,REDACTED
04.07.2023,COMMUNITIES,REDACTED PERSONAL DATA,500,UKRAINIAN PROGRAMME,GRANTS,REDACTED,REDACTED
04.07.2023,COMMUNITIES,REDACTED PERSONAL DATA,500,UKRAINIAN PROGRAMME,GRANTS,REDACTED,REDACTED
04.07.2023,COMMUNITIES,REDACTED PERSONAL DATA,350,UKRAINIAN PROGRAMME,GRANTS,REDACTED,REDACTED
04.07.2023,COMMUNITIES,REDACTED PERSONAL DATA,350,UKRAINIAN PROGRAMME,GRANTS,REDACTED,REDACTED
04.07.2023,COMMUNITIES,REDACTED PERSONAL DATA,350,UKRAINIAN PROGRAMME,GRANTS,REDACTED,REDACTED
04.07.2023,COMMUNITIES,REDACTED PERSONAL DATA,350,UKRAINIAN PROGRAMME,GRANTS,REDACTED,REDACTED
04.07.2023,COMMUNITIES,REDACTED PERSONAL DATA,350,UKRAINIAN PROGRAMME,GRANTS,REDACTED,REDACTED
04.07.2023,COMMUNITIES,REDACTED PERSONAL DATA,350,UKRAINIAN PROGRAMME,GRANTS,REDACTED,REDACTED
04.07.2023,COMMUNITIES,ST FAITHS COMMUNITY CENTRE,"5,300.00",VCS GRANTS,GRANTS,5902587164,1039446
04.07.2023,COMMUNITIES,TIME & TALENTS ASSOCIATION,"4,770.00",VCS GRANTS,GRANTS,5902587165,1757632
04.07.2023,COMMUNITIES,LONDON WILDLIFE TRUST,"7,950.00",VCS GRANTS,GRANTS,5902587166,1832374
04.07.2023,COMMUNITIES,SOUTHWARK CITIZENS ADVICE,"5,936.00",VCS GRANTS,GRANTS,5902587167,1874379
04.07.2023,COMMUNITIES,SOMALI INTEGRATION & DEVELOPMENT ASSOCIATION,"14,840.00",VCS GRANTS,GRANTS,5902587168,11048946
04.07.2023,COMMUNITIES,GOLDEN OLDIES COMMUNITY CARE PROJECT,"2,650.00",VCS GRANTS,GRANTS,5902587169,11122958
04.07.2023,COMMUNITIES,BEDE HSE,"4,770.00",VCS GRANTS,GRANTS,5902587171,11248731
04.07.2023,COMMUNITIES,PECAN LTD,"6,890.00",VCS GRANTS,GRANTS,5902587173,11263114
04.07.2023,COMMUNITIES,PECAN LTD,"7,817.50",VCS GRANTS,GRANTS,5902587172,11263114
04.07.2023,COMMUNITIES,SURREY DOCKS FARM PROVIDENT SOCIETY,"10,600.00",VCS GRANTS,GRANTS,5902587174,1000000958
04.07.2023,COMMUNITIES,AAINA WOMEN GROUP,"8,499.35",VCS GRANTS,GRANTS,5902587175,1000002442
04.07.2023,COMMUNITIES,BANKSIDE OPEN SPACES TRUST,"4,460.48",VCS GRANTS,GRANTS,5902587176,1000018290
04.07.2023,COMMUNITIES,SOUTHWARK PENSIONERS CENTRE,"27,406.57",VCS GRANTS,GRANTS,5902587177,1000027831
04.07.2023,COMMUNITIES,SWK DAY CTR FOR ASYLUM SEEKERS,"12,010.07",VCS GRANTS,GRANTS,5902587178,1000040491
04.07.2023,COMMUNITIES,SOUTHWARK EVERY WOMAN'S CENTRE,"5,830.00",VCS GRANTS,GRANTS,5902587179,1000042216
04.07.2023,COMMUNITIES,FUTURE MEN,"4,372.50",VCS GRANTS,GRANTS,5902587180,1000046010
04.07.2023,COMMUNITIES,THE MANNA CENTRE,"14,575.00",VCS GRANTS,GRANTS,5902587181,1000048508
04.07.2023,COMMUNITIES,MENTAL FIGHT CLUB,"2,650.00",VCS GRANTS,GRANTS,5902587183,1000051170
04.07.2023,COMMUNITIES,LATIN AMERICAN DISABLED PEOPLE PROJECT,"4,902.50",VCS GRANTS,GRANTS,5902587184,1000058588
04.07.2023,COMMUNITIES,LATIN AMERICAN WOMEN'S RIGHTS SERVICES,"4,902.50",VCS GRANTS,GRANTS,5902587185,1000068356
04.07.2023,COMMUNITIES,PAXTON GREEN TIME BANK,"4,505.00",VCS GRANTS,GRANTS,5902587187,1000070648
04.07.2023,COMMUNITIES,BLACKFRIARS SETTLEMENT,"4,770.00",VCS GRANTS,GRANTS,5902587188,1000071456
04.07.2023,COMMUNITIES,PEMBROKE COLLEGE SETTLEMENT,"4,770.00",VCS GRANTS,GRANTS,5902587189,1000073444
04.07.2023,COMMUNITIES,BERMONDSEY COMMUNITY KITCHEN,"3,975.00",VCS GRANTS,GRANTS,5902587190,1000075477
04.07.2023,COMMUNITIES,THE BIKE PROJECT,"4,082.06",VCS GRANTS,GRANTS,5902587191,1000077217
04.07.2023,COMMUNITIES,SOUTHWARK TRAVELLERS' ACTION,"6,095.00",VCS GRANTS,GRANTS,5902587192,1000077795
04.07.2023,COMMUNITIES,GLOBAL GENERATION,"4,505.00",VCS GRANTS,GRANTS,5902587193,1000080135
04.07.2023,COMMUNITIES,SPRING COMMUNITY HUB,"5,565.00",VCS GRANTS,GRANTS,5902587194,1000083089
04.07.2023,COMMUNITIES,OPENING DOORS LONDON,"5,035.00",VCS GRANTS,GRANTS,5902587195,1000086261
04.07.2023,COMMUNITIES,THEATRE PECKHAM,"1,500.00",VCS GRANTS,OTHER CONTRACTORS,5902587325,1071668
04.07.2023,COMMUNITIES,SOUTHWARK PLAYHOUSE THEATRE COMPANY,"2,000.00",VCS GRANTS,OTHER CONTRACTORS,5902587281,1871878
04.07.2023,COMMUNITIES,SOUTHWARK LAW CENTRE,"2,381.00",VCS GRANTS,OTHER CONTRACTORS,5902587282,1981325
04.07.2023,COMMUNITIES,SOUTH LONDON GALLERY,"2,478.00",VCS GRANTS,OTHER CONTRACTORS,5902587284,11011694
04.07.2023,COMMUNITIES,PARENT SKILLS2GO,"1,600.00",VCS GRANTS,OTHER CONTRACTORS,5902587276,1000066441
04.07.2023,COMMUNITIES,GLOUCESTER GROVE ESTATE TMO,"2,000.00",VCS GRANTS,OTHER CONTRACTORS,5902587287,1000073072
04.07.2023,COMMUNITIES,INSPIRE NEW CREATIVE PERFORMING,"2,499.00",VCS GRANTS,OTHER CONTRACTORS,5902587329,1000076544
04.07.2023,COMMUNITIES,GENERATION SUCCESS,"1,970.00",VCS GRANTS,OTHER CONTRACTORS,5902587293,1000081644
04.07.2023,COMMUNITIES,SMARTKIDDIES LIMITED,850,VCS GRANTS,OTHER CONTRACTORS,5902587298,1000086931
04.07.2023,COMMUNITIES,SE17WORKING COMMUNITY INTEREST COMPANY ,"2,500.00",WEST CENTRAL,GRANTS,5902587104,1000089860
04.07.2023,CORPORATE FACILITIES MANAGEMENT,DISPOSABLES AND CATERING SUPPLIES LTD,387.6,QUEENS RD 1 (BLOCK F),BUILDING R&M,5902587321,1000082869
04.07.2023,DIGITAL AND TECHNOLOGY,KEYSTREAM GROUP LIMITED,"2,925.00",IT MANAGEMENT,CONSULTANTS SERVICES,5902587324,1000089467
04.07.2023,DSG,ALBION PRIMARY SCHOOL,"5,763.75",COVID-19 SCHOOLS GRANTS,SCHOOLS CAPITATION,2103717369,5001000000
04.07.2023,DSG,ALFRED SALTER PRIMARY SCHOOL,"4,132.50",COVID-19 SCHOOLS GRANTS,SCHOOLS CAPITATION,2103717390,5001000005
04.07.2023,DSG,BELLENDEN PRIMARY SCHOOL,"3,081.25",COVID-19 SCHOOLS GRANTS,SCHOOLS CAPITATION,2103717370,5001000007
04.07.2023,DSG,BESSEMER GRANGE PRIMARY SCHOOL,"3,733.75",COVID-19 SCHOOLS GRANTS,SCHOOLS CAPITATION,2103717392,5001000009
04.07.2023,DSG,BETHLEM & MAUDSLEY HOSPITAL SCHOOL,"-1,718.25",COVID-19 SCHOOLS GRANTS,SCHOOLS CAPITATION,2103717434,5001000010
04.07.2023,DSG,BETHLEM & MAUDSLEY HOSPITAL SCHOOL,"1,410.00",COVID-19 SCHOOLS GRANTS,SCHOOLS CAPITATION,2103717426,5001000010
04.07.2023,DSG,BETHLEM & MAUDSLEY HOSPITAL SCHOOL,"8,832.00",COVID-19 SCHOOLS GRANTS,SCHOOLS CAPITATION,2103717417,5001000010
04.07.2023,DSG,BOUCHER C OF E PRIMARY SCHOOL,"2,646.25",COVID-19 SCHOOLS GRANTS,SCHOOLS CAPITATION,2103717393,5001000011
04.07.2023,DSG,CAMELOT PRIMARY SCHOOL,"6,525.00",COVID-19 SCHOOLS GRANTS,SCHOOLS CAPITATION,2103717371,5001000014
04.07.2023,DSG,CHARLOTTE  SHARMAN PRIMARY SCHOOL,"2,646.25",COVID-19 SCHOOLS GRANTS,SCHOOLS CAPITATION,2103717413,5001000016
04.07.2023,DSG,ST JOSEPHS RC JUNIOR  SCHOOL,"3,226.25",COVID-19 SCHOOLS GRANTS,SCHOOLS CAPITATION,2103717411,5001000017
04.07.2023,DSG,ST JOSEPHS CATHOLIC INFANTS SCHOOL,"1,558.75",COVID-19 SCHOOLS GRANTS,SCHOOLS CAPITATION,2103717412,5001000018
04.07.2023,DSG,COBOURG PRIMARY SCHOOL,"2,900.00",COVID-19 SCHOOLS GRANTS,SCHOOLS CAPITATION,2103717372,5001000021
04.07.2023,DSG,COMBER GROVE PRIMARY SCHOOL,"2,537.50",COVID-19 SCHOOLS GRANTS,SCHOOLS CAPITATION,2103717373,5001000022
04.07.2023,DSG,CRAMPTON PRIMARY SCHOOL,"-4,923.29",COVID-19 SCHOOLS GRANTS,SCHOOLS CAPITATION,2103717428,5001000023
04.07.2023,DSG,CRAMPTON PRIMARY SCHOOL,"2,428.75",COVID-19 SCHOOLS GRANTS,SCHOOLS CAPITATION,2103717374,5001000023
04.07.2023,DSG,CRAMPTON PRIMARY SCHOOL,"3,780.00",COVID-19 SCHOOLS GRANTS,SCHOOLS CAPITATION,2103717420,5001000023
04.07.2023,DSG,CRAWFORD PRIMARY SCHOOL,"6,597.50",COVID-19 SCHOOLS GRANTS,SCHOOLS CAPITATION,2103717375,5001000024
04.07.2023,DSG,DOG KENNEL HILL PRIMARY SCHOOL,"3,117.50",COVID-19 SCHOOLS GRANTS,SCHOOLS CAPITATION,2103717376,5001000025
04.07.2023,DSG,DULWICH VILLAGE CE INFANTS SCHOOL,"-1,113.00",COVID-19 SCHOOLS GRANTS,SCHOOLS CAPITATION,2103717430,5001000027
04.07.2023,DSG,DULWICH VILLAGE CE INFANTS SCHOOL,652.5,COVID-19 SCHOOLS GRANTS,SCHOOLS CAPITATION,2103717394,5001000027
04.07.2023,DSG,DULWICH VILLAGE CE INFANTS SCHOOL,675,COVID-19 SCHOOLS GRANTS,SCHOOLS CAPITATION,2103717422,5001000027
04.07.2023,DSG,GOODRICH PRIMARY SCHOOL,"3,951.25",COVID-19 SCHOOLS GRANTS,SCHOOLS CAPITATION,2103717377,5001000028
04.07.2023,DSG,GRANGE PRIMARY SCHOOL,"5,582.50",COVID-19 SCHOOLS GRANTS,SCHOOLS CAPITATION,2103717378,5001000029
04.07.2023,DSG,ENGLISH MARTYRS RC PRIMARY SCHOOL,"4,168.75",COVID-19 SCHOOLS GRANTS,SCHOOLS CAPITATION,2103717395,5001000030
04.07.2023,DSG,EVELINA HOSPITAL SCHOOL,"12,558.00",COVID-19 SCHOOLS GRANTS,SCHOOLS CAPITATION,2103717416,5001000031
04.07.2023,DSG,PHOENIX PRIMARY SCHOOL,"6,996.25",COVID-19 SCHOOLS GRANTS,SCHOOLS CAPITATION,2103717388,5001000032
04.07.2023,DSG,HEBER PRIMARY SCHOOL,"2,428.75",COVID-19 SCHOOLS GRANTS,SCHOOLS CAPITATION,2103717379,5001000035
04.07.2023,DSG,ILDERTON PRIMARY SCHOOL,"3,335.00",COVID-19 SCHOOLS GRANTS,SCHOOLS CAPITATION,2103717380,5001000037
04.07.2023,DSG,IVYDALE PRIMARY SCHOOL,"2,972.50",COVID-19 SCHOOLS GRANTS,SCHOOLS CAPITATION,2103717381,5001000038
04.07.2023,DSG,JOHN RUSKIN PRIMARY SCHOOL,"8,609.00",COVID-19 SCHOOLS GRANTS,SCHOOLS CAPITATION,2103717382,5001000040
04.07.2023,DSG,KEYWORTH PRIMARY SCHOOL,"5,908.75",COVID-19 SCHOOLS GRANTS,SCHOOLS CAPITATION,2103717383,5001000041
04.07.2023,DSG,HAYMERLE SCHOOL,"4,785.00",COVID-19 SCHOOLS GRANTS,SCHOOLS CAPITATION,2103717418,5001000045
04.07.2023,DSG,HIGHSHORE SCHOOL,"-19,563.75",COVID-19 SCHOOLS GRANTS,SCHOOLS CAPITATION,2103717433,5001000046
04.07.2023,DSG,HIGHSHORE SCHOOL,"9,693.75",COVID-19 SCHOOLS GRANTS,SCHOOLS CAPITATION,2103717425,5001000046
04.07.2023,DSG,HIGHSHORE SCHOOL,"12,696.00",COVID-19 SCHOOLS GRANTS,SCHOOLS CAPITATION,2103717415,5001000046
04.07.2023,DSG,OLIVER GOLDSMITH PRIMARY SCHOOL,"-15,592.50",COVID-19 SCHOOLS GRANTS,SCHOOLS CAPITATION,2103717429,5001000051
04.07.2023,DSG,OLIVER GOLDSMITH PRIMARY SCHOOL,"5,111.25",COVID-19 SCHOOLS GRANTS,SCHOOLS CAPITATION,2103717391,5001000051
04.07.2023,DSG,OLIVER GOLDSMITH PRIMARY SCHOOL,"10,800.00",COVID-19 SCHOOLS GRANTS,SCHOOLS CAPITATION,2103717421,5001000051
04.07.2023,DSG,PILGRIM'S WAY PRIMARY SCHOOL,"3,407.50",COVID-19 SCHOOLS GRANTS,SCHOOLS CAPITATION,2103717389,5001000054
04.07.2023,DSG,ROTHERHITHE PRIMARY SCHOOL,"4,676.25",COVID-19 SCHOOLS GRANTS,SCHOOLS CAPITATION,2103717384,5001000058
04.07.2023,DSG,RYE OAK PRIMARY SCHOOL,"5,926.00",COVID-19 SCHOOLS GRANTS,SCHOOLS CAPITATION,2103717407,5001000059
04.07.2023,DSG,SOUTHWARK PARK PRIMARY SCHOOL,"6,633.75",COVID-19 SCHOOLS GRANTS,SCHOOLS CAPITATION,2103717385,5001000062
04.07.2023,DSG,ST ANTHONYS RC SCHOOL,"3,733.75",COVID-19 SCHOOLS GRANTS,SCHOOLS CAPITATION,2103717410,5001000064
04.07.2023,DSG,ST FRANCESCA CABRINI PRIMARY SCHOOL,"1,232.50",COVID-19 SCHOOLS GRANTS,SCHOOLS CAPITATION,2103717409,5001000065
04.07.2023,DSG,ST FRANCIS'S RC PRIMARY SCHOOL,"4,060.00",COVID-19 SCHOOLS GRANTS,SCHOOLS CAPITATION,2103717397,5001000067
04.07.2023,DSG,ST GEORGES RC SCHOOL,"1,848.75",COVID-19 SCHOOLS GRANTS,SCHOOLS CAPITATION,2103717399,5001000068
04.07.2023,DSG,ST GEORGES CE SCHOOL,"3,443.75",COVID-19 SCHOOLS GRANTS,SCHOOLS CAPITATION,2103717398,5001000069
04.07.2023,DSG,ST JAMES CE PRIMARY SCHOOL,"8,663.75",COVID-19 SCHOOLS GRANTS,SCHOOLS CAPITATION,2103717400,5001000070
04.07.2023,DSG,ST JAMES THE GREAT RC SCHOOL,"3,153.75",COVID-19 SCHOOLS GRANTS,SCHOOLS CAPITATION,2103717396,5001000071
04.07.2023,DSG,ST JOHNS & ST CLEMENTS CE SCHOOL,"3,439.25",COVID-19 SCHOOLS GRANTS,SCHOOLS CAPITATION,2103717401,5001000073
04.07.2023,DSG,THE ST THOMAS THE APOSTLE COLLEGE,"24,219.00",COVID-19 SCHOOLS GRANTS,SCHOOLS CAPITATION,2103717414,5001000074
04.07.2023,DSG,ST JOHNS RC PRIMARY SCHOOL,"2,501.25",COVID-19 SCHOOLS GRANTS,SCHOOLS CAPITATION,2103717406,5001000075
04.07.2023,DSG,ST JOSEPHS CATHOLIC SCHOOL,"2,320.00",COVID-19 SCHOOLS GRANTS,SCHOOLS CAPITATION,2103717403,5001000076
04.07.2023,DSG,ST JOSEPHS CATHOLIC PRIMARY SCHOOL,"1,957.50",COVID-19 SCHOOLS GRANTS,SCHOOLS CAPITATION,2103717402,5001000078
04.07.2023,DSG,ST MARY MAGDALENE CE SCHOOL,"-4,443.00",COVID-19 SCHOOLS GRANTS,SCHOOLS CAPITATION,2103717431,5001000080
04.07.2023,DSG,ST MARY MAGDALENE CE SCHOOL,"1,776.25",COVID-19 SCHOOLS GRANTS,SCHOOLS CAPITATION,2103717404,5001000080
04.07.2023,DSG,ST MARY MAGDALENE CE SCHOOL,"2,835.00",COVID-19 SCHOOLS GRANTS,SCHOOLS CAPITATION,2103717423,5001000080
04.07.2023,DSG,ST SAVIOURS & ST OLAVES SCHOOL,"-30,361.50",COVID-19 SCHOOLS GRANTS,SCHOOLS CAPITATION,2103717432,5001000084
04.07.2023,DSG,ST SAVIOURS & ST OLAVES SCHOOL,"18,427.50",COVID-19 SCHOOLS GRANTS,SCHOOLS CAPITATION,2103717424,5001000084
04.07.2023,DSG,ST SAVIOURS & ST OLAVES SCHOOL,"18,699.00",COVID-19 SCHOOLS GRANTS,SCHOOLS CAPITATION,2103717408,5001000084
04.07.2023,DSG,CATHEDRAL SCHOOL OF ST SAVIOUR & MARY,"1,522.50",COVID-19 SCHOOLS GRANTS,SCHOOLS CAPITATION,2103717405,5001000088
04.07.2023,DSG,TOWNSEND PRIMARY SCHOOL,"2,066.25",COVID-19 SCHOOLS GRANTS,SCHOOLS CAPITATION,2103717386,5001000096
04.07.2023,DSG,TUKE SCHOOL,"-16,497.00",COVID-19 SCHOOLS GRANTS,SCHOOLS CAPITATION,2103717435,5001000097
04.07.2023,DSG,TUKE SCHOOL,"7,931.25",COVID-19 SCHOOLS GRANTS,SCHOOLS CAPITATION,2103717427,5001000097
04.07.2023,DSG,TUKE SCHOOL,"9,384.00",COVID-19 SCHOOLS GRANTS,SCHOOLS CAPITATION,2103717419,5001000097
04.07.2023,DSG,VICTORY SCHOOL,"1,993.75",COVID-19 SCHOOLS GRANTS,SCHOOLS CAPITATION,2103717387,5001000098
04.07.2023,DSG,SOUTHWARK INCLUSIVE LEARNING SERVICE,"6,555.00",COVID-19 SCHOOLS GRANTS,SCHOOLS CAPITATION,2103717368,5001000105
04.07.2023,DSG,ALBION PRIMARY SCHOOL,"8,864.50",DEVOLVED FORMULA CAPITAL,SCHOOLS CAPITATION,2103717541,5001000000
04.07.2023,DSG,ALFRED SALTER PRIMARY SCHOOL,"8,358.25",DEVOLVED FORMULA CAPITAL,SCHOOLS CAPITATION,2103717570,5001000005
04.07.2023,DSG,BELLENDEN PRIMARY SCHOOL,"6,225.25",DEVOLVED FORMULA CAPITAL,SCHOOLS CAPITATION,2103717542,5001000007
04.07.2023,DSG,BEORMUND PRIMARY SCHOOL,"5,518.75",DEVOLVED FORMULA CAPITAL,SCHOOLS CAPITATION,2103717577,5001000008
04.07.2023,DSG,BESSEMER GRANGE PRIMARY SCHOOL,"10,365.25",DEVOLVED FORMULA CAPITAL,SCHOOLS CAPITATION,2103717580,5001000009
04.07.2023,DSG,BETHLEM & MAUDSLEY HOSPITAL SCHOOL,"6,531.25",DEVOLVED FORMULA CAPITAL,SCHOOLS CAPITATION,2103717575,5001000010
04.07.2023,DSG,BRUNSWICK PARK PRIMARY SCHOOL,"8,234.50",DEVOLVED FORMULA CAPITAL,SCHOOLS CAPITATION,2103717581,5001000013
04.07.2023,DSG,CAMELOT PRIMARY SCHOOL,"8,092.75",DEVOLVED FORMULA CAPITAL,SCHOOLS CAPITATION,2103717543,5001000014
04.07.2023,DSG,CHARLOTTE  SHARMAN PRIMARY SCHOOL,"6,234.25",DEVOLVED FORMULA CAPITAL,SCHOOLS CAPITATION,2103717567,5001000016
04.07.2023,DSG,CHERRY GARDEN SCHOOL,"8,201.88",DEVOLVED FORMULA CAPITAL,SCHOOLS CAPITATION,2103717579,5001000020
04.07.2023,DSG,COBOURG PRIMARY SCHOOL,"6,889.00",DEVOLVED FORMULA CAPITAL,SCHOOLS CAPITATION,2103717544,5001000021
04.07.2023,DSG,COMBER GROVE PRIMARY SCHOOL,"6,263.50",DEVOLVED FORMULA CAPITAL,SCHOOLS CAPITATION,2103717545,5001000022
04.07.2023,DSG,CRAMPTON PRIMARY SCHOOL,"6,351.25",DEVOLVED FORMULA CAPITAL,SCHOOLS CAPITATION,2103717546,5001000023
04.07.2023,DSG,CRAWFORD PRIMARY SCHOOL,"9,017.50",DEVOLVED FORMULA CAPITAL,SCHOOLS CAPITATION,2103717547,5001000024
04.07.2023,DSG,DOG KENNEL HILL PRIMARY SCHOOL,"7,532.50",DEVOLVED FORMULA CAPITAL,SCHOOLS CAPITATION,2103717548,5001000025
04.07.2023,DSG,GOODRICH PRIMARY SCHOOL,"10,201.00",DEVOLVED FORMULA CAPITAL,SCHOOLS CAPITATION,2103717549,5001000028
04.07.2023,DSG,GRANGE PRIMARY SCHOOL,"8,065.75",DEVOLVED FORMULA CAPITAL,SCHOOLS CAPITATION,2103717550,5001000029
04.07.2023,DSG,EVELINA HOSPITAL SCHOOL,"8,860.00",DEVOLVED FORMULA CAPITAL,SCHOOLS CAPITATION,2103717574,5001000031
04.07.2023,DSG,PHOENIX PRIMARY SCHOOL,"10,684.75",DEVOLVED FORMULA CAPITAL,SCHOOLS CAPITATION,2103717568,5001000032
04.07.2023,DSG,FRIARS PRIMARY (FOUNDATION) SCHOOL,"6,097.00",DEVOLVED FORMULA CAPITAL,SCHOOLS CAPITATION,2103717572,5001000033
04.07.2023,DSG,HEBER PRIMARY SCHOOL,"8,467.38",DEVOLVED FORMULA CAPITAL,SCHOOLS CAPITATION,2103717551,5001000035
04.07.2023,DSG,HOLLYDALE PRIMARY SCHOOL,"5,800.00",DEVOLVED FORMULA CAPITAL,SCHOOLS CAPITATION,2103717552,5001000036
04.07.2023,DSG,ILDERTON PRIMARY SCHOOL,"7,012.75",DEVOLVED FORMULA CAPITAL,SCHOOLS CAPITATION,2103717553,5001000037
04.07.2023,DSG,IVYDALE PRIMARY SCHOOL,"9,593.50",DEVOLVED FORMULA CAPITAL,SCHOOLS CAPITATION,2103717554,5001000038
04.07.2023,DSG,JOHN RUSKIN PRIMARY SCHOOL,"9,384.25",DEVOLVED FORMULA CAPITAL,SCHOOLS CAPITATION,2103717555,5001000040
04.07.2023,DSG,KEYWORTH PRIMARY SCHOOL,"7,876.75",DEVOLVED FORMULA CAPITAL,SCHOOLS CAPITATION,2103717556,5001000041
04.07.2023,DSG,DULWICH WOOD PRIMARY SCHOOL,"8,185.00",DEVOLVED FORMULA CAPITAL,SCHOOLS CAPITATION,2103717557,5001000042
04.07.2023,DSG,HAYMERLE SCHOOL,"7,341.25",DEVOLVED FORMULA CAPITAL,SCHOOLS CAPITATION,2103717576,5001000045
04.07.2023,DSG,HIGHSHORE SCHOOL,"11,492.50",DEVOLVED FORMULA CAPITAL,SCHOOLS CAPITATION,2103717573,5001000046
04.07.2023,DSG,KINTORE WAY CHILDRENS CENTRE,"5,589.40",DEVOLVED FORMULA CAPITAL,SCHOOLS CAPITATION,2103717536,5001000047
04.07.2023,DSG,MICHAEL FARADAY PRIMARY SCHOOL,"8,680.00",DEVOLVED FORMULA CAPITAL,SCHOOLS CAPITATION,2103717558,5001000048
04.07.2023,DSG,NELL GWYNN NURSERY SCHOOL,"4,897.75",DEVOLVED FORMULA CAPITAL,SCHOOLS CAPITATION,2103717539,5001000049
04.07.2023,DSG,OLIVER GOLDSMITH PRIMARY SCHOOL,"7,904.65",DEVOLVED FORMULA CAPITAL,SCHOOLS CAPITATION,2103717571,5001000051
04.07.2023,DSG,PILGRIM'S WAY PRIMARY SCHOOL,"6,286.00",DEVOLVED FORMULA CAPITAL,SCHOOLS CAPITATION,2103717569,5001000054
04.07.2023,DSG,RIVERSIDE PRIMARY SCHOOL,"7,291.75",DEVOLVED FORMULA CAPITAL,SCHOOLS CAPITATION,2103717559,5001000056
04.07.2023,DSG,ROBERT BROWNING PRIMARY SCHOOL,"6,049.75",DEVOLVED FORMULA CAPITAL,SCHOOLS CAPITATION,2103717560,5001000057
04.07.2023,DSG,ROTHERHITHE PRIMARY SCHOOL,"8,050.00",DEVOLVED FORMULA CAPITAL,SCHOOLS CAPITATION,2103717561,5001000058
04.07.2023,DSG,RYE OAK PRIMARY SCHOOL,"7,253.50",DEVOLVED FORMULA CAPITAL,SCHOOLS CAPITATION,2103717582,5001000059
04.07.2023,DSG,SNOWSFIELDS PRIMARY SCHOOL,"6,175.75",DEVOLVED FORMULA CAPITAL,SCHOOLS CAPITATION,2103717562,5001000061
04.07.2023,DSG,SOUTHWARK PARK PRIMARY SCHOOL,"8,812.75",DEVOLVED FORMULA CAPITAL,SCHOOLS CAPITATION,2103717563,5001000062
04.07.2023,DSG,ANN BERNADT NURSERY SCHOOL,"4,600.75",DEVOLVED FORMULA CAPITAL,SCHOOLS CAPITATION,2103717537,5001000085
04.07.2023,DSG,THE GROVE CHILDRENS CENTRE,"4,717.75",DEVOLVED FORMULA CAPITAL,SCHOOLS CAPITATION,2103717540,5001000090
04.07.2023,DSG,TOWER BRIDGE PRIMARY SCHOOL,"5,995.75",DEVOLVED FORMULA CAPITAL,SCHOOLS CAPITATION,2103717564,5001000095
04.07.2023,DSG,TOWNSEND PRIMARY SCHOOL,"5,773.00",DEVOLVED FORMULA CAPITAL,SCHOOLS CAPITATION,2103717565,5001000096
04.07.2023,DSG,TUKE SCHOOL,"8,353.75",DEVOLVED FORMULA CAPITAL,SCHOOLS CAPITATION,2103717578,5001000097
04.07.2023,DSG,VICTORY SCHOOL,"5,390.50",DEVOLVED FORMULA CAPITAL,SCHOOLS CAPITATION,2103717566,5001000098
04.07.2023,DSG,DULWICH WOOD CHILDRENS CENTRE,"4,843.75",DEVOLVED FORMULA CAPITAL,SCHOOLS CAPITATION,2103717538,5001000099
04.07.2023,DSG,SOUTHWARK INCLUSIVE LEARNING SERVICE,"6,303.44",DEVOLVED FORMULA CAPITAL,SCHOOLS CAPITATION,2103717583,5001000105
04.07.2023,DSG,DOG KENNEL HILL PRIMARY SCHOOL,"131,495.00",DOG KENNEL HILL PRIMARY SCHOOL,SCHOOLS CAPITATION,2103717534,5001000025
04.07.2023,DSG,BACONS COLLEGE,"7,005.00",HOLIDAY SCHL MEAL VOUCHERS,SCHOOLS CAPITATION,2103717445,1693125
04.07.2023,DSG,THE ACADEMY @ PECKHAM,"4,695.00",HOLIDAY SCHL MEAL VOUCHERS,SCHOOLS CAPITATION,2103717471,1000041433
04.07.2023,DSG,CITY OF LONDON ACADEMY,"9,930.00",HOLIDAY SCHL MEAL VOUCHERS,SCHOOLS CAPITATION,2103717453,1000049128
04.07.2023,DSG,HARRIS ACADEMY BERMONDSEY,"6,060.00",HOLIDAY SCHL MEAL VOUCHERS,SCHOOLS CAPITATION,2103717470,1000052842
04.07.2023,DSG,HARRIS GIRLS ACADEMY EAST DULWICH,"4,860.00",HOLIDAY SCHL MEAL VOUCHERS,SCHOOLS CAPITATION,2103717473,1000052853
04.07.2023,DSG,ARK SCHOOLS T/A GLOBE ACADEMY,"11,415.00",HOLIDAY SCHL MEAL VOUCHERS,SCHOOLS CAPITATION,2103717443,1000060008
04.07.2023,DSG,WALWORTH ACADEMY,"9,015.00",HOLIDAY SCHL MEAL VOUCHERS,SCHOOLS CAPITATION,2103717444,1000062868
04.07.2023,DSG,THE CHARTER SCHOOL EDUCATIONAL TRUST,"10,170.00",HOLIDAY SCHL MEAL VOUCHERS,SCHOOLS CAPITATION,2103717527,1000064975
04.07.2023,DSG,KINGSDALE FOUNDATION SCHOOL,"4,785.00",HOLIDAY SCHL MEAL VOUCHERS,SCHOOLS CAPITATION,2103717486,1000065405
04.07.2023,DSG,THE CHARTER SCHOOLS EDUCATIONAL TRUST,600,HOLIDAY SCHL MEAL VOUCHERS,SCHOOLS CAPITATION,2103717459,1000066949
04.07.2023,DSG,REDRIFF PRIMARY SCHOOL,"1,695.00",HOLIDAY SCHL MEAL VOUCHERS,SCHOOLS CAPITATION,2103717496,1000067877
04.07.2023,DSG,HARRIS PRIMARY ACADEMY PECKHAM PARK,"1,740.00",HOLIDAY SCHL MEAL VOUCHERS,SCHOOLS CAPITATION,2103717475,1000068029
04.07.2023,DSG,GOOSE GREEN PRIMARY AND NURSERY SCHOOL,"2,085.00",HOLIDAY SCHL MEAL VOUCHERS,SCHOOLS CAPITATION,2103717466,1000070613
04.07.2023,DSG,GOOSE GREEN PRIMARY AND NURSERY SCHOOL,"2,175.00",HOLIDAY SCHL MEAL VOUCHERS,SCHOOLS CAPITATION,2103717437,1000070613
04.07.2023,DSG,ST MICHAELS CATHOLIC COLLEGE,"4,050.00",HOLIDAY SCHL MEAL VOUCHERS,SCHOOLS CAPITATION,2103717520,1000071000
04.07.2023,DSG,HARRIS PRIMARY FREE SCHOOL PECKHAM,"1,815.00",HOLIDAY SCHL MEAL VOUCHERS,SCHOOLS CAPITATION,2103717476,1000071084
04.07.2023,DSG,SACRED HEART CATHOLIC SCHOOL,"4,320.00",HOLIDAY SCHL MEAL VOUCHERS,SCHOOLS CAPITATION,2103717501,1000071091
04.07.2023,DSG,NEWLANDS ACADEMY,600,HOLIDAY SCHL MEAL VOUCHERS,SCHOOLS CAPITATION,2103717490,1000072567
04.07.2023,DSG,JUDITH KERR PRIMARY SCHOOL,300,HOLIDAY SCHL MEAL VOUCHERS,SCHOOLS CAPITATION,2103717484,1000073200
04.07.2023,DSG,JOHN DONNE PRIMARY SCHOOL,"2,940.00",HOLIDAY SCHL MEAL VOUCHERS,SCHOOLS CAPITATION,2103717436,1000073253
04.07.2023,DSG,JOHN DONNE PRIMARY SCHOOL,"3,135.00",HOLIDAY SCHL MEAL VOUCHERS,SCHOOLS CAPITATION,2103717482,1000073253
04.07.2023,DSG,ARK ALL SAINTS ACADEMY,"4,605.00",HOLIDAY SCHL MEAL VOUCHERS,SCHOOLS CAPITATION,2103717442,1000074048
04.07.2023,DSG,ANGEL OAK ACADEMY,"3,060.00",HOLIDAY SCHL MEAL VOUCHERS,SCHOOLS CAPITATION,2103717440,1000075379
04.07.2023,DSG,GALLEYWALL PRIMARY SCHOOL,"2,550.00",HOLIDAY SCHL MEAL VOUCHERS,SCHOOLS CAPITATION,2103717464,1000078128
04.07.2023,DSG,HARRIS BOYS ACADEMY EAST DULWICH,"3,492.00",HOLIDAY SCHL MEAL VOUCHERS,SCHOOLS CAPITATION,2103717472,1000079700
04.07.2023,DSG,THE BELHAM PRIMARY SCHOOL,960,HOLIDAY SCHL MEAL VOUCHERS,SCHOOLS CAPITATION,2103717525,1000080044
04.07.2023,DSG,HARRIS PRIMARY ACADEMY EAST DULWICH,"1,005.00",HOLIDAY SCHL MEAL VOUCHERS,SCHOOLS CAPITATION,2103717474,1000080271
04.07.2023,DSG,SPA EDUCATION TRUST,750,HOLIDAY SCHL MEAL VOUCHERS,SCHOOLS CAPITATION,2103717505,1000081600
04.07.2023,DSG,SPA EDUCATION TRUST,"1,050.00",HOLIDAY SCHL MEAL VOUCHERS,SCHOOLS CAPITATION,2103717504,1000081600
04.07.2023,DSG,ST PAULS C OF E PRIMARY SCHOOL,"1,455.00",HOLIDAY SCHL MEAL VOUCHERS,SCHOOLS CAPITATION,2103717521,1000082314
04.07.2023,DSG,JOHN KEATS PRIMARY SCHOOL,"2,115.00",HOLIDAY SCHL MEAL VOUCHERS,SCHOOLS CAPITATION,2103717483,1000082645
04.07.2023,DSG,HABERDASHERS' ASKE'S BOROUGH ACADEMY,"4,140.00",HOLIDAY SCHL MEAL VOUCHERS,SCHOOLS CAPITATION,2103717469,1000083830
04.07.2023,DSG,CHARTER SCHOOLS EDUCATIONAL TRUST T/A LYNDHURST PRIMARY SCHOOL,"1,440.00",HOLIDAY SCHL MEAL VOUCHERS,SCHOOLS CAPITATION,2103717488,1000086766
04.07.2023,DSG,ST. JOSEPH'S RC PRIMARY SCHOOL,"1,425.00",HOLIDAY SCHL MEAL VOUCHERS,SCHOOLS CAPITATION,2103717517,1000089163
04.07.2023,DSG,NOTRE DAME GIRLS - ACADEMY,"3,060.00",HOLIDAY SCHL MEAL VOUCHERS,SCHOOLS CAPITATION,2103717491,1000089292
04.07.2023,DSG,ALBION PRIMARY SCHOOL,"2,565.00",HOLIDAY SCHL MEAL VOUCHERS,SCHOOLS CAPITATION,2103717438,5001000000
04.07.2023,DSG,ALFRED SALTER PRIMARY SCHOOL,"1,890.00",HOLIDAY SCHL MEAL VOUCHERS,SCHOOLS CAPITATION,2103717439,5001000005
04.07.2023,DSG,BELLENDEN PRIMARY SCHOOL,"1,605.00",HOLIDAY SCHL MEAL VOUCHERS,SCHOOLS CAPITATION,2103717446,5001000007
04.07.2023,DSG,BEORMUND PRIMARY SCHOOL,360,HOLIDAY SCHL MEAL VOUCHERS,SCHOOLS CAPITATION,2103717447,5001000008
04.07.2023,DSG,BESSEMER GRANGE PRIMARY SCHOOL,"1,860.00",HOLIDAY SCHL MEAL VOUCHERS,SCHOOLS CAPITATION,2103717448,5001000009
04.07.2023,DSG,BOUCHER C OF E PRIMARY SCHOOL,"1,020.00",HOLIDAY SCHL MEAL VOUCHERS,SCHOOLS CAPITATION,2103717449,5001000011
04.07.2023,DSG,BRUNSWICK PARK PRIMARY SCHOOL,"2,865.00",HOLIDAY SCHL MEAL VOUCHERS,SCHOOLS CAPITATION,2103717450,5001000013
04.07.2023,DSG,CAMELOT PRIMARY SCHOOL,"3,210.00",HOLIDAY SCHL MEAL VOUCHERS,SCHOOLS CAPITATION,2103717451,5001000014
04.07.2023,DSG,CHARLOTTE  SHARMAN PRIMARY SCHOOL,"1,095.00",HOLIDAY SCHL MEAL VOUCHERS,SCHOOLS CAPITATION,2103717452,5001000016
04.07.2023,DSG,ST JOSEPHS RC JUNIOR  SCHOOL,"1,245.00",HOLIDAY SCHL MEAL VOUCHERS,SCHOOLS CAPITATION,2103717514,5001000017
04.07.2023,DSG,ST JOSEPHS CATHOLIC INFANTS SCHOOL,630,HOLIDAY SCHL MEAL VOUCHERS,SCHOOLS CAPITATION,2103717513,5001000018
04.07.2023,DSG,ST JUDES CHURCH OF ENGLAND PRIMARY,585,HOLIDAY SCHL MEAL VOUCHERS,SCHOOLS CAPITATION,2103717518,5001000019
04.07.2023,DSG,COBOURG PRIMARY SCHOOL,990,HOLIDAY SCHL MEAL VOUCHERS,SCHOOLS CAPITATION,2103717454,5001000021
04.07.2023,DSG,COMBER GROVE PRIMARY SCHOOL,975,HOLIDAY SCHL MEAL VOUCHERS,SCHOOLS CAPITATION,2103717455,5001000022
04.07.2023,DSG,CRAMPTON PRIMARY SCHOOL,960,HOLIDAY SCHL MEAL VOUCHERS,SCHOOLS CAPITATION,2103717456,5001000023
04.07.2023,DSG,CRAWFORD PRIMARY SCHOOL,"2,715.00",HOLIDAY SCHL MEAL VOUCHERS,SCHOOLS CAPITATION,2103717457,5001000024
04.07.2023,DSG,DOG KENNEL HILL PRIMARY SCHOOL,"1,500.00",HOLIDAY SCHL MEAL VOUCHERS,SCHOOLS CAPITATION,2103717458,5001000025
04.07.2023,DSG,DULWICH VILLAGE CE INFANTS SCHOOL,330,HOLIDAY SCHL MEAL VOUCHERS,SCHOOLS CAPITATION,2103717460,5001000027
04.07.2023,DSG,GOODRICH PRIMARY SCHOOL,"1,740.00",HOLIDAY SCHL MEAL VOUCHERS,SCHOOLS CAPITATION,2103717465,5001000028
04.07.2023,DSG,GRANGE PRIMARY SCHOOL,"2,565.00",HOLIDAY SCHL MEAL VOUCHERS,SCHOOLS CAPITATION,2103717467,5001000029
04.07.2023,DSG,ENGLISH MARTYRS RC PRIMARY SCHOOL,"1,965.00",HOLIDAY SCHL MEAL VOUCHERS,SCHOOLS CAPITATION,2103717462,5001000030
04.07.2023,DSG,PHOENIX PRIMARY SCHOOL,"3,060.00",HOLIDAY SCHL MEAL VOUCHERS,SCHOOLS CAPITATION,2103717494,5001000032
04.07.2023,DSG,FRIARS PRIMARY (FOUNDATION) SCHOOL,"1,440.00",HOLIDAY SCHL MEAL VOUCHERS,SCHOOLS CAPITATION,2103717463,5001000033
04.07.2023,DSG,HEBER PRIMARY SCHOOL,"1,020.00",HOLIDAY SCHL MEAL VOUCHERS,SCHOOLS CAPITATION,2103717478,5001000035
04.07.2023,DSG,HOLLYDALE PRIMARY SCHOOL,"1,005.00",HOLIDAY SCHL MEAL VOUCHERS,SCHOOLS CAPITATION,2103717479,5001000036
04.07.2023,DSG,ILDERTON PRIMARY SCHOOL,"1,395.00",HOLIDAY SCHL MEAL VOUCHERS,SCHOOLS CAPITATION,2103717480,5001000037
04.07.2023,DSG,IVYDALE PRIMARY SCHOOL,"1,185.00",HOLIDAY SCHL MEAL VOUCHERS,SCHOOLS CAPITATION,2103717481,5001000038
04.07.2023,DSG,KEYWORTH PRIMARY SCHOOL,"2,715.00",HOLIDAY SCHL MEAL VOUCHERS,SCHOOLS CAPITATION,2103717485,5001000041
04.07.2023,DSG,DULWICH WOOD PRIMARY SCHOOL,"1,560.00",HOLIDAY SCHL MEAL VOUCHERS,SCHOOLS CAPITATION,2103717461,5001000042
04.07.2023,DSG,HAYMERLE SCHOOL,675,HOLIDAY SCHL MEAL VOUCHERS,SCHOOLS CAPITATION,2103717477,5001000045
04.07.2023,DSG,KINTORE WAY CHILDRENS CENTRE,"1,815.00",HOLIDAY SCHL MEAL VOUCHERS,SCHOOLS CAPITATION,2103717487,5001000047
04.07.2023,DSG,MICHAEL FARADAY PRIMARY SCHOOL,"2,325.00",HOLIDAY SCHL MEAL VOUCHERS,SCHOOLS CAPITATION,2103717489,5001000048
04.07.2023,DSG,OLIVER GOLDSMITH PRIMARY SCHOOL,"2,700.00",HOLIDAY SCHL MEAL VOUCHERS,SCHOOLS CAPITATION,2103717492,5001000051
04.07.2023,DSG,PETER HILLS CE SCHOOL,900,HOLIDAY SCHL MEAL VOUCHERS,SCHOOLS CAPITATION,2103717493,5001000053
04.07.2023,DSG,PILGRIM'S WAY PRIMARY SCHOOL,"1,695.00",HOLIDAY SCHL MEAL VOUCHERS,SCHOOLS CAPITATION,2103717495,5001000054
04.07.2023,DSG,RIVERSIDE PRIMARY SCHOOL,"1,845.00",HOLIDAY SCHL MEAL VOUCHERS,SCHOOLS CAPITATION,2103717497,5001000056
04.07.2023,DSG,ROBERT BROWNING PRIMARY SCHOOL,"1,395.00",HOLIDAY SCHL MEAL VOUCHERS,SCHOOLS CAPITATION,2103717498,5001000057
04.07.2023,DSG,ROTHERHITHE PRIMARY SCHOOL,"2,265.00",HOLIDAY SCHL MEAL VOUCHERS,SCHOOLS CAPITATION,2103717499,5001000058
04.07.2023,DSG,RYE OAK PRIMARY SCHOOL,"2,370.00",HOLIDAY SCHL MEAL VOUCHERS,SCHOOLS CAPITATION,2103717500,5001000059
04.07.2023,DSG,SNOWSFIELDS PRIMARY SCHOOL,"1,410.00",HOLIDAY SCHL MEAL VOUCHERS,SCHOOLS CAPITATION,2103717502,5001000061
04.07.2023,DSG,SOUTHWARK PARK PRIMARY SCHOOL,"2,625.00",HOLIDAY SCHL MEAL VOUCHERS,SCHOOLS CAPITATION,2103717503,5001000062
04.07.2023,DSG,ST ANTHONYS RC SCHOOL,"1,485.00",HOLIDAY SCHL MEAL VOUCHERS,SCHOOLS CAPITATION,2103717506,5001000064
04.07.2023,DSG,ST FRANCESCA CABRINI PRIMARY SCHOOL,510,HOLIDAY SCHL MEAL VOUCHERS,SCHOOLS CAPITATION,2103717507,5001000065
04.07.2023,DSG,ST FRANCIS'S RC PRIMARY SCHOOL,"1,710.00",HOLIDAY SCHL MEAL VOUCHERS,SCHOOLS CAPITATION,2103717508,5001000067
04.07.2023,DSG,ST GEORGES CE SCHOOL,"1,395.00",HOLIDAY SCHL MEAL VOUCHERS,SCHOOLS CAPITATION,2103717509,5001000069
04.07.2023,DSG,ST JAMES THE GREAT RC SCHOOL,"1,290.00",HOLIDAY SCHL MEAL VOUCHERS,SCHOOLS CAPITATION,2103717510,5001000071
04.07.2023,DSG,ST JOHNS & ST CLEMENTS CE SCHOOL,"1,230.00",HOLIDAY SCHL MEAL VOUCHERS,SCHOOLS CAPITATION,2103717511,5001000073
04.07.2023,DSG,THE ST THOMAS THE APOSTLE COLLEGE,"5,730.00",HOLIDAY SCHL MEAL VOUCHERS,SCHOOLS CAPITATION,2103717524,5001000074
04.07.2023,DSG,ST JOHNS RC PRIMARY SCHOOL,"1,050.00",HOLIDAY SCHL MEAL VOUCHERS,SCHOOLS CAPITATION,2103717512,5001000075
04.07.2023,DSG,ST JOSEPHS CATHOLIC SCHOOL,975,HOLIDAY SCHL MEAL VOUCHERS,SCHOOLS CAPITATION,2103717516,5001000076
04.07.2023,DSG,ST JOSEPHS CATHOLIC PRIMARY SCHOOL,870,HOLIDAY SCHL MEAL VOUCHERS,SCHOOLS CAPITATION,2103717515,5001000078
04.07.2023,DSG,ST MARY MAGDALENE CE SCHOOL,885,HOLIDAY SCHL MEAL VOUCHERS,SCHOOLS CAPITATION,2103717519,5001000080
04.07.2023,DSG,ST PETERS CE SCHOOL,"1,305.00",HOLIDAY SCHL MEAL VOUCHERS,SCHOOLS CAPITATION,2103717522,5001000083
04.07.2023,DSG,ST SAVIOURS & ST OLAVES SCHOOL,"4,320.00",HOLIDAY SCHL MEAL VOUCHERS,SCHOOLS CAPITATION,2103717523,5001000084
04.07.2023,DSG,ANN BERNADT NURSERY SCHOOL,630,HOLIDAY SCHL MEAL VOUCHERS,SCHOOLS CAPITATION,2103717441,5001000085
04.07.2023,DSG,CATHEDRAL SCHOOL OF ST SAVIOUR & MARY,675,HOLIDAY SCHL MEAL VOUCHERS,SCHOOLS CAPITATION,2103717526,5001000088
04.07.2023,DSG,THE GROVE CHILDRENS CENTRE,720,HOLIDAY SCHL MEAL VOUCHERS,SCHOOLS CAPITATION,2103717468,5001000090
04.07.2023,DSG,TOWER BRIDGE PRIMARY SCHOOL,"1,620.00",HOLIDAY SCHL MEAL VOUCHERS,SCHOOLS CAPITATION,2103717528,5001000095
04.07.2023,DSG,TOWNSEND PRIMARY SCHOOL,690,HOLIDAY SCHL MEAL VOUCHERS,SCHOOLS CAPITATION,2103717529,5001000096
04.07.2023,DSG,TUKE SCHOOL,945,HOLIDAY SCHL MEAL VOUCHERS,SCHOOLS CAPITATION,2103717530,5001000097
04.07.2023,DSG,VICTORY SCHOOL,855,HOLIDAY SCHL MEAL VOUCHERS,SCHOOLS CAPITATION,2103717531,5001000098
04.07.2023,DSG,CAMELOT PRIMARY SCHOOL,"9,948.00",MATERNITY COVER,SCHOOLS CAPITATION,2103717532,5001000014
04.07.2023,DSG,MICHAEL FARADAY PRIMARY SCHOOL,"8,581.00",MATERNITY COVER,SCHOOLS CAPITATION,2103717533,5001000048
04.07.2023,DSG,MONA CAUX,"2,772.90",NURSERY ED GRANT 3 AND 4 YR OLDS,GRANTS,2103717335,1000078021
04.07.2023,DSG,ROTHERHITHE PRIMARY SCHOOL,"161,701.00",ROTHERHITHE PRIMARY SCHOOL,SCHOOLS CAPITATION,2103717535,5001000058
04.07.2023,DSG,STORYTIME MAGAZINE LTD,"1,152.00",VIRTUAL SCHOOL PP,BOOKS & PUBLICATIONS,5902587102,1000089779
04.07.2023,EDUCATION,DAVID LAWSON,"1,230.83",CENTRAL COSTS - SEN,LEGAL FEES & COURT COSTS,2103717310,1000074102
04.07.2023,EDUCATION,JACQUELINE BURKE,366.6,EY & PUPIL TRACKING,TRAINING,5902587096,1000089835
04.07.2023,EDUCATION,ALBION PRIMARY SCHOOL,"22,532.00",UNIVERSAL INFANT FREE SCHOOL MEALS,SCHOOLS CAPITATION,2103717641,5001000000
04.07.2023,EDUCATION,ALBION PRIMARY SCHOOL,"31,547.00",UNIVERSAL INFANT FREE SCHOOL MEALS,SCHOOLS CAPITATION,2103717584,5001000000
04.07.2023,EDUCATION,ALFRED SALTER PRIMARY SCHOOL,"26,367.00",UNIVERSAL INFANT FREE SCHOOL MEALS,SCHOOLS CAPITATION,2103717669,5001000005
04.07.2023,EDUCATION,ALFRED SALTER PRIMARY SCHOOL,"35,613.00",UNIVERSAL INFANT FREE SCHOOL MEALS,SCHOOLS CAPITATION,2103717613,5001000005
04.07.2023,EDUCATION,BELLENDEN PRIMARY SCHOOL,"13,601.00",UNIVERSAL INFANT FREE SCHOOL MEALS,SCHOOLS CAPITATION,2103717585,5001000007
04.07.2023,EDUCATION,BELLENDEN PRIMARY SCHOOL,"14,595.00",UNIVERSAL INFANT FREE SCHOOL MEALS,SCHOOLS CAPITATION,2103717642,5001000007
04.07.2023,EDUCATION,BEORMUND PRIMARY SCHOOL,-401,UNIVERSAL INFANT FREE SCHOOL MEALS,SCHOOLS CAPITATION,2103717698,5001000008
04.07.2023,EDUCATION,BESSEMER GRANGE PRIMARY SCHOOL,"24,039.00",UNIVERSAL INFANT FREE SCHOOL MEALS,SCHOOLS CAPITATION,2103717671,5001000009
04.07.2023,EDUCATION,BESSEMER GRANGE PRIMARY SCHOOL,"41,221.00",UNIVERSAL INFANT FREE SCHOOL MEALS,SCHOOLS CAPITATION,2103717638,5001000009
04.07.2023,EDUCATION,BOUCHER C OF E PRIMARY SCHOOL,"10,188.00",UNIVERSAL INFANT FREE SCHOOL MEALS,SCHOOLS CAPITATION,2103717673,5001000011
04.07.2023,EDUCATION,BOUCHER C OF E PRIMARY SCHOOL,"15,563.00",UNIVERSAL INFANT FREE SCHOOL MEALS,SCHOOLS CAPITATION,2103717615,5001000011
04.07.2023,EDUCATION,BRUNSWICK PARK PRIMARY SCHOOL,"19,594.00",UNIVERSAL INFANT FREE SCHOOL MEALS,SCHOOLS CAPITATION,2103717672,5001000013
04.07.2023,EDUCATION,BRUNSWICK PARK PRIMARY SCHOOL,"23,695.00",UNIVERSAL INFANT FREE SCHOOL MEALS,SCHOOLS CAPITATION,2103717639,5001000013
04.07.2023,EDUCATION,CAMELOT PRIMARY SCHOOL,"9,825.00",UNIVERSAL INFANT FREE SCHOOL MEALS,SCHOOLS CAPITATION,2103717643,5001000014
04.07.2023,EDUCATION,CAMELOT PRIMARY SCHOOL,"17,386.00",UNIVERSAL INFANT FREE SCHOOL MEALS,SCHOOLS CAPITATION,2103717586,5001000014
04.07.2023,EDUCATION,CHARLOTTE  SHARMAN PRIMARY SCHOOL,"5,113.00",UNIVERSAL INFANT FREE SCHOOL MEALS,SCHOOLS CAPITATION,2103717694,5001000016
04.07.2023,EDUCATION,CHARLOTTE  SHARMAN PRIMARY SCHOOL,"10,657.00",UNIVERSAL INFANT FREE SCHOOL MEALS,SCHOOLS CAPITATION,2103717610,5001000016
04.07.2023,EDUCATION,ST JOSEPHS CATHOLIC INFANTS SCHOOL,"8,413.00",UNIVERSAL INFANT FREE SCHOOL MEALS,SCHOOLS CAPITATION,2103717692,5001000018
04.07.2023,EDUCATION,ST JOSEPHS CATHOLIC INFANTS SCHOOL,"19,629.00",UNIVERSAL INFANT FREE SCHOOL MEALS,SCHOOLS CAPITATION,2103717634,5001000018
04.07.2023,EDUCATION,ST JUDES CHURCH OF ENGLAND PRIMARY,"1,660.00",UNIVERSAL INFANT FREE SCHOOL MEALS,SCHOOLS CAPITATION,2103717684,5001000019
04.07.2023,EDUCATION,ST JUDES CHURCH OF ENGLAND PRIMARY,"4,207.00",UNIVERSAL INFANT FREE SCHOOL MEALS,SCHOOLS CAPITATION,2103717626,5001000019
04.07.2023,EDUCATION,CHERRY GARDEN SCHOOL,"6,029.00",UNIVERSAL INFANT FREE SCHOOL MEALS,SCHOOLS CAPITATION,2103717696,5001000020
04.07.2023,EDUCATION,CHERRY GARDEN SCHOOL,"6,310.00",UNIVERSAL INFANT FREE SCHOOL MEALS,SCHOOLS CAPITATION,2103717637,5001000020
04.07.2023,EDUCATION,COBOURG PRIMARY SCHOOL,"8,566.00",UNIVERSAL INFANT FREE SCHOOL MEALS,SCHOOLS CAPITATION,2103717644,5001000021
04.07.2023,EDUCATION,COBOURG PRIMARY SCHOOL,"13,180.00",UNIVERSAL INFANT FREE SCHOOL MEALS,SCHOOLS CAPITATION,2103717587,5001000021
04.07.2023,EDUCATION,COMBER GROVE PRIMARY SCHOOL,"5,228.00",UNIVERSAL INFANT FREE SCHOOL MEALS,SCHOOLS CAPITATION,2103717645,5001000022
04.07.2023,EDUCATION,COMBER GROVE PRIMARY SCHOOL,"10,236.00",UNIVERSAL INFANT FREE SCHOOL MEALS,SCHOOLS CAPITATION,2103717588,5001000022
04.07.2023,EDUCATION,CRAMPTON PRIMARY SCHOOL,"9,807.00",UNIVERSAL INFANT FREE SCHOOL MEALS,SCHOOLS CAPITATION,2103717646,5001000023
04.07.2023,EDUCATION,CRAMPTON PRIMARY SCHOOL,"15,003.00",UNIVERSAL INFANT FREE SCHOOL MEALS,SCHOOLS CAPITATION,2103717589,5001000023
04.07.2023,EDUCATION,CRAWFORD PRIMARY SCHOOL,"3,586.00",UNIVERSAL INFANT FREE SCHOOL MEALS,SCHOOLS CAPITATION,2103717647,5001000024
04.07.2023,EDUCATION,CRAWFORD PRIMARY SCHOOL,"17,246.00",UNIVERSAL INFANT FREE SCHOOL MEALS,SCHOOLS CAPITATION,2103717590,5001000024
04.07.2023,EDUCATION,DOG KENNEL HILL PRIMARY SCHOOL,"7,364.00",UNIVERSAL INFANT FREE SCHOOL MEALS,SCHOOLS CAPITATION,2103717648,5001000025
04.07.2023,EDUCATION,DOG KENNEL HILL PRIMARY SCHOOL,"14,161.00",UNIVERSAL INFANT FREE SCHOOL MEALS,SCHOOLS CAPITATION,2103717591,5001000025
04.07.2023,EDUCATION,DULWICH VILLAGE CE INFANTS SCHOOL,"39,151.00",UNIVERSAL INFANT FREE SCHOOL MEALS,SCHOOLS CAPITATION,2103717674,5001000027
04.07.2023,EDUCATION,DULWICH VILLAGE CE INFANTS SCHOOL,"61,270.00",UNIVERSAL INFANT FREE SCHOOL MEALS,SCHOOLS CAPITATION,2103717616,5001000027
04.07.2023,EDUCATION,GOODRICH PRIMARY SCHOOL,"31,270.00",UNIVERSAL INFANT FREE SCHOOL MEALS,SCHOOLS CAPITATION,2103717649,5001000028
04.07.2023,EDUCATION,GOODRICH PRIMARY SCHOOL,"49,493.00",UNIVERSAL INFANT FREE SCHOOL MEALS,SCHOOLS CAPITATION,2103717592,5001000028
04.07.2023,EDUCATION,GRANGE PRIMARY SCHOOL,"7,517.00",UNIVERSAL INFANT FREE SCHOOL MEALS,SCHOOLS CAPITATION,2103717650,5001000029
04.07.2023,EDUCATION,GRANGE PRIMARY SCHOOL,"15,563.00",UNIVERSAL INFANT FREE SCHOOL MEALS,SCHOOLS CAPITATION,2103717593,5001000029
04.07.2023,EDUCATION,ENGLISH MARTYRS RC PRIMARY SCHOOL,"15,301.00",UNIVERSAL INFANT FREE SCHOOL MEALS,SCHOOLS CAPITATION,2103717675,5001000030
04.07.2023,EDUCATION,ENGLISH MARTYRS RC PRIMARY SCHOOL,"20,330.00",UNIVERSAL INFANT FREE SCHOOL MEALS,SCHOOLS CAPITATION,2103717617,5001000030
04.07.2023,EDUCATION,PHOENIX PRIMARY SCHOOL,"17,896.00",UNIVERSAL INFANT FREE SCHOOL MEALS,SCHOOLS CAPITATION,2103717667,5001000032
04.07.2023,EDUCATION,PHOENIX PRIMARY SCHOOL,"35,332.00",UNIVERSAL INFANT FREE SCHOOL MEALS,SCHOOLS CAPITATION,2103717611,5001000032
04.07.2023,EDUCATION,FRIARS PRIMARY (FOUNDATION) SCHOOL,"5,112.00",UNIVERSAL INFANT FREE SCHOOL MEALS,SCHOOLS CAPITATION,2103717693,5001000033
04.07.2023,EDUCATION,FRIARS PRIMARY (FOUNDATION) SCHOOL,"11,638.00",UNIVERSAL INFANT FREE SCHOOL MEALS,SCHOOLS CAPITATION,2103717635,5001000033
04.07.2023,EDUCATION,HEBER PRIMARY SCHOOL,"28,923.00",UNIVERSAL INFANT FREE SCHOOL MEALS,SCHOOLS CAPITATION,2103717651,5001000035
04.07.2023,EDUCATION,HEBER PRIMARY SCHOOL,"42,903.00",UNIVERSAL INFANT FREE SCHOOL MEALS,SCHOOLS CAPITATION,2103717594,5001000035
04.07.2023,EDUCATION,HOLLYDALE PRIMARY SCHOOL,"8,395.00",UNIVERSAL INFANT FREE SCHOOL MEALS,SCHOOLS CAPITATION,2103717652,5001000036
04.07.2023,EDUCATION,HOLLYDALE PRIMARY SCHOOL,"10,376.00",UNIVERSAL INFANT FREE SCHOOL MEALS,SCHOOLS CAPITATION,2103717595,5001000036
04.07.2023,EDUCATION,ILDERTON PRIMARY SCHOOL,"6,257.00",UNIVERSAL INFANT FREE SCHOOL MEALS,SCHOOLS CAPITATION,2103717653,5001000037
04.07.2023,EDUCATION,ILDERTON PRIMARY SCHOOL,"11,357.00",UNIVERSAL INFANT FREE SCHOOL MEALS,SCHOOLS CAPITATION,2103717596,5001000037
04.07.2023,EDUCATION,IVYDALE PRIMARY SCHOOL,"28,370.00",UNIVERSAL INFANT FREE SCHOOL MEALS,SCHOOLS CAPITATION,2103717654,5001000038
04.07.2023,EDUCATION,IVYDALE PRIMARY SCHOOL,"46,408.00",UNIVERSAL INFANT FREE SCHOOL MEALS,SCHOOLS CAPITATION,2103717597,5001000038
04.07.2023,EDUCATION,JOHN RUSKIN PRIMARY SCHOOL,"22,742.00",UNIVERSAL INFANT FREE SCHOOL MEALS,SCHOOLS CAPITATION,2103717655,5001000040
04.07.2023,EDUCATION,JOHN RUSKIN PRIMARY SCHOOL,"28,322.00",UNIVERSAL INFANT FREE SCHOOL MEALS,SCHOOLS CAPITATION,2103717598,5001000040
04.07.2023,EDUCATION,KEYWORTH PRIMARY SCHOOL,"16,388.00",UNIVERSAL INFANT FREE SCHOOL MEALS,SCHOOLS CAPITATION,2103717656,5001000041
04.07.2023,EDUCATION,KEYWORTH PRIMARY SCHOOL,"20,751.00",UNIVERSAL INFANT FREE SCHOOL MEALS,SCHOOLS CAPITATION,2103717599,5001000041
04.07.2023,EDUCATION,DULWICH WOOD PRIMARY SCHOOL,"29,496.00",UNIVERSAL INFANT FREE SCHOOL MEALS,SCHOOLS CAPITATION,2103717657,5001000042
04.07.2023,EDUCATION,DULWICH WOOD PRIMARY SCHOOL,"36,874.00",UNIVERSAL INFANT FREE SCHOOL MEALS,SCHOOLS CAPITATION,2103717600,5001000042
04.07.2023,EDUCATION,HAYMERLE SCHOOL,"1,755.00",UNIVERSAL INFANT FREE SCHOOL MEALS,SCHOOLS CAPITATION,2103717695,5001000045
04.07.2023,EDUCATION,HAYMERLE SCHOOL,"3,366.00",UNIVERSAL INFANT FREE SCHOOL MEALS,SCHOOLS CAPITATION,2103717636,5001000045
04.07.2023,EDUCATION,MICHAEL FARADAY PRIMARY SCHOOL,"17,381.00",UNIVERSAL INFANT FREE SCHOOL MEALS,SCHOOLS CAPITATION,2103717658,5001000048
04.07.2023,EDUCATION,MICHAEL FARADAY PRIMARY SCHOOL,"27,902.00",UNIVERSAL INFANT FREE SCHOOL MEALS,SCHOOLS CAPITATION,2103717601,5001000048
04.07.2023,EDUCATION,OLIVER GOLDSMITH PRIMARY SCHOOL,"20,586.00",UNIVERSAL INFANT FREE SCHOOL MEALS,SCHOOLS CAPITATION,2103717670,5001000051
04.07.2023,EDUCATION,OLIVER GOLDSMITH PRIMARY SCHOOL,"22,994.00",UNIVERSAL INFANT FREE SCHOOL MEALS,SCHOOLS CAPITATION,2103717614,5001000051
04.07.2023,EDUCATION,PETER HILLS CE SCHOOL,"6,219.00",UNIVERSAL INFANT FREE SCHOOL MEALS,SCHOOLS CAPITATION,2103717686,5001000053
04.07.2023,EDUCATION,PETER HILLS CE SCHOOL,"8,553.00",UNIVERSAL INFANT FREE SCHOOL MEALS,SCHOOLS CAPITATION,2103717628,5001000053
04.07.2023,EDUCATION,PILGRIM'S WAY PRIMARY SCHOOL,"3,377.00",UNIVERSAL INFANT FREE SCHOOL MEALS,SCHOOLS CAPITATION,2103717668,5001000054
04.07.2023,EDUCATION,PILGRIM'S WAY PRIMARY SCHOOL,"7,712.00",UNIVERSAL INFANT FREE SCHOOL MEALS,SCHOOLS CAPITATION,2103717612,5001000054
04.07.2023,EDUCATION,RIVERSIDE PRIMARY SCHOOL,"16,713.00",UNIVERSAL INFANT FREE SCHOOL MEALS,SCHOOLS CAPITATION,2103717659,5001000056
04.07.2023,EDUCATION,RIVERSIDE PRIMARY SCHOOL,"22,013.00",UNIVERSAL INFANT FREE SCHOOL MEALS,SCHOOLS CAPITATION,2103717602,5001000056
04.07.2023,EDUCATION,ROBERT BROWNING PRIMARY SCHOOL,"8,853.00",UNIVERSAL INFANT FREE SCHOOL MEALS,SCHOOLS CAPITATION,2103717660,5001000057
04.07.2023,EDUCATION,ROBERT BROWNING PRIMARY SCHOOL,"10,657.00",UNIVERSAL INFANT FREE SCHOOL MEALS,SCHOOLS CAPITATION,2103717603,5001000057
04.07.2023,EDUCATION,ROTHERHITHE PRIMARY SCHOOL,"10,531.00",UNIVERSAL INFANT FREE SCHOOL MEALS,SCHOOLS CAPITATION,2103717661,5001000058
04.07.2023,EDUCATION,ROTHERHITHE PRIMARY SCHOOL,"17,246.00",UNIVERSAL INFANT FREE SCHOOL MEALS,SCHOOLS CAPITATION,2103717604,5001000058
04.07.2023,EDUCATION,RYE OAK PRIMARY SCHOOL,"6,868.00",UNIVERSAL INFANT FREE SCHOOL MEALS,SCHOOLS CAPITATION,2103717690,5001000059
04.07.2023,EDUCATION,RYE OAK PRIMARY SCHOOL,"12,058.00",UNIVERSAL INFANT FREE SCHOOL MEALS,SCHOOLS CAPITATION,2103717640,5001000059
04.07.2023,EDUCATION,SNOWSFIELDS PRIMARY SCHOOL,"6,887.00",UNIVERSAL INFANT FREE SCHOOL MEALS,SCHOOLS CAPITATION,2103717662,5001000061
04.07.2023,EDUCATION,SNOWSFIELDS PRIMARY SCHOOL,"10,516.00",UNIVERSAL INFANT FREE SCHOOL MEALS,SCHOOLS CAPITATION,2103717605,5001000061
04.07.2023,EDUCATION,SOUTHWARK PARK PRIMARY SCHOOL,"9,254.00",UNIVERSAL INFANT FREE SCHOOL MEALS,SCHOOLS CAPITATION,2103717663,5001000062
04.07.2023,EDUCATION,SOUTHWARK PARK PRIMARY SCHOOL,"19,489.00",UNIVERSAL INFANT FREE SCHOOL MEALS,SCHOOLS CAPITATION,2103717606,5001000062
04.07.2023,EDUCATION,ST ANTHONYS RC SCHOOL,"23,486.00",UNIVERSAL INFANT FREE SCHOOL MEALS,SCHOOLS CAPITATION,2103717691,5001000064
04.07.2023,EDUCATION,ST ANTHONYS RC SCHOOL,"33,930.00",UNIVERSAL INFANT FREE SCHOOL MEALS,SCHOOLS CAPITATION,2103717633,5001000064
04.07.2023,EDUCATION,ST FRANCESCA CABRINI PRIMARY SCHOOL,"-3,244.00",UNIVERSAL INFANT FREE SCHOOL MEALS,SCHOOLS CAPITATION,2103717697,5001000065
04.07.2023,EDUCATION,ST FRANCESCA CABRINI PRIMARY SCHOOL,"4,067.00",UNIVERSAL INFANT FREE SCHOOL MEALS,SCHOOLS CAPITATION,2103717632,5001000065
04.07.2023,EDUCATION,ST FRANCIS'S RC PRIMARY SCHOOL,"8,338.00",UNIVERSAL INFANT FREE SCHOOL MEALS,SCHOOLS CAPITATION,2103717677,5001000067
04.07.2023,EDUCATION,ST FRANCIS'S RC PRIMARY SCHOOL,"18,929.00",UNIVERSAL INFANT FREE SCHOOL MEALS,SCHOOLS CAPITATION,2103717619,5001000067
04.07.2023,EDUCATION,ST GEORGES RC SCHOOL,"4,064.00",UNIVERSAL INFANT FREE SCHOOL MEALS,SCHOOLS CAPITATION,2103717679,5001000068
04.07.2023,EDUCATION,ST GEORGES RC SCHOOL,"10,096.00",UNIVERSAL INFANT FREE SCHOOL MEALS,SCHOOLS CAPITATION,2103717621,5001000068
04.07.2023,EDUCATION,ST GEORGES CE SCHOOL,"2,995.00",UNIVERSAL INFANT FREE SCHOOL MEALS,SCHOOLS CAPITATION,2103717678,5001000069
04.07.2023,EDUCATION,ST GEORGES CE SCHOOL,"6,170.00",UNIVERSAL INFANT FREE SCHOOL MEALS,SCHOOLS CAPITATION,2103717620,5001000069
04.07.2023,EDUCATION,ST JAMES CE PRIMARY SCHOOL,"10,799.00",UNIVERSAL INFANT FREE SCHOOL MEALS,SCHOOLS CAPITATION,2103717680,5001000070
04.07.2023,EDUCATION,ST JAMES CE PRIMARY SCHOOL,"15,283.00",UNIVERSAL INFANT FREE SCHOOL MEALS,SCHOOLS CAPITATION,2103717622,5001000070
04.07.2023,EDUCATION,ST JAMES THE GREAT RC SCHOOL,"14,042.00",UNIVERSAL INFANT FREE SCHOOL MEALS,SCHOOLS CAPITATION,2103717676,5001000071
04.07.2023,EDUCATION,ST JAMES THE GREAT RC SCHOOL,"16,124.00",UNIVERSAL INFANT FREE SCHOOL MEALS,SCHOOLS CAPITATION,2103717618,5001000071
04.07.2023,EDUCATION,ST JOHNS & ST CLEMENTS CE SCHOOL,"30,736.00",UNIVERSAL INFANT FREE SCHOOL MEALS,SCHOOLS CAPITATION,2103717681,5001000073
04.07.2023,EDUCATION,ST JOHNS & ST CLEMENTS CE SCHOOL,"39,678.00",UNIVERSAL INFANT FREE SCHOOL MEALS,SCHOOLS CAPITATION,2103717623,5001000073
04.07.2023,EDUCATION,ST JOHNS RC PRIMARY SCHOOL,"12,096.00",UNIVERSAL INFANT FREE SCHOOL MEALS,SCHOOLS CAPITATION,2103717689,5001000075
04.07.2023,EDUCATION,ST JOHNS RC PRIMARY SCHOOL,"18,368.00",UNIVERSAL INFANT FREE SCHOOL MEALS,SCHOOLS CAPITATION,2103717631,5001000075
04.07.2023,EDUCATION,ST JOSEPHS CATHOLIC SCHOOL,"11,333.00",UNIVERSAL INFANT FREE SCHOOL MEALS,SCHOOLS CAPITATION,2103717683,5001000076
04.07.2023,EDUCATION,ST JOSEPHS CATHOLIC SCHOOL,"15,283.00",UNIVERSAL INFANT FREE SCHOOL MEALS,SCHOOLS CAPITATION,2103717625,5001000076
04.07.2023,EDUCATION,ST JOSEPHS CATHOLIC PRIMARY SCHOOL,"13,565.00",UNIVERSAL INFANT FREE SCHOOL MEALS,SCHOOLS CAPITATION,2103717682,5001000078
04.07.2023,EDUCATION,ST JOSEPHS CATHOLIC PRIMARY SCHOOL,"18,368.00",UNIVERSAL INFANT FREE SCHOOL MEALS,SCHOOLS CAPITATION,2103717624,5001000078
04.07.2023,EDUCATION,ST MARY MAGDALENE CE SCHOOL,"2,460.00",UNIVERSAL INFANT FREE SCHOOL MEALS,SCHOOLS CAPITATION,2103717685,5001000080
04.07.2023,EDUCATION,ST MARY MAGDALENE CE SCHOOL,"6,170.00",UNIVERSAL INFANT FREE SCHOOL MEALS,SCHOOLS CAPITATION,2103717627,5001000080
04.07.2023,EDUCATION,ST PETERS CE SCHOOL,"4,445.00",UNIVERSAL INFANT FREE SCHOOL MEALS,SCHOOLS CAPITATION,2103717687,5001000083
04.07.2023,EDUCATION,ST PETERS CE SCHOOL,"8,693.00",UNIVERSAL INFANT FREE SCHOOL MEALS,SCHOOLS CAPITATION,2103717629,5001000083
04.07.2023,EDUCATION,CATHEDRAL SCHOOL OF ST SAVIOUR & MARY,"14,156.00",UNIVERSAL INFANT FREE SCHOOL MEALS,SCHOOLS CAPITATION,2103717688,5001000088
04.07.2023,EDUCATION,CATHEDRAL SCHOOL OF ST SAVIOUR & MARY,"20,611.00",UNIVERSAL INFANT FREE SCHOOL MEALS,SCHOOLS CAPITATION,2103717630,5001000088
04.07.2023,EDUCATION,TOWER BRIDGE PRIMARY SCHOOL,"6,468.00",UNIVERSAL INFANT FREE SCHOOL MEALS,SCHOOLS CAPITATION,2103717664,5001000095
04.07.2023,EDUCATION,TOWER BRIDGE PRIMARY SCHOOL,"8,133.00",UNIVERSAL INFANT FREE SCHOOL MEALS,SCHOOLS CAPITATION,2103717607,5001000095
04.07.2023,EDUCATION,TOWNSEND PRIMARY SCHOOL,"2,786.00",UNIVERSAL INFANT FREE SCHOOL MEALS,SCHOOLS CAPITATION,2103717665,5001000096
04.07.2023,EDUCATION,TOWNSEND PRIMARY SCHOOL,"7,432.00",UNIVERSAL INFANT FREE SCHOOL MEALS,SCHOOLS CAPITATION,2103717608,5001000096
04.07.2023,EDUCATION,VICTORY SCHOOL,"5,131.00",UNIVERSAL INFANT FREE SCHOOL MEALS,SCHOOLS CAPITATION,2103717666,5001000098
04.07.2023,EDUCATION,VICTORY SCHOOL,"6,170.00",UNIVERSAL INFANT FREE SCHOOL MEALS,SCHOOLS CAPITATION,2103717609,5001000098
04.07.2023,ENVIRONMENT AND LEISURE,METIS CONSULTANTS LIMITED,"1,869.24",CAPITAL PS (LEISURE),CONSTRUCTION,5902587302,1000086330
04.07.2023,ENVIRONMENT DIRECTORATE,LEASEPLAN UK LTD,"24,771.30",COMMERCIAL VEH CTRL A/C,HIRED VEHICLES,5902587311,11014756
04.07.2023,ENVIRONMENT DIRECTORATE,ACCESS HIRE NATIONWIDE LTD,451.43,COMMERCIAL VEH CTRL A/C,HIRED VEHICLES,5902587253,1000048527
04.07.2023,ENVIRONMENT DIRECTORATE,LEX AUTOLEASE,"14,615.94",COMMERCIAL VEH CTRL A/C,HIRED VEHICLES,5902587279,1000069462
04.07.2023,ENVIRONMENT DIRECTORATE,CDER GROUP LIMITED,279,COMMERCIAL VEH CTRL A/C,PARKING CHARGES,5902587257,1000089051
04.07.2023,ENVIRONMENT DIRECTORATE,CDER GROUP LIMITED,279,COMMERCIAL VEH CTRL A/C,PARKING CHARGES,5902587263,1000089051
04.07.2023,ENVIRONMENT DIRECTORATE,CDER GROUP LIMITED,279,COMMERCIAL VEH CTRL A/C,PARKING CHARGES,5902587264,1000089051
04.07.2023,ENVIRONMENT DIRECTORATE,CDER GROUP LIMITED,279,COMMERCIAL VEH CTRL A/C,PARKING CHARGES,5902587267,1000089051
04.07.2023,ENVIRONMENT DIRECTORATE,LEX AUTOLEASE,480,COMMERCIAL VEH CTRL A/C,VEHICLE LICENCES,5902587294,1000069462
04.07.2023,ENVIRONMENT DIRECTORATE,GREENHAM TRADING LTD,"2,654.70",ESTATE CLEANING-GENERAL,MATERIALS,5902587277,1000006610
04.07.2023,ENVIRONMENT DIRECTORATE,ANYTIME AUTOGLAZE LTD,274,FLEET INSURANCE WORKS,TRANSPORT INSURANCE COSTS,5902587306,1000088508
04.07.2023,ENVIRONMENT DIRECTORATE,TRAVIS PERKINS TRADING COMPANY LTD,771.12,PUBLIC LIGHTING,MATERIALS,5902587120,1514319
04.07.2023,HOUSING,BUILDTRUST LTD,"134,857.06",BUILD TRUST,I-WORLD CONTRACTORS HOLDING ACCOUNT,2103717851,3000002010
04.07.2023,HOUSING,BUILDTRUST LTD,"603,903.18",BUILD TRUST,I-WORLD CONTRACTORS HOLDING ACCOUNT,2103717851,3000002010
04.07.2023,HOUSING,OCO LIMITED,"161,372.83",PAYMENTS CONTROL ACCOUNT - OCO,I-WORLD CONTRACTORS HOLDING ACCOUNT,5902587163,1006066
04.07.2023,HOUSING,SMITH & BYFORD LTD,"140,141.00",SMITH AND BYFORD,I-WORLD CONTRACTORS HOLDING ACCOUNT,5902587170,11212119
04.07.2023,HOUSING GENERAL FUND,INFINITY NETWORKS LTD,"1,465.00",CAPITAL PS (REGEN),CONSTRUCTION MAIN CONTRACT,5902587092,1000035571
04.07.2023,HOUSING GENERAL FUND,LIBRA CONSTRUCTION SERVICES LTD,"1,211.00",CAPITAL PS (REGEN),CONSTRUCTION MAIN CONTRACT,2103717847,3000000875
04.07.2023,HOUSING GENERAL FUND,LIBRA CONSTRUCTION SERVICES LTD,"1,888.00",CAPITAL PS (REGEN),CONSTRUCTION MAIN CONTRACT,2103717847,3000000875
04.07.2023,HOUSING GENERAL FUND,STONEGROVE LIMITED,"6,495.88",CAPITAL PS (REGEN),CONSTRUCTION MAIN CONTRACT,2103717849,3000001525
04.07.2023,HOUSING GENERAL FUND,STONEGROVE LIMITED,"45,834.38",CAPITAL PS (REGEN),CONSTRUCTION MAIN CONTRACT,2103717849,3000001525
04.07.2023,HOUSING GENERAL FUND,KEYSTREAM GROUP LIMITED,"2,675.00",CAPITAL PS (STRAT SERV),ICT ACQUISITION,5902587322,1000089467
04.07.2023,HOUSING HRA,CREATION SOUTHWARK CIC,"25,000.00",CAPITAL PS (HRA),CONSTRUCTION FEES  - EXTERNAL,5902587118,1000084232
04.07.2023,HOUSING HRA,SILVER DCC LTD,"1,190.91",CAPITAL PS (HRA),CONSTRUCTION FEES  - EXTERNAL,5902587286,1000087546
04.07.2023,HOUSING HRA,NOISE SOLUTIONS LTD,850,CAPITAL PS (HRA),CONSTRUCTION FEES  - EXTERNAL,5902587095,1000088584
04.07.2023,HOUSING HRA,NOISE SOLUTIONS LTD,"2,450.00",CAPITAL PS (HRA),CONSTRUCTION FEES  - EXTERNAL,5902587095,1000088584
04.07.2023,HOUSING HRA,CALFORD SEADEN LLP,294,CAPITAL PS (HRA),CONSTRUCTION FEES - EMPLOYERS AGENT,5902587113,1061592
04.07.2023,HOUSING HRA,EQUANS REGENERATION LTD,968.07,CAPITAL PS (HRA),CONSTRUCTION MAIN CONTRACT -CERTIFICATED,2103717848,3000002035
04.07.2023,HOUSING HRA,EQUANS REGENERATION LTD,"244,300.29",CAPITAL PS (HRA),CONSTRUCTION MAIN CONTRACT -CERTIFICATED,2103717850,3000002035
04.07.2023,HOUSING HRA,ARCHIO LTD,"1,568.08",CAPITAL PS (HRA),PLANNING & S106 FEES,5902587111,1000086130
04.07.2023,HUMAN RESOURCES,WORKING ON WELLBEING LTD,"7,696.81",OPTIMA HEALTH,MEDICAL / HEALTH & SAFETY SERVICES,5902587127,1000077251
04.07.2023,HUMAN RESOURCES,WORKING ON WELLBEING LTD,"9,035.29",OPTIMA HEALTH,MEDICAL / HEALTH & SAFETY SERVICES,5902587131,1000077251
04.07.2023,LEISURE DIRECTORATE,P D CONSTRUCTION LTD,"1,570.00",CEMETERIES,OTHER R&M,2103717846,4001883
04.07.2023,LEISURE DIRECTORATE,QUADRON SERVICES LIMITED,500,CLIENT SERV(GRNS MAIN),OTHER CONTRACTORS,5902587326,1000066528
04.07.2023,LEISURE DIRECTORATE,QUADRON SERVICES LIMITED,945.6,CLIENT SERV(GRNS MAIN),OTHER CONTRACTORS,5902587327,1000066528
04.07.2023,LEISURE DIRECTORATE,PRODUCTIVITY @ WORK LIMITED,"1,225.00",LEISURE INSOURCING MOBILISATION COST,CONSULTANTS SERVICES,5902587252,1000089724
04.07.2023,LEISURE DIRECTORATE,F R JONES & SON LTD,337.52,TREES � IN-HOUSE TEAM,EQUIPMENT PURCHASE & REPAIR,5902587295,1000037178
04.07.2023,PLANNING & GROWTH,HEATHER  SARGENT,"5,200.00",BUSINESS UNIT MANAGER & SUPPORT COSTS,LEGAL FEES & COURT COSTS,2103717318,1000080763
04.07.2023,PROFESSIONAL FINANCE SERVICES,CIPFA BUSINESS LTD,"5,680.00",CORPORATE SERVICES AND F&G,SUBSCRIPTIONS,5902587114,1000024688
04.07.2023,PROFESSIONAL FINANCE SERVICES,BDO LLP,"29,936.08",INTERNAL AUDIT CONTRACTS,PAYMENTS FOR FINANCIAL SERVICES,5902587330,1000057898
04.07.2023,RESIDENT SERVICES,ELIZABETH ENGLAND,600,OPERATIONS/OFFICES ACCOMMODATION,LEGAL FEES & COURT COSTS,2103717311,1000078563
04.07.2023,RESIDENT SERVICES,SOUTHWARK GROUP OF TENANTS ORGANISATION,"114,000.00",RESIDENTS PARTICIPATION FUND,GRANTS,5902587301,1479419
04.07.2023,RESIDENT SERVICES,ROBERT SALIS,400,SPECIAL INVESTIGATIONS,LEGAL FEES & COURT COSTS,2103717332,1000044790
04.07.2023,RESIDENT SERVICES,STYLES HOUSE TMO,"17,592.25",STYLES HOUSE TMO,M&M ALLOWANCE CO-OPS,5902587107,1000072012
04.07.2023,RESIDENT SERVICES HGF,MILLIE POLIMAC,600,HOMELESS PROJECTS,LEGAL FEES & COURT COSTS,2103717326,1000073173
04.07.2023,RESIDENT SERVICES HGF,SOLACE WOMEN'S AID,"67,182.00",RAPID REHOUSING,PROFESSIONAL FEES,5902587288,1000057231
04.07.2023,SBS OPERATIONS,TRAVIS PERKINS TRADING COMPANY LTD,276.73,NUNHEAD DD,MATERIALS,5902587120,1514319
04.07.2023,SBS OPERATIONS,TRAVIS PERKINS TRADING COMPANY LTD,321.37,NUNHEAD DD,MATERIALS,5902587120,1514319
04.07.2023,SBS OPERATIONS,HOWDENS JOINERY CO,265.14,NUNHEAD DD,MATERIALS,5902587161,1000027491
04.07.2023,SBS OPERATIONS,HOWDENS JOINERY CO,265.14,NUNHEAD DD,MATERIALS,5902587251,1000027491
04.07.2023,SBS OPERATIONS,HOWDENS JOINERY CO,324.1,NUNHEAD DD,MATERIALS,5902587161,1000027491
04.07.2023,SBS OPERATIONS,AKW MEDI-CARE LTD,291.85,SBS AIDS AND ADAPTATIONS,MATERIALS,5902587133,1000047103
04.07.2023,SBS OPERATIONS,TRAVIS PERKINS TRADING COMPANY LTD,334.92,SUPPORTED HOUSING - REPAIRS,MATERIALS,5902587120,1514319
04.07.2023,SBS OPERATIONS,TRAVIS PERKINS TRADING COMPANY LTD,467.08,WALWORTH DD,MATERIALS,5902587120,1514319
04.07.2023,SBS SUPPORT,TRAVIS PERKINS TRADING COMPANY LTD,351.69,R & M OVERHEADS,MATERIALS,5902587120,1514319
04.07.2023,SBS SUPPORT,N & C BUILDING MATERIALS,"3,296.00",STORES / LOGISTICS,MATERIALS,5902587129,1005586
04.07.2023,SOUTHWARK BUILDING SERVICES,N & C BUILDING MATERIALS,460,STORES/LOGISTICS,CREDITORS -GR/IR CLEARING ACCOUNT,5902587129,1005586
04.07.2023,SOUTHWARK BUILDING SERVICES,N & C BUILDING MATERIALS,920,STORES/LOGISTICS,CREDITORS -GR/IR CLEARING ACCOUNT,5902587129,1005586
04.07.2023,SOUTHWARK BUILDING SERVICES,N & C BUILDING MATERIALS,"1,830.00",STORES/LOGISTICS,CREDITORS -GR/IR CLEARING ACCOUNT,5902587142,1005586
04.07.2023,SOUTHWARK BUILDING SERVICES,N & C BUILDING MATERIALS,"1,845.00",STORES/LOGISTICS,CREDITORS -GR/IR CLEARING ACCOUNT,5902587142,1005586
04.07.2023,SOUTHWARK BUILDING SERVICES,N & C BUILDING MATERIALS,"3,296.00",STORES/LOGISTICS,CREDITORS -GR/IR CLEARING ACCOUNT,5902587130,1005586
04.07.2023,SOUTHWARK BUILDING SERVICES,N & C BUILDING MATERIALS,"10,227.20",STORES/LOGISTICS,CREDITORS -GR/IR CLEARING ACCOUNT,5902587129,1005586
04.07.2023,SOUTHWARK BUILDING SERVICES,TRAVIS PERKINS TRADING COMPANY LTD,831.04,STORES/LOGISTICS,CREDITORS -GR/IR CLEARING ACCOUNT,5902587120,1514319
04.07.2023,SOUTHWARK BUILDING SERVICES,BEW ELECTRICAL DISTRIBUTORS LTD,"1,301.00",STORES/LOGISTICS,CREDITORS -GR/IR CLEARING ACCOUNT,5902587153,1000045371
04.07.2023,SOUTHWARK BUILDING SERVICES,SMI INT GROUP LTD,612.6,STORES/LOGISTICS,CREDITORS -GR/IR CLEARING ACCOUNT,5902587143,1000076606
05.07.2023,ADULT SOCIAL CARE,THAMES REACH,"1,404.20",APPOINTEESHIPS,OTHER PAYMENTS FOR CLIENTS,2103719076,1723415
05.07.2023,ADULT SOCIAL CARE,THAMES REACH,"3,241.59",APPOINTEESHIPS,OTHER PAYMENTS FOR CLIENTS,2103719075,1723415
05.07.2023,ADULT SOCIAL CARE,ANTHONY GOLD SOLICITORS,"5,000.00",APPOINTEESHIPS,OTHER PAYMENTS FOR CLIENTS,2103719074,1000050198
05.07.2023,ADULT SOCIAL CARE,EDWARDS DUTHIE SHAMASH  SOLICITORS,"1,734.84",APPOINTEESHIPS,OTHER PAYMENTS FOR CLIENTS,2103719077,1000084824
05.07.2023,ADULT SOCIAL CARE,HUNTERSJOY LTD,370,ASW - PROFESSIONAL DEVELOPMENT,TRAINING,5902587488,1000077343
05.07.2023,ADULT SOCIAL CARE,BEDE HOUSE ASSOCIATION,420,LD LTS 18-64,DAYCARE,2103718631,1553877
05.07.2023,ADULT SOCIAL CARE,BEDE HOUSE ASSOCIATION,816,LD LTS 18-64,DAYCARE,2103718632,1553877
05.07.2023,ADULT SOCIAL CARE,BEDE HOUSE ASSOCIATION,"1,200.00",LD LTS 18-64,DAYCARE,2103718621,1553877
05.07.2023,ADULT SOCIAL CARE,BEDE HOUSE ASSOCIATION,"1,200.00",LD LTS 18-64,DAYCARE,2103718622,1553877
05.07.2023,ADULT SOCIAL CARE,BEDE HOUSE ASSOCIATION,"1,200.00",LD LTS 18-64,DAYCARE,2103718626,1553877
05.07.2023,ADULT SOCIAL CARE,BEDE HOUSE ASSOCIATION,"1,200.00",LD LTS 18-64,DAYCARE,2103718629,1553877
05.07.2023,ADULT SOCIAL CARE,BEDE HOUSE ASSOCIATION,"1,200.00",LD LTS 18-64,DAYCARE,2103718636,1553877
05.07.2023,ADULT SOCIAL CARE,BEDE HOUSE ASSOCIATION,"1,200.00",LD LTS 18-64,DAYCARE,2103718639,1553877
05.07.2023,ADULT SOCIAL CARE,BEDE HOUSE ASSOCIATION,"1,200.00",LD LTS 18-64,DAYCARE,2103718640,1553877
05.07.2023,ADULT SOCIAL CARE,BEDE HOUSE ASSOCIATION,"1,500.00",LD LTS 18-64,DAYCARE,2103718633,1553877
05.07.2023,ADULT SOCIAL CARE,BEDE HOUSE ASSOCIATION,"1,500.00",LD LTS 18-64,DAYCARE,2103718635,1553877
05.07.2023,ADULT SOCIAL CARE,BEDE HOUSE ASSOCIATION,"1,500.00",LD LTS 18-64,DAYCARE,2103718637,1553877
05.07.2023,ADULT SOCIAL CARE,BEDE HOUSE ASSOCIATION,"1,620.00",LD LTS 18-64,DAYCARE,2103718630,1553877
05.07.2023,ADULT SOCIAL CARE,BEDE HOUSE ASSOCIATION,"1,648.00",LD LTS 18-64,DAYCARE,2103718623,1553877
05.07.2023,ADULT SOCIAL CARE,BEDE HOUSE ASSOCIATION,"1,648.00",LD LTS 18-64,DAYCARE,2103718624,1553877
05.07.2023,ADULT SOCIAL CARE,BEDE HOUSE ASSOCIATION,"1,648.00",LD LTS 18-64,DAYCARE,2103718627,1553877
05.07.2023,ADULT SOCIAL CARE,BEDE HOUSE ASSOCIATION,"1,676.00",LD LTS 18-64,DAYCARE,2103718628,1553877
05.07.2023,ADULT SOCIAL CARE,BEDE HOUSE ASSOCIATION,"1,684.00",LD LTS 18-64,DAYCARE,2103718625,1553877
05.07.2023,ADULT SOCIAL CARE,BEDE HOUSE ASSOCIATION,"1,920.00",LD LTS 18-64,DAYCARE,2103718638,1553877
05.07.2023,ADULT SOCIAL CARE,BEDE HOUSE ASSOCIATION,"2,032.00",LD LTS 18-64,DAYCARE,2103718634,1553877
05.07.2023,ADULT SOCIAL CARE,LONDON CARE LTD,773.44,LD LTS 18-64,HOMECARE - C&V,2103718679,1000003398
05.07.2023,ADULT SOCIAL CARE,LONDON CARE LTD,"1,000.91",LD LTS 18-64,HOMECARE - C&V,2103718727,1000003398
05.07.2023,ADULT SOCIAL CARE,SUPREME CARE SERVICES LTD,368.6,LD LTS 18-64,HOMECARE - C&V,2103719034,1000059416
05.07.2023,ADULT SOCIAL CARE,METRO HOMECARE LTD,528,LD LTS 18-64,HOMECARE - SPOT,2103718616,1000070695
05.07.2023,ADULT SOCIAL CARE,HEALTH PERSONNEL LTD,"3,823.04",LD LTS 18-64,RESIDENTIAL CARE,2103719027,1000076377
05.07.2023,ADULT SOCIAL CARE,CHOICE SUPPORT,293.92,LD LTS 18-64,SUPPORTED LIVING,2103718619,1104183
05.07.2023,ADULT SOCIAL CARE,CHOICE SUPPORT,661.32,LD LTS 18-64,SUPPORTED LIVING,2103718618,1104183
05.07.2023,ADULT SOCIAL CARE,CONTACT PROFESSIONALS,"1,482.00",LD LTS 18-64,SUPPORTED LIVING,2103718645,1000057263
05.07.2023,ADULT SOCIAL CARE,LONDON CARE LTD,348.86,MEM LTS 18-64,HOMECARE - C&V,2103718884,1000003398
05.07.2023,ADULT SOCIAL CARE,LONDON CARE LTD,657.16,MEM LTS 18-64,HOMECARE - C&V,2103718931,1000003398
05.07.2023,ADULT SOCIAL CARE,LONDON CARE LTD,970.56,MEM LTS 18-64,HOMECARE - C&V,2103718855,1000003398
05.07.2023,ADULT SOCIAL CARE,LONDON CARE LTD,546,MEM LTS 65+,HOMECARE - C&V,2103718700,1000003398
05.07.2023,ADULT SOCIAL CARE,LONDON CARE LTD,606.6,MEM LTS 65+,HOMECARE - C&V,2103718771,1000003398
05.07.2023,ADULT SOCIAL CARE,LONDON CARE LTD,829.07,MEM LTS 65+,HOMECARE - C&V,2103719001,1000003398
05.07.2023,ADULT SOCIAL CARE,LONDON CARE LTD,"1,079.50",MEM LTS 65+,HOMECARE - C&V,2103718817,1000003398
05.07.2023,ADULT SOCIAL CARE,LONDON CARE LTD,"1,142.48",MEM LTS 65+,HOMECARE - C&V,2103718968,1000003398
05.07.2023,ADULT SOCIAL CARE,LONDON CARE LTD,"1,214.04",MEM LTS 65+,HOMECARE - C&V,2103718648,1000003398
05.07.2023,ADULT SOCIAL CARE,LONDON CARE LTD,"1,343.00",MEM LTS 65+,HOMECARE - C&V,2103718787,1000003398
05.07.2023,ADULT SOCIAL CARE,LONDON CARE LTD,"1,435.68",MEM LTS 65+,HOMECARE - C&V,2103718926,1000003398
05.07.2023,ADULT SOCIAL CARE,LONDON CARE LTD,"1,668.41",MEM LTS 65+,HOMECARE - C&V,2103718665,1000003398
05.07.2023,ADULT SOCIAL CARE,LONDON CARE LTD,"2,917.30",MEM LTS 65+,HOMECARE - C&V,2103718890,1000003398
05.07.2023,ADULT SOCIAL CARE,THAMES HOMECARE SERVICE LTD,738.82,MEM LTS 65+,HOMECARE - SPOT,2103718588,1000079295
05.07.2023,ADULT SOCIAL CARE,LONDON CARE LTD,323.52,MH LTS 18-64,HOMECARE - C&V,2103718848,1000003398
05.07.2023,ADULT SOCIAL CARE,LONDON CARE LTD,343.74,MH LTS 18-64,HOMECARE - C&V,2103718940,1000003398
05.07.2023,ADULT SOCIAL CARE,LONDON CARE LTD,348.8,MH LTS 18-64,HOMECARE - C&V,2103718722,1000003398
05.07.2023,ADULT SOCIAL CARE,LONDON CARE LTD,444.84,MH LTS 18-64,HOMECARE - C&V,2103718809,1000003398
05.07.2023,ADULT SOCIAL CARE,LONDON CARE LTD,591.47,MH LTS 18-64,HOMECARE - C&V,2103718755,1000003398
05.07.2023,ADULT SOCIAL CARE,LONDON CARE LTD,657.16,MH LTS 18-64,HOMECARE - C&V,2103718792,1000003398
05.07.2023,ADULT SOCIAL CARE,LONDON CARE LTD,"1,380.06",MH LTS 18-64,HOMECARE - C&V,2103718738,1000003398
05.07.2023,ADULT SOCIAL CARE,LONDON CARE LTD,"1,981.85",MH LTS 18-64,HOMECARE - C&V,2103718988,1000003398
05.07.2023,ADULT SOCIAL CARE,LAMBETH CHINESE COMMUNITY ASSOCIATION,532,MH LTS 18-64,SUPPORTED LIVING,2103718642,11117038
05.07.2023,ADULT SOCIAL CARE,LONDON CARE LTD,257.81,MH LTS 65+,HOMECARE - C&V,2103718774,1000003398
05.07.2023,ADULT SOCIAL CARE,LONDON CARE LTD,259.25,MH LTS 65+,HOMECARE - C&V,2103718810,1000003398
05.07.2023,ADULT SOCIAL CARE,LONDON CARE LTD,463.38,MH LTS 65+,HOMECARE - C&V,2103718917,1000003398
05.07.2023,ADULT SOCIAL CARE,LONDON CARE LTD,470.22,MH LTS 65+,HOMECARE - C&V,2103718859,1000003398
05.07.2023,ADULT SOCIAL CARE,LONDON CARE LTD,495.4,MH LTS 65+,HOMECARE - C&V,2103718650,1000003398
05.07.2023,ADULT SOCIAL CARE,LONDON CARE LTD,546.04,MH LTS 65+,HOMECARE - C&V,2103718928,1000003398
05.07.2023,ADULT SOCIAL CARE,LONDON CARE LTD,"1,091.93",MH LTS 65+,HOMECARE - C&V,2103718997,1000003398
05.07.2023,ADULT SOCIAL CARE,LONDON CARE LTD,"1,193.13",MH LTS 65+,HOMECARE - C&V,2103718822,1000003398
05.07.2023,ADULT SOCIAL CARE,LONDON CARE LTD,"1,218.35",MH LTS 65+,HOMECARE - C&V,2103718952,1000003398
05.07.2023,ADULT SOCIAL CARE,LONDON CARE LTD,"1,233.56",MH LTS 65+,HOMECARE - C&V,2103718673,1000003398
05.07.2023,ADULT SOCIAL CARE,LONDON CARE LTD,"2,623.83",MH LTS 65+,HOMECARE - C&V,2103718902,1000003398
05.07.2023,ADULT SOCIAL CARE,LONDON CARE LTD,252.76,PHY LTS 18-64,HOMECARE - C&V,2103718852,1000003398
05.07.2023,ADULT SOCIAL CARE,LONDON CARE LTD,283.09,PHY LTS 18-64,HOMECARE - C&V,2103718765,1000003398
05.07.2023,ADULT SOCIAL CARE,LONDON CARE LTD,302.48,PHY LTS 18-64,HOMECARE - C&V,2103718895,1000003398
05.07.2023,ADULT SOCIAL CARE,LONDON CARE LTD,323.58,PHY LTS 18-64,HOMECARE - C&V,2103718689,1000003398
05.07.2023,ADULT SOCIAL CARE,LONDON CARE LTD,343.75,PHY LTS 18-64,HOMECARE - C&V,2103718937,1000003398
05.07.2023,ADULT SOCIAL CARE,LONDON CARE LTD,354.94,PHY LTS 18-64,HOMECARE - C&V,2103718756,1000003398
05.07.2023,ADULT SOCIAL CARE,LONDON CARE LTD,366.67,PHY LTS 18-64,HOMECARE - C&V,2103718883,1000003398
05.07.2023,ADULT SOCIAL CARE,LONDON CARE LTD,369.1,PHY LTS 18-64,HOMECARE - C&V,2103718758,1000003398
05.07.2023,ADULT SOCIAL CARE,LONDON CARE LTD,374.16,PHY LTS 18-64,HOMECARE - C&V,2103718838,1000003398
05.07.2023,ADULT SOCIAL CARE,LONDON CARE LTD,404.4,PHY LTS 18-64,HOMECARE - C&V,2103718744,1000003398
05.07.2023,ADULT SOCIAL CARE,LONDON CARE LTD,424.74,PHY LTS 18-64,HOMECARE - C&V,2103718861,1000003398
05.07.2023,ADULT SOCIAL CARE,LONDON CARE LTD,424.76,PHY LTS 18-64,HOMECARE - C&V,2103719016,1000003398
05.07.2023,ADULT SOCIAL CARE,LONDON CARE LTD,429.81,PHY LTS 18-64,HOMECARE - C&V,2103718680,1000003398
05.07.2023,ADULT SOCIAL CARE,LONDON CARE LTD,429.81,PHY LTS 18-64,HOMECARE - C&V,2103718764,1000003398
05.07.2023,ADULT SOCIAL CARE,LONDON CARE LTD,434.19,PHY LTS 18-64,HOMECARE - C&V,2103718833,1000003398
05.07.2023,ADULT SOCIAL CARE,LONDON CARE LTD,490.43,PHY LTS 18-64,HOMECARE - C&V,2103718878,1000003398
05.07.2023,ADULT SOCIAL CARE,LONDON CARE LTD,495.5,PHY LTS 18-64,HOMECARE - C&V,2103718742,1000003398
05.07.2023,ADULT SOCIAL CARE,LONDON CARE LTD,530.89,PHY LTS 18-64,HOMECARE - C&V,2103718966,1000003398
05.07.2023,ADULT SOCIAL CARE,LONDON CARE LTD,536.96,PHY LTS 18-64,HOMECARE - C&V,2103718892,1000003398
05.07.2023,ADULT SOCIAL CARE,LONDON CARE LTD,561.11,PHY LTS 18-64,HOMECARE - C&V,2103718669,1000003398
05.07.2023,ADULT SOCIAL CARE,LONDON CARE LTD,573.31,PHY LTS 18-64,HOMECARE - C&V,2103718801,1000003398
05.07.2023,ADULT SOCIAL CARE,LONDON CARE LTD,586.48,PHY LTS 18-64,HOMECARE - C&V,2103718912,1000003398
05.07.2023,ADULT SOCIAL CARE,LONDON CARE LTD,591.53,PHY LTS 18-64,HOMECARE - C&V,2103718841,1000003398
05.07.2023,ADULT SOCIAL CARE,LONDON CARE LTD,591.55,PHY LTS 18-64,HOMECARE - C&V,2103718820,1000003398
05.07.2023,ADULT SOCIAL CARE,LONDON CARE LTD,616.29,PHY LTS 18-64,HOMECARE - C&V,2103718880,1000003398
05.07.2023,ADULT SOCIAL CARE,LONDON CARE LTD,636.95,PHY LTS 18-64,HOMECARE - C&V,2103718750,1000003398
05.07.2023,ADULT SOCIAL CARE,LONDON CARE LTD,657.16,PHY LTS 18-64,HOMECARE - C&V,2103718871,1000003398
05.07.2023,ADULT SOCIAL CARE,LONDON CARE LTD,667.05,PHY LTS 18-64,HOMECARE - C&V,2103718943,1000003398
05.07.2023,ADULT SOCIAL CARE,LONDON CARE LTD,667.4,PHY LTS 18-64,HOMECARE - C&V,2103719019,1000003398
05.07.2023,ADULT SOCIAL CARE,LONDON CARE LTD,673.02,PHY LTS 18-64,HOMECARE - C&V,2103718983,1000003398
05.07.2023,ADULT SOCIAL CARE,LONDON CARE LTD,692.66,PHY LTS 18-64,HOMECARE - C&V,2103718947,1000003398
05.07.2023,ADULT SOCIAL CARE,LONDON CARE LTD,697.72,PHY LTS 18-64,HOMECARE - C&V,2103718922,1000003398
05.07.2023,ADULT SOCIAL CARE,LONDON CARE LTD,702.78,PHY LTS 18-64,HOMECARE - C&V,2103718658,1000003398
05.07.2023,ADULT SOCIAL CARE,LONDON CARE LTD,702.85,PHY LTS 18-64,HOMECARE - C&V,2103718800,1000003398
05.07.2023,ADULT SOCIAL CARE,LONDON CARE LTD,707.72,PHY LTS 18-64,HOMECARE - C&V,2103718893,1000003398
05.07.2023,ADULT SOCIAL CARE,LONDON CARE LTD,712.89,PHY LTS 18-64,HOMECARE - C&V,2103718798,1000003398
05.07.2023,ADULT SOCIAL CARE,LONDON CARE LTD,722.97,PHY LTS 18-64,HOMECARE - C&V,2103718651,1000003398
05.07.2023,ADULT SOCIAL CARE,LONDON CARE LTD,734.69,PHY LTS 18-64,HOMECARE - C&V,2103718663,1000003398
05.07.2023,ADULT SOCIAL CARE,LONDON CARE LTD,748.29,PHY LTS 18-64,HOMECARE - C&V,2103718732,1000003398
05.07.2023,ADULT SOCIAL CARE,LONDON CARE LTD,768.52,PHY LTS 18-64,HOMECARE - C&V,2103718845,1000003398
05.07.2023,ADULT SOCIAL CARE,LONDON CARE LTD,773.42,PHY LTS 18-64,HOMECARE - C&V,2103719015,1000003398
05.07.2023,ADULT SOCIAL CARE,LONDON CARE LTD,783.54,PHY LTS 18-64,HOMECARE - C&V,2103718839,1000003398
05.07.2023,ADULT SOCIAL CARE,LONDON CARE LTD,783.67,PHY LTS 18-64,HOMECARE - C&V,2103718683,1000003398
05.07.2023,ADULT SOCIAL CARE,LONDON CARE LTD,788.72,PHY LTS 18-64,HOMECARE - C&V,2103718653,1000003398
05.07.2023,ADULT SOCIAL CARE,LONDON CARE LTD,788.72,PHY LTS 18-64,HOMECARE - C&V,2103718973,1000003398
05.07.2023,ADULT SOCIAL CARE,LONDON CARE LTD,844.31,PHY LTS 18-64,HOMECARE - C&V,2103718763,1000003398
05.07.2023,ADULT SOCIAL CARE,LONDON CARE LTD,862.39,PHY LTS 18-64,HOMECARE - C&V,2103718849,1000003398
05.07.2023,ADULT SOCIAL CARE,LONDON CARE LTD,869.54,PHY LTS 18-64,HOMECARE - C&V,2103718796,1000003398
05.07.2023,ADULT SOCIAL CARE,LONDON CARE LTD,879.69,PHY LTS 18-64,HOMECARE - C&V,2103718677,1000003398
05.07.2023,ADULT SOCIAL CARE,LONDON CARE LTD,930.32,PHY LTS 18-64,HOMECARE - C&V,2103718881,1000003398
05.07.2023,ADULT SOCIAL CARE,LONDON CARE LTD,"1,061.69",PHY LTS 18-64,HOMECARE - C&V,2103718936,1000003398
05.07.2023,ADULT SOCIAL CARE,LONDON CARE LTD,"1,118.92",PHY LTS 18-64,HOMECARE - C&V,2103718948,1000003398
05.07.2023,ADULT SOCIAL CARE,LONDON CARE LTD,"1,142.58",PHY LTS 18-64,HOMECARE - C&V,2103718850,1000003398
05.07.2023,ADULT SOCIAL CARE,LONDON CARE LTD,"1,157.73",PHY LTS 18-64,HOMECARE - C&V,2103718885,1000003398
05.07.2023,ADULT SOCIAL CARE,LONDON CARE LTD,"1,177.82",PHY LTS 18-64,HOMECARE - C&V,2103718803,1000003398
05.07.2023,ADULT SOCIAL CARE,LONDON CARE LTD,"1,182.87",PHY LTS 18-64,HOMECARE - C&V,2103718863,1000003398
05.07.2023,ADULT SOCIAL CARE,LONDON CARE LTD,"1,295.96",PHY LTS 18-64,HOMECARE - C&V,2103718866,1000003398
05.07.2023,ADULT SOCIAL CARE,LONDON CARE LTD,"1,486.43",PHY LTS 18-64,HOMECARE - C&V,2103718991,1000003398
05.07.2023,ADULT SOCIAL CARE,LONDON CARE LTD,"1,582.24",PHY LTS 18-64,HOMECARE - C&V,2103718737,1000003398
05.07.2023,ADULT SOCIAL CARE,LONDON CARE LTD,"1,587.44",PHY LTS 18-64,HOMECARE - C&V,2103718939,1000003398
05.07.2023,ADULT SOCIAL CARE,LONDON CARE LTD,"1,683.46",PHY LTS 18-64,HOMECARE - C&V,2103718797,1000003398
05.07.2023,ADULT SOCIAL CARE,LONDON CARE LTD,"1,703.69",PHY LTS 18-64,HOMECARE - C&V,2103718733,1000003398
05.07.2023,ADULT SOCIAL CARE,LONDON CARE LTD,"1,718.89",PHY LTS 18-64,HOMECARE - C&V,2103718770,1000003398
05.07.2023,ADULT SOCIAL CARE,LONDON CARE LTD,"2,259.60",PHY LTS 18-64,HOMECARE - C&V,2103718788,1000003398
05.07.2023,ADULT SOCIAL CARE,LONDON CARE LTD,"2,411.27",PHY LTS 18-64,HOMECARE - C&V,2103719024,1000003398
05.07.2023,ADULT SOCIAL CARE,LONDON CARE LTD,"2,542.95",PHY LTS 18-64,HOMECARE - C&V,2103718967,1000003398
05.07.2023,ADULT SOCIAL CARE,LONDON CARE LTD,"2,578.34",PHY LTS 18-64,HOMECARE - C&V,2103718804,1000003398
05.07.2023,ADULT SOCIAL CARE,LONDON CARE LTD,"3,665.73",PHY LTS 18-64,HOMECARE - C&V,2103718692,1000003398
05.07.2023,ADULT SOCIAL CARE,LONDON CARE LTD,"4,332.85",PHY LTS 18-64,HOMECARE - C&V,2103718840,1000003398
05.07.2023,ADULT SOCIAL CARE,THAMES HOMECARE SERVICE LTD,254.27,PHY LTS 18-64,HOMECARE - SPOT,2103718603,1000079295
05.07.2023,ADULT SOCIAL CARE,THAMES HOMECARE SERVICE LTD,273.46,PHY LTS 18-64,HOMECARE - SPOT,2103718581,1000079295
05.07.2023,ADULT SOCIAL CARE,THAMES HOMECARE SERVICE LTD,287.85,PHY LTS 18-64,HOMECARE - SPOT,2103718568,1000079295
05.07.2023,ADULT SOCIAL CARE,THAMES HOMECARE SERVICE LTD,388.6,PHY LTS 18-64,HOMECARE - SPOT,2103718591,1000079295
05.07.2023,ADULT SOCIAL CARE,THAMES HOMECARE SERVICE LTD,671.65,PHY LTS 18-64,HOMECARE - SPOT,2103718592,1000079295
05.07.2023,ADULT SOCIAL CARE,THAMES HOMECARE SERVICE LTD,820.37,PHY LTS 18-64,HOMECARE - SPOT,2103718567,1000079295
05.07.2023,ADULT SOCIAL CARE,REDACTED PERSONAL DATA,"4,287.68",PHY LTS 18-64,PAYMENTS TO CLIENTS (DIRECT PAYMENTS),REDACTED,REDACTED
05.07.2023,ADULT SOCIAL CARE,ELIMHOUSE COMMUNITY ASSOCIATION,450,PHY LTS 65+,DAYCARE,2103718611,1000076454
05.07.2023,ADULT SOCIAL CARE,ELIMHOUSE COMMUNITY ASSOCIATION,450,PHY LTS 65+,DAYCARE,2103718612,1000076454
05.07.2023,ADULT SOCIAL CARE,ELIMHOUSE COMMUNITY ASSOCIATION,450,PHY LTS 65+,DAYCARE,2103718614,1000076454
05.07.2023,ADULT SOCIAL CARE,ELIMHOUSE COMMUNITY ASSOCIATION,585,PHY LTS 65+,DAYCARE,2103718608,1000076454
05.07.2023,ADULT SOCIAL CARE,ELIMHOUSE COMMUNITY ASSOCIATION,650,PHY LTS 65+,DAYCARE,2103718610,1000076454
05.07.2023,ADULT SOCIAL CARE,LONDON CARE LTD,257.85,PHY LTS 65+,HOMECARE - C&V,2103718708,1000003398
05.07.2023,ADULT SOCIAL CARE,LONDON CARE LTD,262.87,PHY LTS 65+,HOMECARE - C&V,2103719006,1000003398
05.07.2023,ADULT SOCIAL CARE,LONDON CARE LTD,272.98,PHY LTS 65+,HOMECARE - C&V,2103718927,1000003398
05.07.2023,ADULT SOCIAL CARE,LONDON CARE LTD,283.08,PHY LTS 65+,HOMECARE - C&V,2103718752,1000003398
05.07.2023,ADULT SOCIAL CARE,LONDON CARE LTD,293.2,PHY LTS 65+,HOMECARE - C&V,2103718847,1000003398
05.07.2023,ADULT SOCIAL CARE,LONDON CARE LTD,308.45,PHY LTS 65+,HOMECARE - C&V,2103718865,1000003398
05.07.2023,ADULT SOCIAL CARE,LONDON CARE LTD,308.45,PHY LTS 65+,HOMECARE - C&V,2103718956,1000003398
05.07.2023,ADULT SOCIAL CARE,LONDON CARE LTD,308.45,PHY LTS 65+,HOMECARE - C&V,2103718982,1000003398
05.07.2023,ADULT SOCIAL CARE,LONDON CARE LTD,312.23,PHY LTS 65+,HOMECARE - C&V,2103718779,1000003398
05.07.2023,ADULT SOCIAL CARE,LONDON CARE LTD,318.53,PHY LTS 65+,HOMECARE - C&V,2103718711,1000003398
05.07.2023,ADULT SOCIAL CARE,LONDON CARE LTD,323.52,PHY LTS 65+,HOMECARE - C&V,2103718960,1000003398
05.07.2023,ADULT SOCIAL CARE,LONDON CARE LTD,328.58,PHY LTS 65+,HOMECARE - C&V,2103718760,1000003398
05.07.2023,ADULT SOCIAL CARE,LONDON CARE LTD,328.58,PHY LTS 65+,HOMECARE - C&V,2103718911,1000003398
05.07.2023,ADULT SOCIAL CARE,LONDON CARE LTD,353.19,PHY LTS 65+,HOMECARE - C&V,2103718945,1000003398
05.07.2023,ADULT SOCIAL CARE,LONDON CARE LTD,353.86,PHY LTS 65+,HOMECARE - C&V,2103718799,1000003398
05.07.2023,ADULT SOCIAL CARE,LONDON CARE LTD,363.97,PHY LTS 65+,HOMECARE - C&V,2103718925,1000003398
05.07.2023,ADULT SOCIAL CARE,LONDON CARE LTD,387.58,PHY LTS 65+,HOMECARE - C&V,2103718802,1000003398
05.07.2023,ADULT SOCIAL CARE,LONDON CARE LTD,404.41,PHY LTS 65+,HOMECARE - C&V,2103718657,1000003398
05.07.2023,ADULT SOCIAL CARE,LONDON CARE LTD,404.54,PHY LTS 65+,HOMECARE - C&V,2103718950,1000003398
05.07.2023,ADULT SOCIAL CARE,LONDON CARE LTD,414.65,PHY LTS 65+,HOMECARE - C&V,2103718684,1000003398
05.07.2023,ADULT SOCIAL CARE,LONDON CARE LTD,424.62,PHY LTS 65+,HOMECARE - C&V,2103718964,1000003398
05.07.2023,ADULT SOCIAL CARE,LONDON CARE LTD,424.75,PHY LTS 65+,HOMECARE - C&V,2103718652,1000003398
05.07.2023,ADULT SOCIAL CARE,LONDON CARE LTD,424.76,PHY LTS 65+,HOMECARE - C&V,2103718832,1000003398
05.07.2023,ADULT SOCIAL CARE,LONDON CARE LTD,424.76,PHY LTS 65+,HOMECARE - C&V,2103718923,1000003398
05.07.2023,ADULT SOCIAL CARE,LONDON CARE LTD,429.81,PHY LTS 65+,HOMECARE - C&V,2103718834,1000003398
05.07.2023,ADULT SOCIAL CARE,LONDON CARE LTD,429.81,PHY LTS 65+,HOMECARE - C&V,2103718985,1000003398
05.07.2023,ADULT SOCIAL CARE,LONDON CARE LTD,434.82,PHY LTS 65+,HOMECARE - C&V,2103718830,1000003398
05.07.2023,ADULT SOCIAL CARE,LONDON CARE LTD,434.86,PHY LTS 65+,HOMECARE - C&V,2103718725,1000003398
05.07.2023,ADULT SOCIAL CARE,LONDON CARE LTD,444.84,PHY LTS 65+,HOMECARE - C&V,2103718879,1000003398
05.07.2023,ADULT SOCIAL CARE,LONDON CARE LTD,454.98,PHY LTS 65+,HOMECARE - C&V,2103718824,1000003398
05.07.2023,ADULT SOCIAL CARE,LONDON CARE LTD,470.17,PHY LTS 65+,HOMECARE - C&V,2103718971,1000003398
05.07.2023,ADULT SOCIAL CARE,LONDON CARE LTD,480.26,PHY LTS 65+,HOMECARE - C&V,2103718710,1000003398
05.07.2023,ADULT SOCIAL CARE,LONDON CARE LTD,485.29,PHY LTS 65+,HOMECARE - C&V,2103718932,1000003398
05.07.2023,ADULT SOCIAL CARE,LONDON CARE LTD,500.59,PHY LTS 65+,HOMECARE - C&V,2103718715,1000003398
05.07.2023,ADULT SOCIAL CARE,LONDON CARE LTD,504.47,PHY LTS 65+,HOMECARE - C&V,2103718718,1000003398
05.07.2023,ADULT SOCIAL CARE,LONDON CARE LTD,515.75,PHY LTS 65+,HOMECARE - C&V,2103718682,1000003398
05.07.2023,ADULT SOCIAL CARE,LONDON CARE LTD,525.72,PHY LTS 65+,HOMECARE - C&V,2103718903,1000003398
05.07.2023,ADULT SOCIAL CARE,LONDON CARE LTD,530.9,PHY LTS 65+,HOMECARE - C&V,2103718697,1000003398
05.07.2023,ADULT SOCIAL CARE,LONDON CARE LTD,530.91,PHY LTS 65+,HOMECARE - C&V,2103718894,1000003398
05.07.2023,ADULT SOCIAL CARE,LONDON CARE LTD,545.98,PHY LTS 65+,HOMECARE - C&V,2103718678,1000003398
05.07.2023,ADULT SOCIAL CARE,LONDON CARE LTD,556.16,PHY LTS 65+,HOMECARE - C&V,2103718986,1000003398
05.07.2023,ADULT SOCIAL CARE,LONDON CARE LTD,561.11,PHY LTS 65+,HOMECARE - C&V,2103718904,1000003398
05.07.2023,ADULT SOCIAL CARE,LONDON CARE LTD,561.11,PHY LTS 65+,HOMECARE - C&V,2103719010,1000003398
05.07.2023,ADULT SOCIAL CARE,LONDON CARE LTD,566.16,PHY LTS 65+,HOMECARE - C&V,2103719003,1000003398
05.07.2023,ADULT SOCIAL CARE,LONDON CARE LTD,571.22,PHY LTS 65+,HOMECARE - C&V,2103718918,1000003398
05.07.2023,ADULT SOCIAL CARE,LONDON CARE LTD,576.28,PHY LTS 65+,HOMECARE - C&V,2103718970,1000003398
05.07.2023,ADULT SOCIAL CARE,LONDON CARE LTD,596.55,PHY LTS 65+,HOMECARE - C&V,2103719009,1000003398
05.07.2023,ADULT SOCIAL CARE,LONDON CARE LTD,601.63,PHY LTS 65+,HOMECARE - C&V,2103718853,1000003398
05.07.2023,ADULT SOCIAL CARE,LONDON CARE LTD,601.68,PHY LTS 65+,HOMECARE - C&V,2103718740,1000003398
05.07.2023,ADULT SOCIAL CARE,LONDON CARE LTD,636.94,PHY LTS 65+,HOMECARE - C&V,2103718993,1000003398
05.07.2023,ADULT SOCIAL CARE,LONDON CARE LTD,641.99,PHY LTS 65+,HOMECARE - C&V,2103718656,1000003398
05.07.2023,ADULT SOCIAL CARE,LONDON CARE LTD,641.99,PHY LTS 65+,HOMECARE - C&V,2103718959,1000003398
05.07.2023,ADULT SOCIAL CARE,LONDON CARE LTD,642.11,PHY LTS 65+,HOMECARE - C&V,2103718691,1000003398
05.07.2023,ADULT SOCIAL CARE,LONDON CARE LTD,652.1,PHY LTS 65+,HOMECARE - C&V,2103718914,1000003398
05.07.2023,ADULT SOCIAL CARE,LONDON CARE LTD,657.25,PHY LTS 65+,HOMECARE - C&V,2103719014,1000003398
05.07.2023,ADULT SOCIAL CARE,LONDON CARE LTD,662.22,PHY LTS 65+,HOMECARE - C&V,2103718873,1000003398
05.07.2023,ADULT SOCIAL CARE,LONDON CARE LTD,663.36,PHY LTS 65+,HOMECARE - C&V,2103718829,1000003398
05.07.2023,ADULT SOCIAL CARE,LONDON CARE LTD,667.29,PHY LTS 65+,HOMECARE - C&V,2103718794,1000003398
05.07.2023,ADULT SOCIAL CARE,LONDON CARE LTD,677.39,PHY LTS 65+,HOMECARE - C&V,2103718854,1000003398
05.07.2023,ADULT SOCIAL CARE,LONDON CARE LTD,677.5,PHY LTS 65+,HOMECARE - C&V,2103718662,1000003398
05.07.2023,ADULT SOCIAL CARE,LONDON CARE LTD,692.54,PHY LTS 65+,HOMECARE - C&V,2103718858,1000003398
05.07.2023,ADULT SOCIAL CARE,LONDON CARE LTD,692.55,PHY LTS 65+,HOMECARE - C&V,2103718735,1000003398
05.07.2023,ADULT SOCIAL CARE,LONDON CARE LTD,697.73,PHY LTS 65+,HOMECARE - C&V,2103718975,1000003398
05.07.2023,ADULT SOCIAL CARE,LONDON CARE LTD,702.79,PHY LTS 65+,HOMECARE - C&V,2103718676,1000003398
05.07.2023,ADULT SOCIAL CARE,LONDON CARE LTD,707.85,PHY LTS 65+,HOMECARE - C&V,2103718668,1000003398
05.07.2023,ADULT SOCIAL CARE,LONDON CARE LTD,712.89,PHY LTS 65+,HOMECARE - C&V,2103718672,1000003398
05.07.2023,ADULT SOCIAL CARE,LONDON CARE LTD,717.82,PHY LTS 65+,HOMECARE - C&V,2103718728,1000003398
05.07.2023,ADULT SOCIAL CARE,LONDON CARE LTD,722.89,PHY LTS 65+,HOMECARE - C&V,2103718818,1000003398
05.07.2023,ADULT SOCIAL CARE,LONDON CARE LTD,723.01,PHY LTS 65+,HOMECARE - C&V,2103718674,1000003398
05.07.2023,ADULT SOCIAL CARE,LONDON CARE LTD,728.06,PHY LTS 65+,HOMECARE - C&V,2103718649,1000003398
05.07.2023,ADULT SOCIAL CARE,LONDON CARE LTD,738.19,PHY LTS 65+,HOMECARE - C&V,2103718934,1000003398
05.07.2023,ADULT SOCIAL CARE,LONDON CARE LTD,743.1,PHY LTS 65+,HOMECARE - C&V,2103718730,1000003398
05.07.2023,ADULT SOCIAL CARE,LONDON CARE LTD,773.55,PHY LTS 65+,HOMECARE - C&V,2103718654,1000003398
05.07.2023,ADULT SOCIAL CARE,LONDON CARE LTD,779.5,PHY LTS 65+,HOMECARE - C&V,2103718860,1000003398
05.07.2023,ADULT SOCIAL CARE,LONDON CARE LTD,788.72,PHY LTS 65+,HOMECARE - C&V,2103718958,1000003398
05.07.2023,ADULT SOCIAL CARE,LONDON CARE LTD,788.74,PHY LTS 65+,HOMECARE - C&V,2103718713,1000003398
05.07.2023,ADULT SOCIAL CARE,LONDON CARE LTD,798.83,PHY LTS 65+,HOMECARE - C&V,2103718899,1000003398
05.07.2023,ADULT SOCIAL CARE,LONDON CARE LTD,799.77,PHY LTS 65+,HOMECARE - C&V,2103718977,1000003398
05.07.2023,ADULT SOCIAL CARE,LONDON CARE LTD,803.9,PHY LTS 65+,HOMECARE - C&V,2103718990,1000003398
05.07.2023,ADULT SOCIAL CARE,LONDON CARE LTD,803.91,PHY LTS 65+,HOMECARE - C&V,2103718891,1000003398
05.07.2023,ADULT SOCIAL CARE,LONDON CARE LTD,808.92,PHY LTS 65+,HOMECARE - C&V,2103718870,1000003398
05.07.2023,ADULT SOCIAL CARE,LONDON CARE LTD,813.86,PHY LTS 65+,HOMECARE - C&V,2103718930,1000003398
05.07.2023,ADULT SOCIAL CARE,LONDON CARE LTD,822.89,PHY LTS 65+,HOMECARE - C&V,2103718695,1000003398
05.07.2023,ADULT SOCIAL CARE,LONDON CARE LTD,824.04,PHY LTS 65+,HOMECARE - C&V,2103718716,1000003398
05.07.2023,ADULT SOCIAL CARE,LONDON CARE LTD,832.84,PHY LTS 65+,HOMECARE - C&V,2103718745,1000003398
05.07.2023,ADULT SOCIAL CARE,LONDON CARE LTD,834.21,PHY LTS 65+,HOMECARE - C&V,2103718872,1000003398
05.07.2023,ADULT SOCIAL CARE,LONDON CARE LTD,839.15,PHY LTS 65+,HOMECARE - C&V,2103718707,1000003398
05.07.2023,ADULT SOCIAL CARE,LONDON CARE LTD,839.29,PHY LTS 65+,HOMECARE - C&V,2103718823,1000003398
05.07.2023,ADULT SOCIAL CARE,LONDON CARE LTD,839.29,PHY LTS 65+,HOMECARE - C&V,2103719017,1000003398
05.07.2023,ADULT SOCIAL CARE,LONDON CARE LTD,844.46,PHY LTS 65+,HOMECARE - C&V,2103719023,1000003398
05.07.2023,ADULT SOCIAL CARE,LONDON CARE LTD,849.24,PHY LTS 65+,HOMECARE - C&V,2103718655,1000003398
05.07.2023,ADULT SOCIAL CARE,LONDON CARE LTD,858.32,PHY LTS 65+,HOMECARE - C&V,2103718795,1000003398
05.07.2023,ADULT SOCIAL CARE,LONDON CARE LTD,859.46,PHY LTS 65+,HOMECARE - C&V,2103718780,1000003398
05.07.2023,ADULT SOCIAL CARE,LONDON CARE LTD,864.47,PHY LTS 65+,HOMECARE - C&V,2103718661,1000003398
05.07.2023,ADULT SOCIAL CARE,LONDON CARE LTD,869.62,PHY LTS 65+,HOMECARE - C&V,2103718647,1000003398
05.07.2023,ADULT SOCIAL CARE,LONDON CARE LTD,869.72,PHY LTS 65+,HOMECARE - C&V,2103718887,1000003398
05.07.2023,ADULT SOCIAL CARE,LONDON CARE LTD,874.69,PHY LTS 65+,HOMECARE - C&V,2103718724,1000003398
05.07.2023,ADULT SOCIAL CARE,LONDON CARE LTD,889.75,PHY LTS 65+,HOMECARE - C&V,2103718897,1000003398
05.07.2023,ADULT SOCIAL CARE,LONDON CARE LTD,902.55,PHY LTS 65+,HOMECARE - C&V,2103718953,1000003398
05.07.2023,ADULT SOCIAL CARE,LONDON CARE LTD,904.86,PHY LTS 65+,HOMECARE - C&V,2103718969,1000003398
05.07.2023,ADULT SOCIAL CARE,LONDON CARE LTD,919.78,PHY LTS 65+,HOMECARE - C&V,2103718693,1000003398
05.07.2023,ADULT SOCIAL CARE,LONDON CARE LTD,920.09,PHY LTS 65+,HOMECARE - C&V,2103718704,1000003398
05.07.2023,ADULT SOCIAL CARE,LONDON CARE LTD,925.22,PHY LTS 65+,HOMECARE - C&V,2103718949,1000003398
05.07.2023,ADULT SOCIAL CARE,LONDON CARE LTD,925.24,PHY LTS 65+,HOMECARE - C&V,2103718944,1000003398
05.07.2023,ADULT SOCIAL CARE,LONDON CARE LTD,930.27,PHY LTS 65+,HOMECARE - C&V,2103718898,1000003398
05.07.2023,ADULT SOCIAL CARE,LONDON CARE LTD,932.19,PHY LTS 65+,HOMECARE - C&V,2103718984,1000003398
05.07.2023,ADULT SOCIAL CARE,LONDON CARE LTD,940.23,PHY LTS 65+,HOMECARE - C&V,2103718874,1000003398
05.07.2023,ADULT SOCIAL CARE,LONDON CARE LTD,975.63,PHY LTS 65+,HOMECARE - C&V,2103718981,1000003398
05.07.2023,ADULT SOCIAL CARE,LONDON CARE LTD,975.76,PHY LTS 65+,HOMECARE - C&V,2103718980,1000003398
05.07.2023,ADULT SOCIAL CARE,LONDON CARE LTD,980.69,PHY LTS 65+,HOMECARE - C&V,2103718786,1000003398
05.07.2023,ADULT SOCIAL CARE,LONDON CARE LTD,980.8,PHY LTS 65+,HOMECARE - C&V,2103718909,1000003398
05.07.2023,ADULT SOCIAL CARE,LONDON CARE LTD,980.81,PHY LTS 65+,HOMECARE - C&V,2103718666,1000003398
05.07.2023,ADULT SOCIAL CARE,LONDON CARE LTD,990.92,PHY LTS 65+,HOMECARE - C&V,2103718687,1000003398
05.07.2023,ADULT SOCIAL CARE,LONDON CARE LTD,990.92,PHY LTS 65+,HOMECARE - C&V,2103719007,1000003398
05.07.2023,ADULT SOCIAL CARE,LONDON CARE LTD,990.92,PHY LTS 65+,HOMECARE - C&V,2103719020,1000003398
05.07.2023,ADULT SOCIAL CARE,LONDON CARE LTD,994.31,PHY LTS 65+,HOMECARE - C&V,2103718888,1000003398
05.07.2023,ADULT SOCIAL CARE,LONDON CARE LTD,997.16,PHY LTS 65+,HOMECARE - C&V,2103719012,1000003398
05.07.2023,ADULT SOCIAL CARE,LONDON CARE LTD,"1,001.04",PHY LTS 65+,HOMECARE - C&V,2103718941,1000003398
05.07.2023,ADULT SOCIAL CARE,LONDON CARE LTD,"1,005.97",PHY LTS 65+,HOMECARE - C&V,2103718896,1000003398
05.07.2023,ADULT SOCIAL CARE,LONDON CARE LTD,"1,016.07",PHY LTS 65+,HOMECARE - C&V,2103718913,1000003398
05.07.2023,ADULT SOCIAL CARE,LONDON CARE LTD,"1,031.37",PHY LTS 65+,HOMECARE - C&V,2103718701,1000003398
05.07.2023,ADULT SOCIAL CARE,LONDON CARE LTD,"1,036.31",PHY LTS 65+,HOMECARE - C&V,2103718965,1000003398
05.07.2023,ADULT SOCIAL CARE,LONDON CARE LTD,"1,036.43",PHY LTS 65+,HOMECARE - C&V,2103718791,1000003398
05.07.2023,ADULT SOCIAL CARE,LONDON CARE LTD,"1,046.39",PHY LTS 65+,HOMECARE - C&V,2103718754,1000003398
05.07.2023,ADULT SOCIAL CARE,LONDON CARE LTD,"1,046.53",PHY LTS 65+,HOMECARE - C&V,2103718719,1000003398
05.07.2023,ADULT SOCIAL CARE,LONDON CARE LTD,"1,046.55",PHY LTS 65+,HOMECARE - C&V,2103718901,1000003398
05.07.2023,ADULT SOCIAL CARE,LONDON CARE LTD,"1,046.55",PHY LTS 65+,HOMECARE - C&V,2103718906,1000003398
05.07.2023,ADULT SOCIAL CARE,LONDON CARE LTD,"1,061.68",PHY LTS 65+,HOMECARE - C&V,2103718808,1000003398
05.07.2023,ADULT SOCIAL CARE,LONDON CARE LTD,"1,076.86",PHY LTS 65+,HOMECARE - C&V,2103718685,1000003398
05.07.2023,ADULT SOCIAL CARE,LONDON CARE LTD,"1,076.86",PHY LTS 65+,HOMECARE - C&V,2103718933,1000003398
05.07.2023,ADULT SOCIAL CARE,LONDON CARE LTD,"1,091.91",PHY LTS 65+,HOMECARE - C&V,2103718831,1000003398
05.07.2023,ADULT SOCIAL CARE,LONDON CARE LTD,"1,094.91",PHY LTS 65+,HOMECARE - C&V,2103718867,1000003398
05.07.2023,ADULT SOCIAL CARE,LONDON CARE LTD,"1,102.17",PHY LTS 65+,HOMECARE - C&V,2103718825,1000003398
05.07.2023,ADULT SOCIAL CARE,LONDON CARE LTD,"1,112.11",PHY LTS 65+,HOMECARE - C&V,2103718688,1000003398
05.07.2023,ADULT SOCIAL CARE,LONDON CARE LTD,"1,112.13",PHY LTS 65+,HOMECARE - C&V,2103718907,1000003398
05.07.2023,ADULT SOCIAL CARE,LONDON CARE LTD,"1,127.37",PHY LTS 65+,HOMECARE - C&V,2103718957,1000003398
05.07.2023,ADULT SOCIAL CARE,LONDON CARE LTD,"1,142.65",PHY LTS 65+,HOMECARE - C&V,2103718979,1000003398
05.07.2023,ADULT SOCIAL CARE,LONDON CARE LTD,"1,147.51",PHY LTS 65+,HOMECARE - C&V,2103718889,1000003398
05.07.2023,ADULT SOCIAL CARE,LONDON CARE LTD,"1,187.94",PHY LTS 65+,HOMECARE - C&V,2103718996,1000003398
05.07.2023,ADULT SOCIAL CARE,LONDON CARE LTD,"1,190.48",PHY LTS 65+,HOMECARE - C&V,2103718946,1000003398
05.07.2023,ADULT SOCIAL CARE,LONDON CARE LTD,"1,196.15",PHY LTS 65+,HOMECARE - C&V,2103719018,1000003398
05.07.2023,ADULT SOCIAL CARE,LONDON CARE LTD,"1,208.27",PHY LTS 65+,HOMECARE - C&V,2103719013,1000003398
05.07.2023,ADULT SOCIAL CARE,LONDON CARE LTD,"1,218.49",PHY LTS 65+,HOMECARE - C&V,2103718935,1000003398
05.07.2023,ADULT SOCIAL CARE,LONDON CARE LTD,"1,258.85",PHY LTS 65+,HOMECARE - C&V,2103718675,1000003398
05.07.2023,ADULT SOCIAL CARE,LONDON CARE LTD,"1,278.93",PHY LTS 65+,HOMECARE - C&V,2103718910,1000003398
05.07.2023,ADULT SOCIAL CARE,LONDON CARE LTD,"1,279.05",PHY LTS 65+,HOMECARE - C&V,2103718882,1000003398
05.07.2023,ADULT SOCIAL CARE,LONDON CARE LTD,"1,279.07",PHY LTS 65+,HOMECARE - C&V,2103718992,1000003398
05.07.2023,ADULT SOCIAL CARE,LONDON CARE LTD,"1,279.14",PHY LTS 65+,HOMECARE - C&V,2103718951,1000003398
05.07.2023,ADULT SOCIAL CARE,LONDON CARE LTD,"1,284.12",PHY LTS 65+,HOMECARE - C&V,2103718702,1000003398
05.07.2023,ADULT SOCIAL CARE,LONDON CARE LTD,"1,289.17",PHY LTS 65+,HOMECARE - C&V,2103718875,1000003398
05.07.2023,ADULT SOCIAL CARE,LONDON CARE LTD,"1,296.02",PHY LTS 65+,HOMECARE - C&V,2103718851,1000003398
05.07.2023,ADULT SOCIAL CARE,LONDON CARE LTD,"1,309.41",PHY LTS 65+,HOMECARE - C&V,2103718670,1000003398
05.07.2023,ADULT SOCIAL CARE,LONDON CARE LTD,"1,329.52",PHY LTS 65+,HOMECARE - C&V,2103718821,1000003398
05.07.2023,ADULT SOCIAL CARE,LONDON CARE LTD,"1,329.66",PHY LTS 65+,HOMECARE - C&V,2103719008,1000003398
05.07.2023,ADULT SOCIAL CARE,LONDON CARE LTD,"1,344.94",PHY LTS 65+,HOMECARE - C&V,2103718954,1000003398
05.07.2023,ADULT SOCIAL CARE,LONDON CARE LTD,"1,357.38",PHY LTS 65+,HOMECARE - C&V,2103718987,1000003398
05.07.2023,ADULT SOCIAL CARE,LONDON CARE LTD,"1,364.88",PHY LTS 65+,HOMECARE - C&V,2103718734,1000003398
05.07.2023,ADULT SOCIAL CARE,LONDON CARE LTD,"1,385.34",PHY LTS 65+,HOMECARE - C&V,2103718739,1000003398
05.07.2023,ADULT SOCIAL CARE,LONDON CARE LTD,"1,400.25",PHY LTS 65+,HOMECARE - C&V,2103718828,1000003398
05.07.2023,ADULT SOCIAL CARE,LONDON CARE LTD,"1,434.62",PHY LTS 65+,HOMECARE - C&V,2103718646,1000003398
05.07.2023,ADULT SOCIAL CARE,LONDON CARE LTD,"1,434.73",PHY LTS 65+,HOMECARE - C&V,2103718805,1000003398
05.07.2023,ADULT SOCIAL CARE,LONDON CARE LTD,"1,445.78",PHY LTS 65+,HOMECARE - C&V,2103719025,1000003398
05.07.2023,ADULT SOCIAL CARE,LONDON CARE LTD,"1,445.79",PHY LTS 65+,HOMECARE - C&V,2103718905,1000003398
05.07.2023,ADULT SOCIAL CARE,LONDON CARE LTD,"1,445.98",PHY LTS 65+,HOMECARE - C&V,2103719011,1000003398
05.07.2023,ADULT SOCIAL CARE,LONDON CARE LTD,"1,496.33",PHY LTS 65+,HOMECARE - C&V,2103718660,1000003398
05.07.2023,ADULT SOCIAL CARE,LONDON CARE LTD,"1,496.55",PHY LTS 65+,HOMECARE - C&V,2103718783,1000003398
05.07.2023,ADULT SOCIAL CARE,LONDON CARE LTD,"1,501.60",PHY LTS 65+,HOMECARE - C&V,2103718749,1000003398
05.07.2023,ADULT SOCIAL CARE,LONDON CARE LTD,"1,531.79",PHY LTS 65+,HOMECARE - C&V,2103718671,1000003398
05.07.2023,ADULT SOCIAL CARE,LONDON CARE LTD,"1,573.27",PHY LTS 65+,HOMECARE - C&V,2103718974,1000003398
05.07.2023,ADULT SOCIAL CARE,LONDON CARE LTD,"1,587.48",PHY LTS 65+,HOMECARE - C&V,2103718712,1000003398
05.07.2023,ADULT SOCIAL CARE,LONDON CARE LTD,"1,588.39",PHY LTS 65+,HOMECARE - C&V,2103718815,1000003398
05.07.2023,ADULT SOCIAL CARE,LONDON CARE LTD,"1,648.11",PHY LTS 65+,HOMECARE - C&V,2103718703,1000003398
05.07.2023,ADULT SOCIAL CARE,LONDON CARE LTD,"1,688.47",PHY LTS 65+,HOMECARE - C&V,2103718908,1000003398
05.07.2023,ADULT SOCIAL CARE,LONDON CARE LTD,"1,703.66",PHY LTS 65+,HOMECARE - C&V,2103718924,1000003398
05.07.2023,ADULT SOCIAL CARE,LONDON CARE LTD,"1,729.30",PHY LTS 65+,HOMECARE - C&V,2103718976,1000003398
05.07.2023,ADULT SOCIAL CARE,LONDON CARE LTD,"1,754.23",PHY LTS 65+,HOMECARE - C&V,2103718837,1000003398
05.07.2023,ADULT SOCIAL CARE,LONDON CARE LTD,"1,794.90",PHY LTS 65+,HOMECARE - C&V,2103718929,1000003398
05.07.2023,ADULT SOCIAL CARE,LONDON CARE LTD,"1,820.20",PHY LTS 65+,HOMECARE - C&V,2103718706,1000003398
05.07.2023,ADULT SOCIAL CARE,LONDON CARE LTD,"1,855.19",PHY LTS 65+,HOMECARE - C&V,2103718814,1000003398
05.07.2023,ADULT SOCIAL CARE,LONDON CARE LTD,"1,890.93",PHY LTS 65+,HOMECARE - C&V,2103718835,1000003398
05.07.2023,ADULT SOCIAL CARE,LONDON CARE LTD,"2,012.19",PHY LTS 65+,HOMECARE - C&V,2103718726,1000003398
05.07.2023,ADULT SOCIAL CARE,LONDON CARE LTD,"2,012.26",PHY LTS 65+,HOMECARE - C&V,2103718781,1000003398
05.07.2023,ADULT SOCIAL CARE,LONDON CARE LTD,"2,024.04",PHY LTS 65+,HOMECARE - C&V,2103719000,1000003398
05.07.2023,ADULT SOCIAL CARE,LONDON CARE LTD,"2,264.65",PHY LTS 65+,HOMECARE - C&V,2103718768,1000003398
05.07.2023,ADULT SOCIAL CARE,LONDON CARE LTD,"2,264.92",PHY LTS 65+,HOMECARE - C&V,2103718761,1000003398
05.07.2023,ADULT SOCIAL CARE,LONDON CARE LTD,"2,305.49",PHY LTS 65+,HOMECARE - C&V,2103718736,1000003398
05.07.2023,ADULT SOCIAL CARE,LONDON CARE LTD,"2,502.52",PHY LTS 65+,HOMECARE - C&V,2103718857,1000003398
05.07.2023,ADULT SOCIAL CARE,LONDON CARE LTD,"2,517.69",PHY LTS 65+,HOMECARE - C&V,2103718789,1000003398
05.07.2023,ADULT SOCIAL CARE,LONDON CARE LTD,"2,558.12",PHY LTS 65+,HOMECARE - C&V,2103718790,1000003398
05.07.2023,ADULT SOCIAL CARE,LONDON CARE LTD,"2,584.53",PHY LTS 65+,HOMECARE - C&V,2103718921,1000003398
05.07.2023,ADULT SOCIAL CARE,LONDON CARE LTD,"2,588.45",PHY LTS 65+,HOMECARE - C&V,2103718846,1000003398
05.07.2023,ADULT SOCIAL CARE,LONDON CARE LTD,"2,588.52",PHY LTS 65+,HOMECARE - C&V,2103718826,1000003398
05.07.2023,ADULT SOCIAL CARE,LONDON CARE LTD,"2,603.65",PHY LTS 65+,HOMECARE - C&V,2103718856,1000003398
05.07.2023,ADULT SOCIAL CARE,LONDON CARE LTD,"2,626.50",PHY LTS 65+,HOMECARE - C&V,2103718762,1000003398
05.07.2023,ADULT SOCIAL CARE,LONDON CARE LTD,"2,686.00",PHY LTS 65+,HOMECARE - C&V,2103718785,1000003398
05.07.2023,ADULT SOCIAL CARE,LONDON CARE LTD,"2,765.41",PHY LTS 65+,HOMECARE - C&V,2103718747,1000003398
05.07.2023,ADULT SOCIAL CARE,LONDON CARE LTD,"2,810.58",PHY LTS 65+,HOMECARE - C&V,2103718681,1000003398
05.07.2023,ADULT SOCIAL CARE,LONDON CARE LTD,"2,810.99",PHY LTS 65+,HOMECARE - C&V,2103718773,1000003398
05.07.2023,ADULT SOCIAL CARE,LONDON CARE LTD,"2,836.07",PHY LTS 65+,HOMECARE - C&V,2103719021,1000003398
05.07.2023,ADULT SOCIAL CARE,LONDON CARE LTD,"2,891.51",PHY LTS 65+,HOMECARE - C&V,2103718793,1000003398
05.07.2023,ADULT SOCIAL CARE,LONDON CARE LTD,"2,892.02",PHY LTS 65+,HOMECARE - C&V,2103718962,1000003398
05.07.2023,ADULT SOCIAL CARE,LONDON CARE LTD,"3,043.59",PHY LTS 65+,HOMECARE - C&V,2103718751,1000003398
05.07.2023,ADULT SOCIAL CARE,LONDON CARE LTD,"3,169.90",PHY LTS 65+,HOMECARE - C&V,2103718753,1000003398
05.07.2023,ADULT SOCIAL CARE,LONDON CARE LTD,"3,230.35",PHY LTS 65+,HOMECARE - C&V,2103718807,1000003398
05.07.2023,ADULT SOCIAL CARE,LONDON CARE LTD,"3,421.49",PHY LTS 65+,HOMECARE - C&V,2103718784,1000003398
05.07.2023,ADULT SOCIAL CARE,LONDON CARE LTD,"3,438.44",PHY LTS 65+,HOMECARE - C&V,2103718862,1000003398
05.07.2023,ADULT SOCIAL CARE,LONDON CARE LTD,"4,105.23",PHY LTS 65+,HOMECARE - C&V,2103719004,1000003398
05.07.2023,ADULT SOCIAL CARE,SUPREME CARE SERVICES LTD,353.88,PHY LTS 65+,HOMECARE - C&V,2103719030,1000059416
05.07.2023,ADULT SOCIAL CARE,THAMES HOMECARE SERVICE LTD,273.46,PHY LTS 65+,HOMECARE - C&V,2103718560,1000079295
05.07.2023,ADULT SOCIAL CARE,LONDON CARE LTD,533.82,PHY LTS 65+,HOMECARE - SPOT,2103719022,1000003398
05.07.2023,ADULT SOCIAL CARE,METRO HOMECARE LTD,264,PHY LTS 65+,HOMECARE - SPOT,2103718617,1000070695
05.07.2023,ADULT SOCIAL CARE,METRO HOMECARE LTD,"1,237.50",PHY LTS 65+,HOMECARE - SPOT,2103718620,1000070695
05.07.2023,ADULT SOCIAL CARE,THAMES HOMECARE SERVICE LTD,254.27,PHY LTS 65+,HOMECARE - SPOT,2103718571,1000079295
05.07.2023,ADULT SOCIAL CARE,THAMES HOMECARE SERVICE LTD,254.27,PHY LTS 65+,HOMECARE - SPOT,2103718605,1000079295
05.07.2023,ADULT SOCIAL CARE,THAMES HOMECARE SERVICE LTD,268.66,PHY LTS 65+,HOMECARE - SPOT,2103718572,1000079295
05.07.2023,ADULT SOCIAL CARE,THAMES HOMECARE SERVICE LTD,278.26,PHY LTS 65+,HOMECARE - SPOT,2103718579,1000079295
05.07.2023,ADULT SOCIAL CARE,THAMES HOMECARE SERVICE LTD,302.24,PHY LTS 65+,HOMECARE - SPOT,2103718564,1000079295
05.07.2023,ADULT SOCIAL CARE,THAMES HOMECARE SERVICE LTD,316.64,PHY LTS 65+,HOMECARE - SPOT,2103718598,1000079295
05.07.2023,ADULT SOCIAL CARE,THAMES HOMECARE SERVICE LTD,321.43,PHY LTS 65+,HOMECARE - SPOT,2103718566,1000079295
05.07.2023,ADULT SOCIAL CARE,THAMES HOMECARE SERVICE LTD,369.41,PHY LTS 65+,HOMECARE - SPOT,2103718569,1000079295
05.07.2023,ADULT SOCIAL CARE,THAMES HOMECARE SERVICE LTD,398.19,PHY LTS 65+,HOMECARE - SPOT,2103718556,1000079295
05.07.2023,ADULT SOCIAL CARE,THAMES HOMECARE SERVICE LTD,412.59,PHY LTS 65+,HOMECARE - SPOT,2103718586,1000079295
05.07.2023,ADULT SOCIAL CARE,THAMES HOMECARE SERVICE LTD,465.36,PHY LTS 65+,HOMECARE - SPOT,2103718584,1000079295
05.07.2023,ADULT SOCIAL CARE,THAMES HOMECARE SERVICE LTD,470.16,PHY LTS 65+,HOMECARE - SPOT,2103718577,1000079295
05.07.2023,ADULT SOCIAL CARE,THAMES HOMECARE SERVICE LTD,537.32,PHY LTS 65+,HOMECARE - SPOT,2103718565,1000079295
05.07.2023,ADULT SOCIAL CARE,THAMES HOMECARE SERVICE LTD,570.9,PHY LTS 65+,HOMECARE - SPOT,2103718585,1000079295
05.07.2023,ADULT SOCIAL CARE,THAMES HOMECARE SERVICE LTD,604.49,PHY LTS 65+,HOMECARE - SPOT,2103718548,1000079295
05.07.2023,ADULT SOCIAL CARE,THAMES HOMECARE SERVICE LTD,604.49,PHY LTS 65+,HOMECARE - SPOT,2103718559,1000079295
05.07.2023,ADULT SOCIAL CARE,THAMES HOMECARE SERVICE LTD,604.49,PHY LTS 65+,HOMECARE - SPOT,2103718594,1000079295
05.07.2023,ADULT SOCIAL CARE,THAMES HOMECARE SERVICE LTD,604.49,PHY LTS 65+,HOMECARE - SPOT,2103718597,1000079295
05.07.2023,ADULT SOCIAL CARE,THAMES HOMECARE SERVICE LTD,676.45,PHY LTS 65+,HOMECARE - SPOT,2103718601,1000079295
05.07.2023,ADULT SOCIAL CARE,THAMES HOMECARE SERVICE LTD,686.04,PHY LTS 65+,HOMECARE - SPOT,2103718551,1000079295
05.07.2023,ADULT SOCIAL CARE,THAMES HOMECARE SERVICE LTD,700.44,PHY LTS 65+,HOMECARE - SPOT,2103718578,1000079295
05.07.2023,ADULT SOCIAL CARE,THAMES HOMECARE SERVICE LTD,738.82,PHY LTS 65+,HOMECARE - SPOT,2103718562,1000079295
05.07.2023,ADULT SOCIAL CARE,THAMES HOMECARE SERVICE LTD,738.82,PHY LTS 65+,HOMECARE - SPOT,2103718604,1000079295
05.07.2023,ADULT SOCIAL CARE,THAMES HOMECARE SERVICE LTD,"1,007.48",PHY LTS 65+,HOMECARE - SPOT,2103718574,1000079295
05.07.2023,ADULT SOCIAL CARE,SUPREME CARE SERVICES LTD,356,PHY STS 65+,HOMECARE - IC,2103719031,1000059416
05.07.2023,ADULT SOCIAL CARE,SUPREME CARE SERVICES LTD,415.67,PHY STS 65+,HOMECARE - IC,2103719032,1000059416
05.07.2023,ADULT SOCIAL CARE,SUPREME CARE SERVICES LTD,"1,494.16",PHY STS 65+,HOMECARE - IC,2103719033,1000059416
05.07.2023,ADULT SOCIAL CARE,THAMES HOMECARE SERVICE LTD,671.65,PHY STS 65+,HOMECARE - IC,2103718550,1000079295
05.07.2023,ADULT SOCIAL CARE,ELIMHOUSE COMMUNITY ASSOCIATION,450,SOCIAL ISOLATION,DAYCARE,2103718609,1000076454
05.07.2023,ADULT SOCIAL CARE,LONDON CARE LTD,540.9,SOCIAL ISOLATION,HOMECARE - C&V,2103718769,1000003398
05.07.2023,ADULT SOCIAL CARE,LONDON CARE LTD,768.51,SOCIAL ISOLATION,HOMECARE - C&V,2103718819,1000003398
05.07.2023,ADULT SOCIAL CARE,LONDON CARE LTD,"1,011.50",SOCIAL ISOLATION,HOMECARE - C&V,2103718776,1000003398
05.07.2023,ADULT SOCIAL CARE,CONTACT PROFESSIONALS,250.51,SPECIALIST CARE,SECTION 17 PAYMENTS TO AGENCIES/CARERS,2103718463,1000057263
05.07.2023,ADULT SOCIAL CARE,CONTACT PROFESSIONALS,269.78,SPECIALIST CARE,SECTION 17 PAYMENTS TO AGENCIES/CARERS,2103718506,1000057263
05.07.2023,ADULT SOCIAL CARE,CONTACT PROFESSIONALS,289.05,SPECIALIST CARE,SECTION 17 PAYMENTS TO AGENCIES/CARERS,2103718473,1000057263
05.07.2023,ADULT SOCIAL CARE,CONTACT PROFESSIONALS,289.05,SPECIALIST CARE,SECTION 17 PAYMENTS TO AGENCIES/CARERS,2103718508,1000057263
05.07.2023,ADULT SOCIAL CARE,CONTACT PROFESSIONALS,308.32,SPECIALIST CARE,SECTION 17 PAYMENTS TO AGENCIES/CARERS,2103718467,1000057263
05.07.2023,ADULT SOCIAL CARE,CONTACT PROFESSIONALS,308.32,SPECIALIST CARE,SECTION 17 PAYMENTS TO AGENCIES/CARERS,2103718543,1000057263
05.07.2023,ADULT SOCIAL CARE,CONTACT PROFESSIONALS,385.4,SPECIALIST CARE,SECTION 17 PAYMENTS TO AGENCIES/CARERS,2103718505,1000057263
05.07.2023,ADULT SOCIAL CARE,CONTACT PROFESSIONALS,462.48,SPECIALIST CARE,SECTION 17 PAYMENTS TO AGENCIES/CARERS,2103718494,1000057263
05.07.2023,ADULT SOCIAL CARE,CONTACT PROFESSIONALS,462.48,SPECIALIST CARE,SECTION 17 PAYMENTS TO AGENCIES/CARERS,2103718541,1000057263
05.07.2023,ADULT SOCIAL CARE,CONTACT PROFESSIONALS,558.83,SPECIALIST CARE,SECTION 17 PAYMENTS TO AGENCIES/CARERS,2103718530,1000057263
05.07.2023,ADULT SOCIAL CARE,CONTACT PROFESSIONALS,597.37,SPECIALIST CARE,SECTION 17 PAYMENTS TO AGENCIES/CARERS,2103718502,1000057263
05.07.2023,ADULT SOCIAL CARE,CONTACT PROFESSIONALS,697.37,SPECIALIST CARE,SECTION 17 PAYMENTS TO AGENCIES/CARERS,2103718478,1000057263
05.07.2023,ADULT SOCIAL CARE,CONTACT PROFESSIONALS,697.37,SPECIALIST CARE,SECTION 17 PAYMENTS TO AGENCIES/CARERS,2103718513,1000057263
05.07.2023,ADULT SOCIAL CARE,CONTACT PROFESSIONALS,732.26,SPECIALIST CARE,SECTION 17 PAYMENTS TO AGENCIES/CARERS,2103718465,1000057263
05.07.2023,ADULT SOCIAL CARE,CONTACT PROFESSIONALS,732.26,SPECIALIST CARE,SECTION 17 PAYMENTS TO AGENCIES/CARERS,2103718529,1000057263
05.07.2023,ADULT SOCIAL CARE,CONTACT PROFESSIONALS,"1,387.44",SPECIALIST CARE,SECTION 17 PAYMENTS TO AGENCIES/CARERS,2103718531,1000057263
05.07.2023,ADULT SOCIAL CARE,KAIROS COMMUNITY TRUST,"4,800.00",SUB LTS 18-64,DAYCARE,2103719028,1000025479
05.07.2023,ADULT SOCIAL CARE,LONDON CARE LTD,429.01,SUB LTS 18-64,HOMECARE - C&V,2103718842,1000003398
05.07.2023,ADULT SOCIAL CARE,LONDON CARE LTD,586.47,SUB LTS 18-64,HOMECARE - C&V,2103718709,1000003398
05.07.2023,ADULT SOCIAL CARE,STREETSCENE ADDICTION RECOVERY LTD,"3,400.00",SUB LTS 18-64,RESIDENTIAL CARE,2103719026,11221787
05.07.2023,ASSET MANAGEMENT,ASHFORDS LLP OFFICE ACCOUNT,282,DISREPAIR,BUILDING R&M,5902587412,1000082695
05.07.2023,ASSET MANAGEMENT,ASHFORDS LLP OFFICE ACCOUNT,442,DISREPAIR,BUILDING R&M,5902587401,1000082695
05.07.2023,ASSET MANAGEMENT,ASHFORDS LLP OFFICE ACCOUNT,680.4,DISREPAIR,BUILDING R&M,5902587397,1000082695
05.07.2023,ASSET MANAGEMENT,ASHFORDS LLP OFFICE ACCOUNT,"1,150.00",DISREPAIR,BUILDING R&M,5902587402,1000082695
05.07.2023,ASSET MANAGEMENT,ASHFORDS LLP OFFICE ACCOUNT,"1,200.00",DISREPAIR,BUILDING R&M,5902587414,1000082695
05.07.2023,ASSET MANAGEMENT,ASHFORDS LLP OFFICE ACCOUNT,"1,325.00",DISREPAIR,BUILDING R&M,5902587398,1000082695
05.07.2023,ASSET MANAGEMENT,ASHFORDS LLP OFFICE ACCOUNT,"1,470.00",DISREPAIR,BUILDING R&M,5902587409,1000082695
05.07.2023,ASSET MANAGEMENT,HSB ENGINEERING INSURANCE SERVICES,"13,934.28",ENG CONTRACTS (SOUTH),LIFTS,5902587447,1000089047
05.07.2023,ASSET MANAGEMENT,CALFORD SEADEN LLP,360,MAJOR REPAIRS,BUILDING R&M,5902587381,1061592
05.07.2023,ASSET MANAGEMENT,CALFORD SEADEN LLP,"1,505.50",REPAIRS OPERATIONS,BUILDING R&M,5902587474,1061592
05.07.2023,C&A,SCRIBEASY LTD,"4,964.00",SUPERZONES,PROFESSIONAL FEES,5902587399,1000089776
05.07.2023,CENTRAL FUNCTIONS,MGKP ASSOCIATES LIMITED,"10,150.00",BUSINESS APPLICATIONS,CONSULTANTS SERVICES,5902587340,1000089607
05.07.2023,CHIEF EXECUTIVE,PURCELL ARCHITECTURE LTD,"25,090.67",CAPITAL PS (REGEN),CONSTRUCTION FEES - ARCHITECT,5902587449,1000082955
05.07.2023,CHIEF EXECUTIVE'S OFFICE,MACI'S AUTHENTIC RUM CAKES LIMITED,"4,000.00",SOUTHWARK PIONEER FUND,GRANTS,5902587500,1000089844
05.07.2023,CHILDREN AND ADULT,FAITHFUL & GOULD,"2,115.00",CAPITAL PS (EDUCATION),CONSTRUCTION FEES,5902587440,1000061390
05.07.2023,CHILDREN AND ADULT,PERMANENT FUTURES LTD,"2,700.00",CAPITAL PS (EDUCATION),ICT ACQUISITION,5902587336,1000089361
05.07.2023,CHILDREN AND ADULT,PERMANENT FUTURES LTD,"3,000.00",CAPITAL PS (EDUCATION),ICT ACQUISITION,5902587374,1000089361
05.07.2023,CHILDREN AND ADULT,PERMANENT FUTURES LTD,"2,875.00",CAPITAL PS (SOC SERV),ICT ACQUISITION,5902587344,1000089361
05.07.2023,CHILDREN AND ADULT,PERMANENT FUTURES LTD,"8,050.00",CAPITAL PS (SOC SERV),ICT ACQUISITION,5902587345,1000089361
05.07.2023,CHILDREN AND ADULT,PERMANENT FUTURES LTD,"10,350.00",CAPITAL PS (SOC SERV),ICT ACQUISITION,5902587348,1000089361
05.07.2023,CHILDREN AND FAMILIES,CHROMA THERAPIES LTD,468,ADOPTION SUPP FUND 2,EXTERNAL AGENCIES AND BODIES,5902587511,1000085537
05.07.2023,CHILDREN AND FAMILIES,THE THERAPEUTIC CONSULTANTS,310,ADOPTION SUPP FUND 2,EXTERNAL AGENCIES AND BODIES,5902587421,1000086961
05.07.2023,CHILDREN AND FAMILIES,SARAH ANNE PETER,480,ADOPTION SUPP FUND 2,EXTERNAL AGENCIES AND BODIES,5902587400,1000089194
05.07.2023,CHILDREN AND FAMILIES,SARAH ANNE PETER,"3,008.00",ADOPTION SUPP FUND 2,EXTERNAL AGENCIES AND BODIES,5902587400,1000089194
05.07.2023,CHILDREN AND FAMILIES,REDACTED PERSONAL DATA,440,ADOPTION SUPP FUND 2,EXTERNAL AGENCIES AND BODIES,REDACTED,REDACTED
05.07.2023,CHILDREN AND FAMILIES,REDACTED PERSONAL DATA,560,ADOPTION SUPP FUND 2,EXTERNAL AGENCIES AND BODIES,REDACTED,REDACTED
05.07.2023,CHILDREN AND FAMILIES,CHROMA THERAPIES LTD,390,ADOPTION SUPP FUND 3,EXTERNAL AGENCIES AND BODIES,5902587510,1000085537
05.07.2023,CHILDREN AND FAMILIES,REDACTED PERSONAL DATA,360,ADOPTION SUPP FUND 3,EXTERNAL AGENCIES AND BODIES,REDACTED,REDACTED
05.07.2023,CHILDREN AND FAMILIES,REDACTED PERSONAL DATA,480,ADOPTION SUPP FUND 3,EXTERNAL AGENCIES AND BODIES,REDACTED,REDACTED
05.07.2023,CHILDREN AND FAMILIES,REDACTED PERSONAL DATA,440,ADOPTION SUPP FUND 3,EXTERNAL AGENCIES AND BODIES,REDACTED,REDACTED
05.07.2023,CHILDREN AND FAMILIES,REDACTED PERSONAL DATA,440,ADOPTION SUPP FUND 3,EXTERNAL AGENCIES AND BODIES,REDACTED,REDACTED
05.07.2023,CHILDREN AND FAMILIES,REDACTED PERSONAL DATA,440,ADOPTION SUPP FUND 3,EXTERNAL AGENCIES AND BODIES,REDACTED,REDACTED
05.07.2023,CHILDREN AND FAMILIES,REDACTED PERSONAL DATA,300,FOSTERING ALLOWANCES,ADDITIONAL PAYMENTS TO AGENCIES/CARERS,REDACTED,REDACTED
05.07.2023,CHILDREN AND FAMILIES,REDACTED PERSONAL DATA,400,FOSTERING ALLOWANCES,ADDITIONAL PAYMENTS TO AGENCIES/CARERS,REDACTED,REDACTED
05.07.2023,CHILDREN AND FAMILIES,REDACTED PERSONAL DATA,-903.42,FOSTERING ALLOWANCES,PAYMENTS TO CARERS,REDACTED,REDACTED
05.07.2023,CHILDREN AND FAMILIES,REDACTED PERSONAL DATA,903.43,FOSTERING ALLOWANCES,PAYMENTS TO CARERS,REDACTED,REDACTED
05.07.2023,CHILDREN AND FAMILIES,REDACTED PERSONAL DATA,"1,187.58",FOSTERING ALLOWANCES,PAYMENTS TO CARERS,REDACTED,REDACTED
05.07.2023,CHILDREN AND FAMILIES,REDACTED PERSONAL DATA,710,FOSTERING ALLOWANCES,PAYMENTS TO CARERS,REDACTED,REDACTED
05.07.2023,CHILDREN AND FAMILIES,REDACTED PERSONAL DATA,-500,FOSTERING ALLOWANCES,PAYMENTS TO CARERS,REDACTED,REDACTED
05.07.2023,CHILDREN AND FAMILIES,REDACTED PERSONAL DATA,"3,073.71",FOSTERING ALLOWANCES,PAYMENTS TO CARERS,REDACTED,REDACTED
05.07.2023,CHILDREN AND FAMILIES,ZFA ACCOMMODATION LTD,"2,480.00",SEMI-IND CARELEAVERS,EXTERNAL AGENCIES AND BODIES,5902587480,1000082620
05.07.2023,CHILDREN AND FAMILIES,PLACE OF PROGRESS LTD,-441.52,SEMI-IND CARELEAVERS,EXTERNAL AGENCIES AND BODIES,5902587333,1000086889
05.07.2023,CHILDREN AND FAMILIES,PLACE OF PROGRESS LTD,"1,912.00",SEMI-IND CARELEAVERS,EXTERNAL AGENCIES AND BODIES,5902587332,1000086889
05.07.2023,CHILDREN AND FAMILIES,OASIS AQUILA HOUSING,"184,920.25",SEMI-IND CONTRACTS,EXTERNAL AGENCIES AND BODIES,5902587439,1000002184
05.07.2023,CHILDREN AND FAMILIES,REDACTED PERSONAL DATA,484.29,SEMI-IND LAC 16-17,OTHER PAYMENTS FOR CLIENTS,REDACTED,REDACTED
05.07.2023,CHILDREN AND FAMILIES,REDACTED PERSONAL DATA,544,SEMI-IND LAC 16-17,OTHER PAYMENTS FOR CLIENTS,REDACTED,REDACTED
05.07.2023,CHILDREN AND FAMILIES,REDACTED PERSONAL DATA,400,SPECIAL GUARDIANSHIP,EXTERNAL AGENCIES AND BODIES,REDACTED,REDACTED
05.07.2023,CHILDREN AND FAMILIES,REDACTED PERSONAL DATA,255.32,SPECIAL GUARDIANSHIP,PAYMENTS TO CARERS,REDACTED,REDACTED
05.07.2023,CHILDREN AND FAMILIES,REDACTED PERSONAL DATA,252.9,SPECIAL GUARDIANSHIP,PAYMENTS TO CARERS,REDACTED,REDACTED
05.07.2023,CHILDREN AND FAMILIES,REDACTED PERSONAL DATA,263.6,SPECIAL GUARDIANSHIP,PAYMENTS TO CARERS,REDACTED,REDACTED
05.07.2023,CHILDREN AND FAMILIES,REDACTED PERSONAL DATA,268.35,SPECIAL GUARDIANSHIP,PAYMENTS TO CARERS,REDACTED,REDACTED
05.07.2023,CHILDREN AND FAMILIES,REDACTED PERSONAL DATA,436.27,SPECIAL GUARDIANSHIP,PAYMENTS TO CARERS,REDACTED,REDACTED
05.07.2023,CHILDREN AND FAMILIES,REDACTED PERSONAL DATA,252.9,SPECIAL GUARDIANSHIP,PAYMENTS TO CARERS,REDACTED,REDACTED
05.07.2023,CHILDREN AND FAMILIES,REDACTED PERSONAL DATA,252.91,SPECIAL GUARDIANSHIP,PAYMENTS TO CARERS,REDACTED,REDACTED
05.07.2023,CHILDREN AND FAMILIES,REDACTED PERSONAL DATA,389.34,SPECIAL GUARDIANSHIP,PAYMENTS TO CARERS,REDACTED,REDACTED
05.07.2023,CHILDREN AND FAMILIES,REDACTED PERSONAL DATA,252.11,SPECIAL GUARDIANSHIP,PAYMENTS TO CARERS,REDACTED,REDACTED
05.07.2023,CHILDREN AND FAMILIES,REDACTED PERSONAL DATA,252.9,SPECIAL GUARDIANSHIP,PAYMENTS TO CARERS,REDACTED,REDACTED
05.07.2023,CHILDREN AND FAMILIES,REDACTED PERSONAL DATA,400.42,SPECIAL GUARDIANSHIP,PAYMENTS TO CARERS,REDACTED,REDACTED
05.07.2023,CHILDREN AND FAMILIES,REDACTED PERSONAL DATA,453.14,SPECIAL GUARDIANSHIP,PAYMENTS TO CARERS,REDACTED,REDACTED
05.07.2023,CHILDREN AND FAMILIES,REDACTED PERSONAL DATA,253.23,SPECIAL GUARDIANSHIP,PAYMENTS TO CARERS,REDACTED,REDACTED
05.07.2023,CHILDREN AND FAMILIES,REDACTED PERSONAL DATA,252.9,SPECIAL GUARDIANSHIP,PAYMENTS TO CARERS,REDACTED,REDACTED
05.07.2023,CHILDREN AND FAMILIES,REDACTED PERSONAL DATA,252.9,SPECIAL GUARDIANSHIP,PAYMENTS TO CARERS,REDACTED,REDACTED
05.07.2023,CHILDREN AND FAMILIES,REDACTED PERSONAL DATA,252.9,SPECIAL GUARDIANSHIP,PAYMENTS TO CARERS,REDACTED,REDACTED
05.07.2023,CHILDREN AND FAMILIES,REDACTED PERSONAL DATA,252.92,SPECIAL GUARDIANSHIP,PAYMENTS TO CARERS,REDACTED,REDACTED
05.07.2023,CHILDREN AND FAMILIES,REDACTED PERSONAL DATA,252.9,SPECIAL GUARDIANSHIP,PAYMENTS TO CARERS,REDACTED,REDACTED
05.07.2023,CHILDREN AND FAMILIES,REDACTED PERSONAL DATA,268.35,SPECIAL GUARDIANSHIP,PAYMENTS TO CARERS,REDACTED,REDACTED
05.07.2023,CHILDREN AND FAMILIES,REDACTED PERSONAL DATA,252.9,SPECIAL GUARDIANSHIP,PAYMENTS TO CARERS,REDACTED,REDACTED
05.07.2023,CHILDREN AND FAMILIES,REDACTED PERSONAL DATA,268.35,SPECIAL GUARDIANSHIP,PAYMENTS TO CARERS,REDACTED,REDACTED
05.07.2023,CHILDREN AND FAMILIES,REDACTED PERSONAL DATA,268.35,SPECIAL GUARDIANSHIP,PAYMENTS TO CARERS,REDACTED,REDACTED
05.07.2023,CHILDREN AND FAMILIES,REDACTED PERSONAL DATA,265.55,SPECIAL GUARDIANSHIP,PAYMENTS TO CARERS,REDACTED,REDACTED
05.07.2023,CHILDREN AND FAMILIES,REDACTED PERSONAL DATA,300,SPECIAL GUARDIANSHIP,PAYMENTS TO CARERS,REDACTED,REDACTED
05.07.2023,CHILDREN AND FAMILIES,REDACTED PERSONAL DATA,525,SPECIAL GUARDIANSHIP,PAYMENTS TO CARERS,REDACTED,REDACTED
05.07.2023,CHILDREN AND FAMILIES,REDACTED PERSONAL DATA,576.45,SPECIAL GUARDIANSHIP,PAYMENTS TO CARERS,REDACTED,REDACTED
05.07.2023,CHILDREN AND FAMILIES,REDACTED PERSONAL DATA,252.9,SPECIAL GUARDIANSHIP,PAYMENTS TO CARERS,REDACTED,REDACTED
05.07.2023,CHILDREN AND FAMILIES,REDACTED PERSONAL DATA,252.9,SPECIAL GUARDIANSHIP,PAYMENTS TO CARERS,REDACTED,REDACTED
05.07.2023,CHILDREN AND FAMILIES,REDACTED PERSONAL DATA,254.27,SPECIAL GUARDIANSHIP,PAYMENTS TO CARERS,REDACTED,REDACTED
05.07.2023,CHILDREN AND FAMILIES,REDACTED PERSONAL DATA,383.55,SPECIAL GUARDIANSHIP,PAYMENTS TO CARERS,REDACTED,REDACTED
05.07.2023,CHILDREN AND FAMILIES,REDACTED PERSONAL DATA,252.9,SPECIAL GUARDIANSHIP,PAYMENTS TO CARERS,REDACTED,REDACTED
05.07.2023,CHILDREN AND FAMILIES,REDACTED PERSONAL DATA,338,SPECIAL GUARDIANSHIP,PAYMENTS TO CARERS,REDACTED,REDACTED
05.07.2023,CHILDREN AND FAMILIES,REDACTED PERSONAL DATA,338,SPECIAL GUARDIANSHIP,PAYMENTS TO CARERS,REDACTED,REDACTED
05.07.2023,CHILDREN AND FAMILIES,REDACTED PERSONAL DATA,270,SPECIAL GUARDIANSHIP,PAYMENTS TO CARERS,REDACTED,REDACTED
05.07.2023,CHILDREN AND FAMILIES,REDACTED PERSONAL DATA,472.71,SPECIAL GUARDIANSHIP,PAYMENTS TO CARERS,REDACTED,REDACTED
05.07.2023,CHILDREN AND FAMILIES,REDACTED PERSONAL DATA,472.71,SPECIAL GUARDIANSHIP,PAYMENTS TO CARERS,REDACTED,REDACTED
05.07.2023,CHILDREN AND FAMILIES,REDACTED PERSONAL DATA,341.22,SPECIAL GUARDIANSHIP,PAYMENTS TO CARERS,REDACTED,REDACTED
05.07.2023,CHILDREN AND FAMILIES,ACCESS MOBILITY TRANSPORT LTD,"1,350.00",TEAM A,EXTERNAL AGENCIES AND BODIES,5902587064,1000074637
05.07.2023,CHILDREN AND FAMILIES,ACCESS MOBILITY TRANSPORT LTD,"2,550.00",TEAM A,EXTERNAL AGENCIES AND BODIES,5902587062,1000074637
05.07.2023,CHILDREN AND FAMILIES,MAGIC ROUNDABOUT NURSERIES LTD,304.66,TEAM D,OTHER PAYMENTS FOR CLIENTS,2103718063,1000045128
05.07.2023,COMMUNITIES,PEMBROKE COLLEGE SETTLEMENT,"1,201.14",COMMUNITIES PROJECTS,PROFESSIONAL FEES,5902587479,1000073444
05.07.2023,COMMUNITIES,LONDON SENIOR SOCIAL LTD,"2,500.00",EAST CENTRAL,GRANTS,5902587462,1000076545
05.07.2023,COMMUNITIES,SOUTHWARK CITIZENS ADVICE,"20,000.00",LEGAL GRANTS,EXTERNAL AGENCIES AND BODIES,5902587519,1874379
05.07.2023,COMMUNITIES,SOUTHWARK CITIZENS ADVICE,"159,000.00",LEGAL GRANTS,EXTERNAL AGENCIES AND BODIES,5902587519,1874379
05.07.2023,COMMUNITIES,J & M OASIS LTD,"10,673.30",NO RECOURSE TO PUBLIC FUNDS,ACCOMMODATION CHARGES,5902587507,1000072169
05.07.2023,COMMUNITIES,METRO HOMECARE LTD,412.5,NO RECOURSE TO PUBLIC FUNDS,HOMECARE - C&V,2103718615,1000070695
05.07.2023,COMMUNITIES,THAMES HOMECARE SERVICE LTD,465.36,NO RECOURSE TO PUBLIC FUNDS,HOMECARE - SPOT,2103718580,1000079295
05.07.2023,COMMUNITIES,REDACTED PERSONAL DATA,500,UKRAINIAN PROGRAMME,GRANTS,REDACTED,REDACTED
05.07.2023,COMMUNITIES,REDACTED PERSONAL DATA,500,UKRAINIAN PROGRAMME,GRANTS,REDACTED,REDACTED
05.07.2023,COMMUNITIES,REDACTED PERSONAL DATA,500,UKRAINIAN PROGRAMME,GRANTS,REDACTED,REDACTED
05.07.2023,COMMUNITIES,REDACTED PERSONAL DATA,500,UKRAINIAN PROGRAMME,GRANTS,REDACTED,REDACTED
05.07.2023,COMMUNITIES,NUNHEADS VOICE LTD,"2,000.00",VCS GRANTS,OTHER CONTRACTORS,5902587368,1000053009
05.07.2023,COMMUNITIES,FLASHY WINGS MINISTRY,"1,430.00",VCS GRANTS,OTHER CONTRACTORS,5902587355,1000084265
05.07.2023,COMMUNITIES,UNITY MUSIC ARTS TEAM,"2,499.00",VCS GRANTS,OTHER CONTRACTORS,5902587370,1000084559
05.07.2023,COMMUNITIES,BLACK STOCK MEDIA LTD,"2,499.00",VCS GRANTS,OTHER CONTRACTORS,5902587357,1000088666
05.07.2023,COMMUNITIES,ST JUDES CHURCH OF ENGLAND PRIMARY,550,VCS GRANTS,OTHER CONTRACTORS,5902587363,5001000019
05.07.2023,CORPORATE FACILITIES MANAGEMENT,ROYAL MAIL GROUP LTD,"4,740.00",160 TOOLEY ST.,POSTAGES,5902587379,1000061535
05.07.2023,CORPORATE FACILITIES MANAGEMENT,ATALIAN SERVEST LTD,"33,509.02",FM SERVICES BY INTERSERVE,BUILDING R&M,5902587451,1000088775
05.07.2023,CUSTOMER AND EXCHEQUER,DORO CARE (UK) LTD,330.95,LAMBETH RESPONSE,EQUIPMENT PURCHASE & REPAIR,5902587491,1000078915
05.07.2023,CUSTOMER AND EXCHEQUER,DORO CARE (UK) LTD,"1,395.95",LAMBETH RESPONSE,EQUIPMENT PURCHASE & REPAIR,5902587495,1000078915
05.07.2023,CUSTOMER AND EXCHEQUER,LOCAL REGISTRATION & CORONER SERVICES ASSN,400,REGISTRARS,TRAINING,5902586853,1000064033
05.07.2023,DIGITAL AND TECHNOLOGY,VENN GROUP LTD,"6,930.00",IT MANAGEMENT,AGENCY STAFF,5902587463,1000033315
05.07.2023,DIGITAL AND TECHNOLOGY,VENN GROUP LTD,"7,700.00",IT MANAGEMENT,AGENCY STAFF,5902587460,1000033315
05.07.2023,DIGITAL AND TECHNOLOGY,VENN GROUP LTD,"2,200.00",IT MANAGEMENT,SEVERANCE & REDUNDANCY PAYMENTS,5902587356,1000033315
05.07.2023,DIGITAL AND TECHNOLOGY,VENN GROUP LTD,"2,750.00",IT MANAGEMENT,SEVERANCE & REDUNDANCY PAYMENTS,5902587361,1000033315
05.07.2023,DSG,BACONS COLLEGE,633.33,AC & FREE - MSTREAM,STATEMENTED FEES,2103717933,1693125
05.07.2023,DSG,BACONS COLLEGE,"2,496.15",AC & FREE - MSTREAM,STATEMENTED FEES,2103717915,1693125
05.07.2023,DSG,BACONS COLLEGE,"2,787.95",AC & FREE - MSTREAM,STATEMENTED FEES,2103717912,1693125
05.07.2023,DSG,BACONS COLLEGE,"2,787.95",AC & FREE - MSTREAM,STATEMENTED FEES,2103717913,1693125
05.07.2023,DSG,BACONS COLLEGE,"2,787.95",AC & FREE - MSTREAM,STATEMENTED FEES,2103717917,1693125
05.07.2023,DSG,BACONS COLLEGE,"2,787.95",AC & FREE - MSTREAM,STATEMENTED FEES,2103717920,1693125
05.07.2023,DSG,BACONS COLLEGE,"2,787.95",AC & FREE - MSTREAM,STATEMENTED FEES,2103717922,1693125
05.07.2023,DSG,BACONS COLLEGE,"2,787.95",AC & FREE - MSTREAM,STATEMENTED FEES,2103717923,1693125
05.07.2023,DSG,BACONS COLLEGE,"2,787.95",AC & FREE - MSTREAM,STATEMENTED FEES,2103717924,1693125
05.07.2023,DSG,BACONS COLLEGE,"2,787.95",AC & FREE - MSTREAM,STATEMENTED FEES,2103717925,1693125
05.07.2023,DSG,BACONS COLLEGE,"2,787.95",AC & FREE - MSTREAM,STATEMENTED FEES,2103717928,1693125
05.07.2023,DSG,BACONS COLLEGE,"2,787.95",AC & FREE - MSTREAM,STATEMENTED FEES,2103717930,1693125
05.07.2023,DSG,BACONS COLLEGE,"4,560.00",AC & FREE - MSTREAM,STATEMENTED FEES,2103717914,1693125
05.07.2023,DSG,BACONS COLLEGE,"5,542.31",AC & FREE - MSTREAM,STATEMENTED FEES,2103717910,1693125
05.07.2023,DSG,BACONS COLLEGE,"5,542.31",AC & FREE - MSTREAM,STATEMENTED FEES,2103717911,1693125
05.07.2023,DSG,BACONS COLLEGE,"5,542.31",AC & FREE - MSTREAM,STATEMENTED FEES,2103717916,1693125
05.07.2023,DSG,BACONS COLLEGE,"5,542.31",AC & FREE - MSTREAM,STATEMENTED FEES,2103717918,1693125
05.07.2023,DSG,BACONS COLLEGE,"5,542.31",AC & FREE - MSTREAM,STATEMENTED FEES,2103717921,1693125
05.07.2023,DSG,BACONS COLLEGE,"5,542.31",AC & FREE - MSTREAM,STATEMENTED FEES,2103717927,1693125
05.07.2023,DSG,BACONS COLLEGE,"5,542.31",AC & FREE - MSTREAM,STATEMENTED FEES,2103717932,1693125
05.07.2023,DSG,BACONS COLLEGE,"8,296.67",AC & FREE - MSTREAM,STATEMENTED FEES,2103717919,1693125
05.07.2023,DSG,BACONS COLLEGE,"8,296.67",AC & FREE - MSTREAM,STATEMENTED FEES,2103717926,1693125
05.07.2023,DSG,BACONS COLLEGE,"8,541.87",AC & FREE - MSTREAM,STATEMENTED FEES,2103717929,1693125
05.07.2023,DSG,BACONS COLLEGE,"8,541.87",AC & FREE - MSTREAM,STATEMENTED FEES,2103717931,1693125
05.07.2023,DSG,ANGEL OAK ACADEMY,"1,422.26",AC & FREE - MSTREAM,STATEMENTED FEES,2103717946,1000075379
05.07.2023,DSG,ANGEL OAK ACADEMY,"1,422.81",AC & FREE - MSTREAM,STATEMENTED FEES,2103717942,1000075379
05.07.2023,DSG,ANGEL OAK ACADEMY,"2,828.70",AC & FREE - MSTREAM,STATEMENTED FEES,2103717938,1000075379
05.07.2023,DSG,ANGEL OAK ACADEMY,"2,828.70",AC & FREE - MSTREAM,STATEMENTED FEES,2103717939,1000075379
05.07.2023,DSG,ANGEL OAK ACADEMY,"2,828.70",AC & FREE - MSTREAM,STATEMENTED FEES,2103717940,1000075379
05.07.2023,DSG,ANGEL OAK ACADEMY,"2,828.70",AC & FREE - MSTREAM,STATEMENTED FEES,2103717944,1000075379
05.07.2023,DSG,ANGEL OAK ACADEMY,"2,828.70",AC & FREE - MSTREAM,STATEMENTED FEES,2103717945,1000075379
05.07.2023,DSG,ANGEL OAK ACADEMY,"4,234.26",AC & FREE - MSTREAM,STATEMENTED FEES,2103717934,1000075379
05.07.2023,DSG,ANGEL OAK ACADEMY,"4,234.26",AC & FREE - MSTREAM,STATEMENTED FEES,2103717935,1000075379
05.07.2023,DSG,ANGEL OAK ACADEMY,"4,234.26",AC & FREE - MSTREAM,STATEMENTED FEES,2103717936,1000075379
05.07.2023,DSG,ANGEL OAK ACADEMY,"4,234.26",AC & FREE - MSTREAM,STATEMENTED FEES,2103717937,1000075379
05.07.2023,DSG,ANGEL OAK ACADEMY,"4,234.26",AC & FREE - MSTREAM,STATEMENTED FEES,2103717941,1000075379
05.07.2023,DSG,ANGEL OAK ACADEMY,"4,234.81",AC & FREE - MSTREAM,STATEMENTED FEES,2103717943,1000075379
05.07.2023,DSG,ANGEL OAK ACADEMY,"4,234.81",AC & FREE - MSTREAM,STATEMENTED FEES,2103717947,1000075379
05.07.2023,DSG,FLEET TUTORS,"31,926.67",ALTERNATIVE PROVISION,EXTERNAL AGENCIES AND BODIES,5902587467,1000044820
05.07.2023,DSG,YOUNG GIANTS LIMITED,"1,500.00",ALTERNATIVE PROVISION,EXTERNAL AGENCIES AND BODIES,5902587026,1000089066
05.07.2023,DSG,YOUNG GIANTS LIMITED,"2,160.00",ALTERNATIVE PROVISION,EXTERNAL AGENCIES AND BODIES,5902587025,1000089066
05.07.2023,DSG,YOUNG GIANTS LIMITED,"2,430.00",ALTERNATIVE PROVISION,EXTERNAL AGENCIES AND BODIES,5902587023,1000089066
05.07.2023,DSG,YOUNG GIANTS LIMITED,"3,250.00",ALTERNATIVE PROVISION,EXTERNAL AGENCIES AND BODIES,5902587024,1000089066
05.07.2023,DSG,PULSE HEALTHCARE LTD,824.73,AP & HOSPITAL SCHLS,STATEMENTED FEES,2103717984,1000035063
05.07.2023,DSG,PULSE HEALTHCARE LTD,824.73,AP & HOSPITAL SCHLS,STATEMENTED FEES,2103717985,1000035063
05.07.2023,DSG,PULSE HEALTHCARE LTD,"1,030.92",AP & HOSPITAL SCHLS,STATEMENTED FEES,2103717982,1000035063
05.07.2023,DSG,PULSE HEALTHCARE LTD,"1,030.92",AP & HOSPITAL SCHLS,STATEMENTED FEES,2103717983,1000035063
05.07.2023,DSG,PULSE HEALTHCARE LTD,"1,030.92",AP & HOSPITAL SCHLS,STATEMENTED FEES,2103717986,1000035063
05.07.2023,DSG,PULSE HEALTHCARE LTD,"1,030.92",AP & HOSPITAL SCHLS,STATEMENTED FEES,2103717987,1000035063
05.07.2023,DSG,PULSE HEALTHCARE LTD,"1,030.92",AP & HOSPITAL SCHLS,STATEMENTED FEES,2103717988,1000035063
05.07.2023,DSG,HATS GROUP LTD,855.6,AP & HOSPITAL SCHLS,STATEMENTED FEES,2103719056,1000042743
05.07.2023,DSG,SUPPLY & DEMAND CONSULTANCY LTD,264,AP & HOSPITAL SCHLS,STATEMENTED FEES,2103719070,1000044903
05.07.2023,DSG,SUPPLY & DEMAND CONSULTANCY LTD,264,AP & HOSPITAL SCHLS,STATEMENTED FEES,2103719071,1000044903
05.07.2023,DSG,SUPPLY & DEMAND CONSULTANCY LTD,528,AP & HOSPITAL SCHLS,STATEMENTED FEES,2103719066,1000044903
05.07.2023,DSG,SUPPLY & DEMAND CONSULTANCY LTD,528,AP & HOSPITAL SCHLS,STATEMENTED FEES,2103719068,1000044903
05.07.2023,DSG,SUPPLY & DEMAND CONSULTANCY LTD,528,AP & HOSPITAL SCHLS,STATEMENTED FEES,2103719069,1000044903
05.07.2023,DSG,SUPPLY & DEMAND CONSULTANCY LTD,"1,056.00",AP & HOSPITAL SCHLS,STATEMENTED FEES,2103719067,1000044903
05.07.2023,DSG,ILDERTON MOTORVEHICLE PROJECT,"2,730.00",AP & HOSPITAL SCHLS,STATEMENTED FEES,2103719042,1000066082
05.07.2023,DSG,ILDERTON MOTORVEHICLE PROJECT,"2,730.00",AP & HOSPITAL SCHLS,STATEMENTED FEES,2103719045,1000066082
05.07.2023,DSG,ILDERTON MOTORVEHICLE PROJECT,"2,730.00",AP & HOSPITAL SCHLS,STATEMENTED FEES,2103719047,1000066082
05.07.2023,DSG,ILDERTON MOTORVEHICLE PROJECT,"2,730.00",AP & HOSPITAL SCHLS,STATEMENTED FEES,2103719052,1000066082
05.07.2023,DSG,ILDERTON MOTORVEHICLE PROJECT,"3,071.25",AP & HOSPITAL SCHLS,STATEMENTED FEES,2103719044,1000066082
05.07.2023,DSG,ILDERTON MOTORVEHICLE PROJECT,"3,071.25",AP & HOSPITAL SCHLS,STATEMENTED FEES,2103719049,1000066082
05.07.2023,DSG,ILDERTON MOTORVEHICLE PROJECT,"3,071.25",AP & HOSPITAL SCHLS,STATEMENTED FEES,2103719051,1000066082
05.07.2023,DSG,ILDERTON MOTORVEHICLE PROJECT,"3,071.25",AP & HOSPITAL SCHLS,STATEMENTED FEES,2103719054,1000066082
05.07.2023,DSG,ILDERTON MOTORVEHICLE PROJECT,"5,292.00",AP & HOSPITAL SCHLS,STATEMENTED FEES,2103719041,1000066082
05.07.2023,DSG,ILDERTON MOTORVEHICLE PROJECT,"5,292.00",AP & HOSPITAL SCHLS,STATEMENTED FEES,2103719046,1000066082
05.07.2023,DSG,ILDERTON MOTORVEHICLE PROJECT,"7,056.00",AP & HOSPITAL SCHLS,STATEMENTED FEES,2103719043,1000066082
05.07.2023,DSG,ILDERTON MOTORVEHICLE PROJECT,"7,056.00",AP & HOSPITAL SCHLS,STATEMENTED FEES,2103719048,1000066082
05.07.2023,DSG,ILDERTON MOTORVEHICLE PROJECT,"7,056.00",AP & HOSPITAL SCHLS,STATEMENTED FEES,2103719050,1000066082
05.07.2023,DSG,ILDERTON MOTORVEHICLE PROJECT,"7,056.00",AP & HOSPITAL SCHLS,STATEMENTED FEES,2103719053,1000066082
05.07.2023,DSG,REDACTED PERSONAL DATA,"1,200.00",AP & HOSPITAL SCHLS,STATEMENTED FEES,REDACTED,REDACTED
05.07.2023,DSG,REDACTED PERSONAL DATA,"1,680.00",AP & HOSPITAL SCHLS,STATEMENTED FEES,REDACTED,REDACTED
05.07.2023,DSG,RIVERSTON SCHOOL,"1,007.90",INDEP MAINSTREAM,STATEMENTED FEES,2103717900,11213696
05.07.2023,DSG,RIVERSTON SCHOOL,"1,106.15",INDEP MAINSTREAM,STATEMENTED FEES,2103717891,11213696
05.07.2023,DSG,RIVERSTON SCHOOL,"1,109.46",INDEP MAINSTREAM,STATEMENTED FEES,2103717896,11213696
05.07.2023,DSG,RIVERSTON SCHOOL,"1,110.56",INDEP MAINSTREAM,STATEMENTED FEES,2103717898,11213696
05.07.2023,DSG,RIVERSTON SCHOOL,"1,143.90",INDEP MAINSTREAM,STATEMENTED FEES,2103717894,11213696
05.07.2023,DSG,RIVERSTON SCHOOL,"1,160.08",INDEP MAINSTREAM,STATEMENTED FEES,2103717899,11213696
05.07.2023,DSG,RIVERSTON SCHOOL,"1,163.90",INDEP MAINSTREAM,STATEMENTED FEES,2103717892,11213696
05.07.2023,DSG,RIVERSTON SCHOOL,"1,319.40",INDEP MAINSTREAM,STATEMENTED FEES,2103717893,11213696
05.07.2023,DSG,RIVERSTON SCHOOL,"1,351.26",INDEP MAINSTREAM,STATEMENTED FEES,2103717890,11213696
05.07.2023,DSG,RIVERSTON SCHOOL,"1,413.65",INDEP MAINSTREAM,STATEMENTED FEES,2103717895,11213696
05.07.2023,DSG,RIVERSTON SCHOOL,"1,653.70",INDEP MAINSTREAM,STATEMENTED FEES,2103717897,11213696
05.07.2023,DSG,RIVERSTON SCHOOL,"10,079.00",INDEP MAINSTREAM,STATEMENTED FEES,2103717889,11213696
05.07.2023,DSG,RIVERSTON SCHOOL,"11,061.45",INDEP MAINSTREAM,STATEMENTED FEES,2103717880,11213696
05.07.2023,DSG,RIVERSTON SCHOOL,"11,094.70",INDEP MAINSTREAM,STATEMENTED FEES,2103717885,11213696
05.07.2023,DSG,RIVERSTON SCHOOL,"11,105.60",INDEP MAINSTREAM,STATEMENTED FEES,2103717887,11213696
05.07.2023,DSG,RIVERSTON SCHOOL,"11,439.00",INDEP MAINSTREAM,STATEMENTED FEES,2103717883,11213696
05.07.2023,DSG,RIVERSTON SCHOOL,"11,600.80",INDEP MAINSTREAM,STATEMENTED FEES,2103717888,11213696
05.07.2023,DSG,RIVERSTON SCHOOL,"11,639.00",INDEP MAINSTREAM,STATEMENTED FEES,2103717881,11213696
05.07.2023,DSG,RIVERSTON SCHOOL,"13,194.00",INDEP MAINSTREAM,STATEMENTED FEES,2103717882,11213696
05.07.2023,DSG,RIVERSTON SCHOOL,"13,512.60",INDEP MAINSTREAM,STATEMENTED FEES,2103717879,11213696
05.07.2023,DSG,RIVERSTON SCHOOL,"14,136.50",INDEP MAINSTREAM,STATEMENTED FEES,2103717884,11213696
05.07.2023,DSG,RIVERSTON SCHOOL,"16,537.00",INDEP MAINSTREAM,STATEMENTED FEES,2103717886,11213696
05.07.2023,DSG,THE ASSOCIATION FOR SCIENCE EDUCATION,"4,559.40",INTERVENTION FUND,SUBSCRIPTIONS,5902587520,1000082481
05.07.2023,DSG,TOUCHBASE CENTRE CIC,"3,525.00",LAC EDUCATION,OTHER EMPLOYEE EXPENSES,5902587517,1000089778
05.07.2023,DSG,BEYOND AUTISM,420,NMSS/ INDEP SPECIAL,STATEMENTED FEES,2103717968,1000048234
05.07.2023,DSG,BEYOND AUTISM,"16,442.94",NMSS/ INDEP SPECIAL,STATEMENTED FEES,2103717961,1000048234
05.07.2023,DSG,BEYOND AUTISM,"18,698.40",NMSS/ INDEP SPECIAL,STATEMENTED FEES,2103717955,1000048234
05.07.2023,DSG,BEYOND AUTISM,"19,260.26",NMSS/ INDEP SPECIAL,STATEMENTED FEES,2103717954,1000048234
05.07.2023,DSG,BEYOND AUTISM,"19,260.26",NMSS/ INDEP SPECIAL,STATEMENTED FEES,2103717956,1000048234
05.07.2023,DSG,ABINGDON HOUSE SCHOOL,"11,694.80",NMSS/ INDEP SPECIAL,STATEMENTED FEES,2103717901,1000072800
05.07.2023,DSG,ABINGDON HOUSE SCHOOL,"12,162.80",NMSS/ INDEP SPECIAL,STATEMENTED FEES,2103717903,1000072800
05.07.2023,DSG,ABINGDON HOUSE SCHOOL,"12,800.00",NMSS/ INDEP SPECIAL,STATEMENTED FEES,2103717902,1000072800
05.07.2023,DSG,MOOR HOUSE SCHOOL & COLLEGE,"21,195.67",NMSS/ INDEP SPECIAL,STATEMENTED FEES,2103719072,1000080062
05.07.2023,DSG,MOOR HOUSE SCHOOL & COLLEGE,"23,013.67",NMSS/ INDEP SPECIAL,STATEMENTED FEES,2103719073,1000080062
05.07.2023,DSG,BEYONDAUTISM,315,NMSS/ INDEP SPECIAL,STATEMENTED FEES,2103717973,1000080312
05.07.2023,DSG,BEYONDAUTISM,"1,050.00",NMSS/ INDEP SPECIAL,STATEMENTED FEES,2103717971,1000080312
05.07.2023,DSG,BEYONDAUTISM,"21,347.66",NMSS/ INDEP SPECIAL,STATEMENTED FEES,2103717950,1000080312
05.07.2023,DSG,BEYONDAUTISM,"21,347.66",NMSS/ INDEP SPECIAL,STATEMENTED FEES,2103717953,1000080312
05.07.2023,DSG,BEYONDAUTISM,"21,347.66",NMSS/ INDEP SPECIAL,STATEMENTED FEES,2103717958,1000080312
05.07.2023,DSG,BEYONDAUTISM,"21,347.66",NMSS/ INDEP SPECIAL,STATEMENTED FEES,2103717963,1000080312
05.07.2023,DSG,BEYONDAUTISM,"21,347.66",NMSS/ INDEP SPECIAL,STATEMENTED FEES,2103717964,1000080312
05.07.2023,DSG,BEYONDAUTISM,"21,347.66",NMSS/ INDEP SPECIAL,STATEMENTED FEES,2103717965,1000080312
05.07.2023,DSG,BEYONDAUTISM,"21,347.66",NMSS/ INDEP SPECIAL,STATEMENTED FEES,2103717966,1000080312
05.07.2023,DSG,BEYONDAUTISM,"21,347.66",NMSS/ INDEP SPECIAL,STATEMENTED FEES,2103717967,1000080312
05.07.2023,DSG,BEYONDAUTISM,"21,987.94",NMSS/ INDEP SPECIAL,STATEMENTED FEES,2103717957,1000080312
05.07.2023,DSG,BEYONDAUTISM,"21,987.94",NMSS/ INDEP SPECIAL,STATEMENTED FEES,2103717959,1000080312
05.07.2023,DSG,BEYONDAUTISM,"21,987.95",NMSS/ INDEP SPECIAL,STATEMENTED FEES,2103717960,1000080312
05.07.2023,DSG,BEYONDAUTISM,"25,514.35",NMSS/ INDEP SPECIAL,STATEMENTED FEES,2103717962,1000080312
05.07.2023,DSG,BEYONDAUTISM,"25,639.33",NMSS/ INDEP SPECIAL,STATEMENTED FEES,2103717951,1000080312
05.07.2023,DSG,BEYONDAUTISM,"25,639.33",NMSS/ INDEP SPECIAL,STATEMENTED FEES,2103717952,1000080312
05.07.2023,DSG,AMBITIOUS ABOUT AUTISM,"20,151.65",SPECIALIST POST-16,STATEMENTED FEES,2103717905,1000035784
05.07.2023,DSG,AMBITIOUS ABOUT AUTISM,"20,151.65",SPECIALIST POST-16,STATEMENTED FEES,2103717907,1000035784
05.07.2023,DSG,AMBITIOUS ABOUT AUTISM,"27,801.65",SPECIALIST POST-16,STATEMENTED FEES,2103717904,1000035784
05.07.2023,DSG,AMBITIOUS ABOUT AUTISM,"27,801.65",SPECIALIST POST-16,STATEMENTED FEES,2103717909,1000035784
05.07.2023,DSG,AMBITIOUS ABOUT AUTISM,"27,996.95",SPECIALIST POST-16,STATEMENTED FEES,2103717908,1000035784
05.07.2023,DSG,AMBITIOUS ABOUT AUTISM,"28,910.30",SPECIALIST POST-16,STATEMENTED FEES,2103717906,1000035784
05.07.2023,DSG,ORCHARD HILL COLLEGE,"1,467.00",SPECIALIST POST-16,STATEMENTED FEES,2103719063,1000070978
05.07.2023,DSG,ORCHARD HILL COLLEGE,"2,933.00",SPECIALIST POST-16,STATEMENTED FEES,2103719062,1000070978
05.07.2023,DSG,ORCHARD HILL COLLEGE,"8,132.14",SPECIALIST POST-16,STATEMENTED FEES,2103719064,1000070978
05.07.2023,DSG,ORCHARD HILL COLLEGE,"11,720.54",SPECIALIST POST-16,STATEMENTED FEES,2103719065,1000070978
05.07.2023,DSG,FLEET TUTORS,"6,435.00",VIRTUAL SCHOOL PP,EXTERNAL AGENCIES AND BODIES,5902587473,1000044820
05.07.2023,ENVIRONMENT AND LEISURE,SOUTH LONDON GALLERY,"1,915.00",CAPITAL PS (LEISURE),CAPITAL GRANTS,5902587483,11011694
05.07.2023,ENVIRONMENT AND LEISURE,DURA-SPORT,"7,550.00",CAPITAL PS (LEISURE),CONSTRUCTION,5902587497,1000089407
05.07.2023,ENVIRONMENT AND LEISURE,CONNICK TREE CARE REIGATE LTD,462,CAPITAL PS (LEISURE),CONSTRUCTION FEES,5902587432,1000070069
05.07.2023,ENVIRONMENT AND LEISURE,VIVACITY LABS LIMITED,"18,119.00",CAPITAL PS (LEISURE),CONSTRUCTION FEES  - EXTERNAL,5902587485,1000083935
05.07.2023,ENVIRONMENT AND LEISURE,NORTH WEST OFFICE FURNITURE LTD,"1,286.46",CAPITAL PS (LEISURE),CONSTRUCTION FEES  - EXTERNAL,5902587509,1000089903
05.07.2023,ENVIRONMENT AND LEISURE,PEDDLE MY WHEELS LTD,"6,000.00",CAPITAL PS (LEISURE),"PLANT, MACHINERY & EQUIPMENT ACQUISITION",5902587457,1000083767
05.07.2023,ENVIRONMENT AND LEISURE,AGENTIS WORKWEAR LTD,"3,377.35",MANAGEMENT TEAM,"CLOTHING, UNIFORMS & LAUNDRY",5902587417,1000065561
05.07.2023,ENVIRONMENT AND LEISURE,AGENTIS WORKWEAR LTD,"5,350.67",MANAGEMENT TEAM,"CLOTHING, UNIFORMS & LAUNDRY",5902587413,1000065561
05.07.2023,ENVIRONMENT AND LEISURE,FLEXIHEALTH LTD,300,STOP SMOKING,EXTERNAL AGENCIES AND BODIES,5902587383,1000072668
05.07.2023,ENVIRONMENT AND LEISURE,FLEXIHEALTH LTD,959.27,STOP SMOKING,MATERIALS,5902587383,1000072668
05.07.2023,ENVIRONMENT DIRECTORATE,THE T P PARTNERSHIP,445,ESTATE CLEANING-GENERAL,OTHER CONTRACTORS,5902587427,1000045906
05.07.2023,ENVIRONMENT DIRECTORATE,SEVEN ASSET MANAGEMENT LTD,"4,050.00",FLEET SERVICES MANAGEMENT,OTHER VEHICLE RUNNING COSTS,5902587502,1000089450
05.07.2023,ENVIRONMENT DIRECTORATE,SEVEN ASSET MANAGEMENT LTD,"4,050.00",FLEET SERVICES MANAGEMENT,OTHER VEHICLE RUNNING COSTS,5902587506,1000089450
05.07.2023,ENVIRONMENT DIRECTORATE,METIS CONSULTANTS LIMITED,"9,495.84",SECTION 278 & 38,HIGHWAYS TERM CONTRACT,5902587444,1000086330
05.07.2023,HOUSING GENERAL FUND,DAVID MILES & PARTNERS LTD,"39,021.31",CAPITAL PS (REGEN),CONSTRUCTION MAIN CONTRACT,5902587469,1000001119
05.07.2023,HOUSING HRA,ANAYSSE-JACOBS SOLICITORS,"33,000.00",CAPITAL PS (HRA),CAPITAL GRANTS,2103710194,1000086247
05.07.2023,HOUSING HRA,GC CONSTRUCT LTD,934.01,CAPITAL PS (HRA),CONSTRUCTION,2103713617,3000002106
05.07.2023,HOUSING HRA,MARTIN ARNOLD LTD,687.53,CAPITAL PS (HRA),CONSTRUCTION FEES  - EXTERNAL,5902587489,1000076993
05.07.2023,HOUSING HRA,MARTIN ARNOLD LTD,918.3,CAPITAL PS (HRA),CONSTRUCTION FEES  - EXTERNAL,5902587492,1000076993
05.07.2023,HOUSING HRA,WHITBY WOOD LTD,500,CAPITAL PS (HRA),CONSTRUCTION FEES  - EXTERNAL,5902587461,1000086224
05.07.2023,HOUSING HRA,WHITBY WOOD LTD,750,CAPITAL PS (HRA),CONSTRUCTION FEES  - EXTERNAL,5902586521,1000086224
05.07.2023,HOUSING HRA,WHITBY WOOD LTD,"4,250.00",CAPITAL PS (HRA),CONSTRUCTION FEES  - EXTERNAL,5902586521,1000086224
05.07.2023,HOUSING HRA,SCOPE CBS LIMITED,450,CAPITAL PS (HRA),CONSTRUCTION FEES  - EXTERNAL,5902587468,1000089715
05.07.2023,HOUSING HRA,SCOPE CBS LIMITED,450,CAPITAL PS (HRA),CONSTRUCTION FEES  - EXTERNAL,5902587470,1000089715
05.07.2023,HOUSING HRA,SCOPE CBS LIMITED,900,CAPITAL PS (HRA),CONSTRUCTION FEES  - EXTERNAL,5902587465,1000089715
05.07.2023,HOUSING HRA,SCOPE CBS LIMITED,900,CAPITAL PS (HRA),CONSTRUCTION FEES  - EXTERNAL,5902587471,1000089715
05.07.2023,HOUSING HRA,SCOPE CBS LIMITED,900,CAPITAL PS (HRA),CONSTRUCTION FEES  - EXTERNAL,5902587472,1000089715
05.07.2023,HOUSING HRA,SCOPE CBS LIMITED,"1,620.00",CAPITAL PS (HRA),CONSTRUCTION FEES  - EXTERNAL,5902587464,1000089715
05.07.2023,HOUSING HRA,CALFORD SEADEN (HEALTH & SAFETY) LTD,"1,400.00",CAPITAL PS (REGEN),CONSTRUCTION FEES  - EXTERNAL,5902587508,1097125
05.07.2023,LEISURE DIRECTORATE,PEN & PIXEL LTD,"2,040.00",LIBRARIES DEVELOPMENT,PROFESSIONAL FEES,5902586873,1000061143
05.07.2023,PLANNING & GROWTH,COMMUNITY MATTERS MEDIA LIMITED,504,DEV MGT ADMIN & INCOME,MARKETING & PUBLICITY SERVICES,5902587423,1556957
05.07.2023,PLANNING & GROWTH,SHERGROUP LTD,"1,428.57",VCS MANAGED MSC BUILDILNGS,SECURITY SERVICES,5902587453,1000087977
05.07.2023,PLANNING & GROWTH,SHERGROUP LTD,"3,840.00",VCS MANAGED MSC BUILDILNGS,SECURITY SERVICES,5902587459,1000087977
05.07.2023,PROFESSIONAL FINANCE SERVICES,BDO LLP,"2,643.33",RISK ADMIN,PROFESSIONAL FEES,5902587334,1000057898
05.07.2023,RESIDENT SERVICES,HARROW GREEN LTD,"6,998.00",OPERATIONS/OFFICES ACCOMMODATION,REMOVAL EXPENSES,5902587436,1000076673
05.07.2023,RESIDENT SERVICES,SYDENHAM HILL T&RA,"1,300.00",RESIDENTS PARTICIPATION FUND,GRANTS,5902587487,1976617
05.07.2023,RESIDENT SERVICES,NATIONWIDE ACCOMMODATION,"20,366.50",TA PLACEMENTS,EXTERNAL AGENCIES AND BODIES,5902587523,1000076112
05.07.2023,RESIDENT SERVICES,CENTENNIAL PROPERTY LIMITED,"2,505.00",TA PLACEMENTS,EXTERNAL AGENCIES AND BODIES,5902587380,1000083022
05.07.2023,RESIDENT SERVICES,SHERGROUP LTD,"1,344.00",TRA HALLS (REPAIRS),SECURITY SERVICES,5902587442,1000087977
05.07.2023,RESIDENT SERVICES HGF,HARVARD & TAYLOR,"4,500.00",HOMELESS PROJECTS,GRANTS,5902586956,1000089950
05.07.2023,RESIDENT SERVICES HGF,MSR HOUSING,992,NIGHTLY TA (NSC),EXTERNAL AGENCIES AND BODIES,5902587486,1000079359
05.07.2023,RESIDENT SERVICES HGF,DMS PROPERTIES SERVICES LTD,"27,849.75",NIGHTLY TA (NSC),EXTERNAL AGENCIES AND BODIES,5902587338,1000081522
05.07.2023,RESIDENT SERVICES HGF,MAIER LANG LIMITED,"34,225.98",NIGHTLY TA (NSC),EXTERNAL AGENCIES AND BODIES,5902587395,1000084930
05.07.2023,RESIDENT SERVICES HGF,REDACTED PERSONAL DATA,"6,198.50",NIGHTLY TA (NSC),EXTERNAL AGENCIES AND BODIES,REDACTED,REDACTED
05.07.2023,SOUTHWARK BUILDING SERVICES,BEW ELECTRICAL DISTRIBUTORS LTD,"1,951.50",STORES/LOGISTICS,CREDITORS -GR/IR CLEARING ACCOUNT,5902587388,1000045371
05.07.2023,SOUTHWARK BUILDING SERVICES,BEW ELECTRICAL DISTRIBUTORS LTD,"2,127.30",STORES/LOGISTICS,CREDITORS -GR/IR CLEARING ACCOUNT,5902587389,1000045371
05.07.2023,SOUTHWARK BUILDING SERVICES,A T & T (GB LTD ),954,STORES/LOGISTICS,CREDITORS -GR/IR CLEARING ACCOUNT,5902587341,1000078342
06.07.2023,ADULT SOCIAL CARE,REDACTED PERSONAL DATA,283.45,APPOINTEESHIPS,OTHER PAYMENTS FOR CLIENTS,REDACTED,REDACTED
06.07.2023,ADULT SOCIAL CARE,MICHAEL MANDELSTAM LTD,800,ASW - PROFESSIONAL DEVELOPMENT,TRAINING,5902586587,1000044282
06.07.2023,ADULT SOCIAL CARE,NOTTINGHAM REHAB LTD,"242,470.23",ICES CONTRACT,EQUIPMENT PURCHASE & REPAIR,5902587574,1000066462
06.07.2023,ADULT SOCIAL CARE,ITS DESIGNS LIMITED,679.42,TELECARE EQUIPMENT,EQUIPMENT PURCHASE & REPAIR,5902587677,1000067887
06.07.2023,ADULT SOCIAL CARE,ITS DESIGNS LIMITED,857.62,TELECARE EQUIPMENT,EQUIPMENT PURCHASE & REPAIR,5902587675,1000067887
06.07.2023,ADULT SOCIAL CARE,ITS DESIGNS LIMITED,599.66,TELECARE TEAM,EQUIPMENT PURCHASE & REPAIR,5902587675,1000067887
06.07.2023,C&A,COMMUNITY SOUTHWARK,"20,046.00",COMMUNITY HEALTH AMBASSADORS,EXTERNAL AGENCIES AND BODIES,5902587584,1000018147
06.07.2023,C&A,IVYDALE PRIMARY SCHOOL,"7,603.20",HOLIDAY ACTIVITIES & FOOD,EXTERNAL AGENCIES AND BODIES,5902587524,5001000038
06.07.2023,CHIEF EXECUTIVE,BRESLIN CONSTRUCTION LTD,"1,350.00",CAPITAL PS (REGEN),CONSTRUCTION FEES  - EXTERNAL,2103719102,3000001948
06.07.2023,CHIEF EXECUTIVE,KNOX BHAVAN ARCHITECTS LLP,"5,050.03",CAPITAL PS (REGEN),CONSTRUCTION FEES - ARCHITECT,5902586825,1000088675
06.07.2023,CHILDREN AND ADULT,STANDAGE & CO LTD,"2,393.54",CAPITAL PS (SOC SERV),CONSTRUCTION FEES,5902586604,11223389
06.07.2023,CHILDREN AND ADULT,STANDAGE & CO LTD,"11,183.67",CAPITAL PS (SOC SERV),CONSTRUCTION FEES,5902586604,11223389
06.07.2023,CHILDREN AND ADULT,STONEGROVE LIMITED,"11,533.00",CAPITAL PS (SOC SERV),CONSTRUCTION MAIN CONTRACT,2103713621,3000001525
06.07.2023,CHILDREN AND FAMILIES,REDACTED PERSONAL DATA,475,ADOPTION SUPP FUND 2,EXTERNAL AGENCIES AND BODIES,REDACTED,REDACTED
06.07.2023,CHILDREN AND FAMILIES,REDACTED PERSONAL DATA,500,ADOPTION SUPP FUND 3,EXTERNAL AGENCIES AND BODIES,REDACTED,REDACTED
06.07.2023,CHILDREN AND FAMILIES,BEDDY BUYZ WAREHOUSE,285,MGMT & PARENTING,FURNITURE PURCHASE & REPAIR,5902587660,1000026704
06.07.2023,CHILDREN AND FAMILIES,GOLDSMITHS COLLEGE,710,PROF DEV AND PRAC EDUCATORS,TRAINING,5902587657,1034461
06.07.2023,CHILDREN AND FAMILIES,GOLDSMITHS COLLEGE,"1,460.00",PROF DEV AND PRAC EDUCATORS,TRAINING,5902587663,1034461
06.07.2023,CHILDREN AND FAMILIES,GOLDSMITHS COLLEGE,"1,460.00",PROF DEV AND PRAC EDUCATORS,TRAINING,5902587665,1034461
06.07.2023,COMMISSIONING & CENTRAL,BRESLIN CONSTRUCTION LTD,600,COMMISSIONING DIRECTORATE,SECURITY EQUIPMENT F&F,5902586601,1000078031
06.07.2023,COMMUNITIES,CHANGE GROW LIVE SERVICES LTD,"297,077.67",ADULT SM SERVICE,OTHER CONTRACTORS,5902587074,1000082721
06.07.2023,COMMUNITIES,DINARDO SUPPORTS LTD,"1,800.00",NO RECOURSE TO PUBLIC FUNDS,ACCOMMODATION CHARGES,5902587590,1000063093
06.07.2023,COMMUNITIES,ZFA ACCOMMODATION LTD,"19,440.00",NO RECOURSE TO PUBLIC FUNDS,ACCOMMODATION CHARGES,5902587592,1000082620
06.07.2023,COMMUNITIES,SKYLINE SUPPORTED LIVING,"2,400.00",NO RECOURSE TO PUBLIC FUNDS,ACCOMMODATION CHARGES,5902587504,1000088729
06.07.2023,COMMUNITIES,REDACTED PERSONAL DATA,500,UKRAINIAN PROGRAMME,GRANTS,REDACTED,REDACTED
06.07.2023,COMMUNITIES,REDACTED PERSONAL DATA,500,UKRAINIAN PROGRAMME,GRANTS,REDACTED,REDACTED
06.07.2023,COMMUNITIES,REDACTED PERSONAL DATA,500,UKRAINIAN PROGRAMME,GRANTS,REDACTED,REDACTED
06.07.2023,COMMUNITIES,REDACTED PERSONAL DATA,350,UKRAINIAN PROGRAMME,GRANTS,REDACTED,REDACTED
06.07.2023,COMMUNITIES,RICHMOND FELLOWSHIP,"5,000.00",VIOLENCE AGAINST WOMEN & GIRLS,OTHER CONTRACTORS,5902587683,1000032807
06.07.2023,COMMUNITIES,LINK AGE SOUTHWARK,"3,170.00",WEST CENTRAL,GRANTS,5902587565,1000034150
06.07.2023,CORPORATE FACILITIES MANAGEMENT,BRITISH INSTITUTE OF CLEANING SCIENCE,283.81,160 TOOLEY ST.,BUILDING R&M,5902587515,1000045286
06.07.2023,CORPORATE FACILITIES MANAGEMENT,ROYAL MAIL GROUP LTD,353.35,160 TOOLEY ST.,POSTAGES,5902587378,1000061535
06.07.2023,DIGITAL AND TECHNOLOGY,SPINIFEXIT SOLUTIONS UK LTD,"26,500.00",APPLICATIONS,SOFTWARE,5902586501,1000071015
06.07.2023,DSG,JUDITH KERR PRIMARY SCHOOL,"2,787.95",AC & FREE - MSTREAM,STATEMENTED FEES,2103719273,1000073200
06.07.2023,DSG,JUDITH KERR PRIMARY SCHOOL,"5,542.31",AC & FREE - MSTREAM,STATEMENTED FEES,2103719274,1000073200
06.07.2023,DSG,JUDITH KERR PRIMARY SCHOOL,"8,296.67",AC & FREE - MSTREAM,STATEMENTED FEES,2103719275,1000073200
06.07.2023,DSG,JOHN DONNE PRIMARY SCHOOL,"1,422.81",AC & FREE - MSTREAM,STATEMENTED FEES,2103719264,1000073253
06.07.2023,DSG,JOHN DONNE PRIMARY SCHOOL,"2,419.58",AC & FREE - MSTREAM,STATEMENTED FEES,2103719272,1000073253
06.07.2023,DSG,JOHN DONNE PRIMARY SCHOOL,"2,453.85",AC & FREE - MSTREAM,STATEMENTED FEES,2103719258,1000073253
06.07.2023,DSG,JOHN DONNE PRIMARY SCHOOL,"2,828.70",AC & FREE - MSTREAM,STATEMENTED FEES,2103719260,1000073253
06.07.2023,DSG,JOHN DONNE PRIMARY SCHOOL,"2,828.70",AC & FREE - MSTREAM,STATEMENTED FEES,2103719261,1000073253
06.07.2023,DSG,JOHN DONNE PRIMARY SCHOOL,"2,828.70",AC & FREE - MSTREAM,STATEMENTED FEES,2103719263,1000073253
06.07.2023,DSG,JOHN DONNE PRIMARY SCHOOL,"2,828.70",AC & FREE - MSTREAM,STATEMENTED FEES,2103719265,1000073253
06.07.2023,DSG,JOHN DONNE PRIMARY SCHOOL,"2,828.70",AC & FREE - MSTREAM,STATEMENTED FEES,2103719271,1000073253
06.07.2023,DSG,JOHN DONNE PRIMARY SCHOOL,"3,673.33",AC & FREE - MSTREAM,STATEMENTED FEES,2103719259,1000073253
06.07.2023,DSG,JOHN DONNE PRIMARY SCHOOL,"3,736.67",AC & FREE - MSTREAM,STATEMENTED FEES,2103719257,1000073253
06.07.2023,DSG,JOHN DONNE PRIMARY SCHOOL,"4,216.03",AC & FREE - MSTREAM,STATEMENTED FEES,2103719266,1000073253
06.07.2023,DSG,JOHN DONNE PRIMARY SCHOOL,"4,234.26",AC & FREE - MSTREAM,STATEMENTED FEES,2103719262,1000073253
06.07.2023,DSG,JOHN DONNE PRIMARY SCHOOL,"4,234.26",AC & FREE - MSTREAM,STATEMENTED FEES,2103719267,1000073253
06.07.2023,DSG,JOHN DONNE PRIMARY SCHOOL,"4,234.26",AC & FREE - MSTREAM,STATEMENTED FEES,2103719268,1000073253
06.07.2023,DSG,JOHN DONNE PRIMARY SCHOOL,"4,234.26",AC & FREE - MSTREAM,STATEMENTED FEES,2103719269,1000073253
06.07.2023,DSG,JOHN DONNE PRIMARY SCHOOL,"4,234.26",AC & FREE - MSTREAM,STATEMENTED FEES,2103719270,1000073253
06.07.2023,DSG,ST PAULS C OF E PRIMARY SCHOOL,"2,828.70",AC & FREE - MSTREAM,STATEMENTED FEES,2103719253,1000082314
06.07.2023,DSG,ST PAULS C OF E PRIMARY SCHOOL,"2,828.70",AC & FREE - MSTREAM,STATEMENTED FEES,2103719255,1000082314
06.07.2023,DSG,ST PAULS C OF E PRIMARY SCHOOL,"4,234.26",AC & FREE - MSTREAM,STATEMENTED FEES,2103719251,1000082314
06.07.2023,DSG,ST PAULS C OF E PRIMARY SCHOOL,"5,542.31",AC & FREE - MSTREAM,STATEMENTED FEES,2103719252,1000082314
06.07.2023,DSG,ST PAULS C OF E PRIMARY SCHOOL,"5,542.31",AC & FREE - MSTREAM,STATEMENTED FEES,2103719254,1000082314
06.07.2023,DSG,ST PAULS C OF E PRIMARY SCHOOL,"8,296.67",AC & FREE - MSTREAM,STATEMENTED FEES,2103719250,1000082314
06.07.2023,DSG,ANTHONY GOLD SOLICITORS,"5,355.00",AP & HOSPITAL SCHLS,STATEMENTED FEES,2103719277,1000050198
06.07.2023,DSG,ASPIRE JC LTD,"4,800.00",AP & HOSPITAL SCHLS,STATEMENTED FEES,2103719256,1000083919
06.07.2023,DSG,THE LITERACY TREE LTD,495,INTERVENTION FUND,CONSULTANTS SERVICES,5902587528,1000069542
06.07.2023,DSG,BESSEMER GRANGE PRIMARY SCHOOL,"13,766.00",MATERNITY COVER,SCHOOLS CAPITATION,2103719240,5001000009
06.07.2023,DSG,SALTCO LTD T/A KELLY EXECUTIVE,"4,140.00",SUMMERHOUSE,HIRED VEHICLES,5902587698,1000000548
06.07.2023,DSG,SALTCO LTD T/A KELLY EXECUTIVE,"4,140.00",SUMMERHOUSE,HIRED VEHICLES,5902587699,1000000548
06.07.2023,DSG,CHARLES DICKENS PRIMARY SCHOOL,"11,760.00",TRADE UNIONS,SCHOOLS CAPITATION,2103719236,1000085158
06.07.2023,DSG,ST FRANCIS'S RC PRIMARY SCHOOL,"5,402.00",TRUST FUND DRAW DOWN,SCHOOLS CAPITATION,2103719239,5001000067
06.07.2023,DSG,THE ST THOMAS THE APOSTLE COLLEGE,"6,011.32",YPLA SCHL SIXTH FORM,SCHOOLS CAPITATION,2103719238,5001000074
06.07.2023,DSG,ST SAVIOURS & ST OLAVES SCHOOL,"3,906.68",YPLA SCHL SIXTH FORM,SCHOOLS CAPITATION,2103719237,5001000084
06.07.2023,EDUCATION,BIRKBECK UNIVERSITY OF LONDON,375,EY & PUPIL TRACKING,TRAINING,5902587638,1000045683
06.07.2023,EDUCATION,THE KEY SUPPORT SERVICES LTD,"8,258.33",GOVERNOR SUPPORT,DATA COMMUNICATIONS,5902587648,1000058105
06.07.2023,EDUCATION,ACCESS MOBILITY TRANSPORT LTD,"19,036.60",SCH TRANS � TRAVEL,CAB FARES,5902587687,1000074637
06.07.2023,EDUCATION,ACCESS MOBILITY TRANSPORT LTD,"62,557.00",SCH TRANS � TRAVEL,CAB FARES,5902587692,1000074637
06.07.2023,ENVIRONMENT AND LEISURE,METIS CONSULTANTS LIMITED,"3,337.50",CAPITAL PS (LEISURE),CONSTRUCTION FEES  - EXTERNAL,5902587686,1000086330
06.07.2023,ENVIRONMENT AND LEISURE,METIS CONSULTANTS LIMITED,"4,675.00",CAPITAL PS (LEISURE),CONSTRUCTION FEES  - EXTERNAL,5902587661,1000086330
06.07.2023,ENVIRONMENT AND LEISURE,METIS CONSULTANTS LIMITED,"5,190.00",CAPITAL PS (LEISURE),CONSTRUCTION FEES  - EXTERNAL,5902587672,1000086330
06.07.2023,ENVIRONMENT AND LEISURE,INTO SERVICES LONDON LTD,"1,000.00",CAPITAL PS (LEISURE),CONSTRUCTION MAIN CONTRACT -CERTIFICATED,5902586640,1000059328
06.07.2023,ENVIRONMENT AND LEISURE,CHELSEA AND WESTMINSTER HOSPITAL,"97,804.30",SEXUAL HEALTH - STI,MEDICAL / HEALTH & SAFETY SERVICES,5902587656,1000072053
06.07.2023,ENVIRONMENT AND LEISURE,HOMERTON UNIVERSITY HOSPITAL NHS FOUNDATION TRUST,"6,487.53",SEXUAL HEALTH - STI,MEDICAL / HEALTH & SAFETY SERVICES,5902587674,1000075435
06.07.2023,ENVIRONMENT AND LEISURE,UNIVERSITY HOSPITALS BIRMINGHAM,296.26,SEXUAL HEALTH - STI,MEDICAL / HEALTH & SAFETY SERVICES,5902587650,1000075543
06.07.2023,ENVIRONMENT AND LEISURE,UNIVERSITY HOSPITALS BIRMINGHAM,300,SEXUAL HEALTH - STI,MEDICAL / HEALTH & SAFETY SERVICES,5902587652,1000075543
06.07.2023,ENVIRONMENT AND LEISURE,BROMLEY HEALTHCARE CIC,760.66,SEXUAL HEALTH - STI,MEDICAL / HEALTH & SAFETY SERVICES,5902587679,1000081559
06.07.2023,ENVIRONMENT AND LEISURE,WINCKWORTH SHERWOOD,311.2,SOUTHWARK,MISCELLANEOUS EXPENSES,CHEQUE PAYMENT,CHEQUE PAYMENT
06.07.2023,ENVIRONMENT DIRECTORATE,GREENHAM TRADING LTD,406.67,ESTATE CLEANING-GENERAL,MATERIALS,5902587550,1000006610
06.07.2023,ENVIRONMENT DIRECTORATE,SEVEN ASSET MANAGEMENT LTD,"4,050.00",FLEET SERVICES MANAGEMENT,OTHER VEHICLE RUNNING COSTS,5902587314,1000089450
06.07.2023,ENVIRONMENT DIRECTORATE,SEVEN ASSET MANAGEMENT LTD,"4,050.00",FLEET SERVICES MANAGEMENT,OTHER VEHICLE RUNNING COSTS,5902587315,1000089450
06.07.2023,ENVIRONMENT DIRECTORATE,METIS CONSULTANTS LIMITED,"21,666.67",FLOOD RISK MANAGEMENT,HIGHWAYS TERM CONTRACT,5902587630,1000086330
06.07.2023,ENVIRONMENT DIRECTORATE,LANDSCAPE SUPPLY COMPANY,"1,005.12",GROUNDS MAINTENANCE - GENERAL,EQUIPMENT PURCHASE & REPAIR,5902587552,1000051937
06.07.2023,ENVIRONMENT DIRECTORATE,SPALDINGS (UK) LTD,829,GROUNDS MAINTENANCE - GENERAL,MATERIALS,5902587695,1907384
06.07.2023,ENVIRONMENT DIRECTORATE,COMMUNITY MATTERS MEDIA LIMITED,444,HIGHWAYS DEVELOPMENT,MARKETING & PUBLICITY SERVICES,5902587579,1556957
06.07.2023,ENVIRONMENT DIRECTORATE,COMMUNITY MATTERS MEDIA LIMITED,708,HIGHWAYS DEVELOPMENT,MARKETING & PUBLICITY SERVICES,5902587580,1556957
06.07.2023,ENVIRONMENT DIRECTORATE,ELLIOT ENVIRONMENTAL LTD,500,STREET CLEANING-GENERAL,OTHER CONTRACTORS,5902587544,1000047392
06.07.2023,HOUSING HRA,WYNNE-WILLIAMS ASSOCIATES LTD,"1,275.00",CAPITAL PS (HRA),CONSTRUCTION FEES,5902586697,1000081419
06.07.2023,HOUSING HRA,IGLOO REGENERATION LIMITED,"11,755.13",CAPITAL PS (HRA),CONSTRUCTION FEES,5902587555,1000083117
06.07.2023,HOUSING HRA,BUILDING ASSOCIATES LTD,"104,325.14",CAPITAL PS (HRA),CONSTRUCTION MAIN CONTRACT,2103712118,3000002218
06.07.2023,HOUSING HRA,EQUANS REGENERATION (APOLLO) LTD,"1,374,179.16",CAPITAL PS (HRA),CONSTRUCTION MAIN CONTRACT -CERTIFICATED,2103719104,4000449
06.07.2023,HUMAN RESOURCES,DANIEL HIBBERT,"5,050.00",HR PAYROLL COSTS,OTHER EMPLOYEE EXPENSES,5902587575,1000089747
06.07.2023,HUMAN RESOURCES,COMENSURA LTD,"11,941.92",WEEKLY PAYMENTS,AGENCY STAFF,5902587646,1000051261
06.07.2023,HUMAN RESOURCES,COMENSURA LTD,"936,677.95",WEEKLY PAYMENTS,AGENCY STAFF,5902587649,1000051261
06.07.2023,LAW AND GOVERNANCE,LOCAL GOVERNMENT ASSOCIATION,"1,635.00",MEMBERS EXPENDITURE,TRAINING,5902587589,1000017363
06.07.2023,LEISURE DIRECTORATE,WESTMINSTER WASTE,754,CEMETERIES,OTHER CONTRACTORS,5902587694,1000080933
06.07.2023,LEISURE DIRECTORATE,CIA FIRE & SECURITY LTD,667,COMMUNITY SPORTS DEVELOPMENT,OTHER R&M,5902587639,1000086252
06.07.2023,LEISURE DIRECTORATE,CIA FIRE & SECURITY LTD,667,COMMUNITY SPORTS DEVELOPMENT,OTHER R&M,5902587642,1000086252
06.07.2023,LEISURE DIRECTORATE,SPRING COMMUNITY HUB,"5,542.50",GRANTS COMMISSIONING,GRANTS,5902587591,1000083089
06.07.2023,LEISURE DIRECTORATE,SPRING COMMUNITY HUB,"5,542.50",GRANTS COMMISSIONING,GRANTS,5902587593,1000083089
06.07.2023,LEISURE DIRECTORATE,SPRING COMMUNITY HUB,"5,542.50",GRANTS COMMISSIONING,GRANTS,5902587595,1000083089
06.07.2023,LEISURE DIRECTORATE,SAVILLS (UK) LTD,"3,475.18",HERITAGE CENTRE & WALWORTH LIBRARY,SERVICE CHARGES,5902586947,1000023005
06.07.2023,LEISURE DIRECTORATE,SLIP SAFETY SERVICES,"24,939.00",LEISURE INSOURCING MOBILISATION COST,PREMISES CLEANING,5902587578,1000089761
06.07.2023,LEISURE DIRECTORATE,SAFESTORE LTD (SLOUGH),309.06,LIBRARIES DEVELOPMENT,EXTERNAL AGENCIES AND BODIES,5902587077,1000088931
06.07.2023,LEISURE DIRECTORATE,P D CONSTRUCTION LTD,"1,690.00",SOUTHWARK AREA TEAM,OTHER R&M,5902587610,1000000390
06.07.2023,LEISURE DIRECTORATE,ASKEWS & HOLTS LIBRARY SERVICES LTD,478.26,STOCK SERVICES,BOOKS & PUBLICATIONS,5902586688,1494168
06.07.2023,LEISURE DIRECTORATE,ASKEWS & HOLTS LIBRARY SERVICES LTD,"15,506.34",STOCK SERVICES,BOOKS & PUBLICATIONS,5902586690,1494168
06.07.2023,PLANNING & GROWTH,MORRIS + COMPANY LTD,"15,390.00",CANADA WATER,PROFESSIONAL FEES,5902587697,1000084228
06.07.2023,PLANNING & GROWTH,CBS MAINTENANCE SERVICES LTD,"2,897.12",CPHA  MANAGED PROPERTIES,BUILDING R&M,2103719223,3000001518
06.07.2023,PLANNING & GROWTH,METIS CONSULTANTS LIMITED,"3,055.90",OKR MASTER PLANNING,CONSULTANTS SERVICES,5902587572,1000086330
06.07.2023,RESIDENT SERVICES,CALM MEDIATION,603.85,OPERATIONS/OFFICES ACCOMMODATION,OTHER CONTRACTORS,5902587021,1000086031
06.07.2023,RESIDENT SERVICES,DENHAN INTERNATIONAL LIMITED,"1,767.00",TA PLACEMENTS,EXTERNAL AGENCIES AND BODIES,5902587635,1000075567
06.07.2023,RESIDENT SERVICES,ZFA ACCOMMODATION LTD,"41,771.50",TA PLACEMENTS,EXTERNAL AGENCIES AND BODIES,5902587553,1000082620
06.07.2023,RESIDENT SERVICES HGF,KHAN & CO ENTERPRISES LIMITED,"2,174.76",HOMELESS PROJECTS,GRANTS,5902587347,1000089832
06.07.2023,RESIDENT SERVICES HGF,FEATURED LOCATION LTD,"3,500.00",HOMELESS PROJECTS,GRANTS,5902587342,1000089953
06.07.2023,RESIDENT SERVICES HGF,TUNDE OLUFEMI,"1,853.73",HOMELESS PROJECTS,GRANTS,5902587339,1000089954
06.07.2023,RESIDENT SERVICES HGF,STAR LEISURE,500,ILDERTON ROAD,OTHER CONTRACTORS,5902587570,1000080966
06.07.2023,RESIDENT SERVICES HGF,THAMES WATER UTILITIES LTD,898.21,ILDERTON ROAD,WATER,5902586963,1630755
06.07.2023,RESIDENT SERVICES HGF,HILTON INTERNATIONAL HOTELS (UK) LTD,"4,702.50",NIGHTLY TA (NSC),EXTERNAL AGENCIES AND BODIES,5902587007,1000052384
06.07.2023,RESIDENT SERVICES HGF,KINDLY PROPERTIES LTD,"51,372.00",NIGHTLY TA (NSC),EXTERNAL AGENCIES AND BODIES,5902587594,1000060734
06.07.2023,RESIDENT SERVICES HGF,TAAKSVALE HOUSING LTD,"43,941.59",NIGHTLY TA (NSC),EXTERNAL AGENCIES AND BODIES,5902587583,1000073665
06.07.2023,RESIDENT SERVICES HGF,ZFA ACCOMMODATION LTD,"149,194.32",NIGHTLY TA (NSC),EXTERNAL AGENCIES AND BODIES,5902587545,1000082620
06.07.2023,RESIDENT SERVICES HGF,IDEAL QUARTERS LTD,"-3,488.72",PSL PLACEMENTS,EXTERNAL AGENCIES AND BODIES,5902587597,1000079241
06.07.2023,RESIDENT SERVICES HGF,IDEAL QUARTERS LTD,"-1,806.82",PSL PLACEMENTS,EXTERNAL AGENCIES AND BODIES,5902587600,1000079241
06.07.2023,RESIDENT SERVICES HGF,IDEAL QUARTERS LTD,"83,968.64",PSL PLACEMENTS,EXTERNAL AGENCIES AND BODIES,5902587596,1000079241
06.07.2023,RESIDENT SERVICES HGF,LODGISTICS ESTATES,"8,359.63",PSL PLACEMENTS,EXTERNAL AGENCIES AND BODIES,5902587620,1000080324
06.07.2023,SBS SUPPORT,LOWER MEAD LTD,"3,015.00",REORGANISATION COSTS,PROFESSIONAL FEES,5902587625,1000082508
06.07.2023,SBS SUPPORT,LOWER MEAD LTD,"3,015.00",REORGANISATION COSTS,PROFESSIONAL FEES,5902587626,1000082508
06.07.2023,SBS SUPPORT,LOWER MEAD LTD,"3,350.00",REORGANISATION COSTS,PROFESSIONAL FEES,5902587627,1000082508
06.07.2023,SBS SUPPORT,LOWER MEAD LTD,"3,350.00",REORGANISATION COSTS,PROFESSIONAL FEES,5902587629,1000082508
06.07.2023,SOUTHWARK BUILDING SERVICES,FAYERS PLUMBING & BUILDING SUPPLIES,643.44,STORES/LOGISTICS,CREDITORS -GR/IR CLEARING ACCOUNT,5902587538,1572765
06.07.2023,SOUTHWARK BUILDING SERVICES,KEMICO LIMITED,"5,500.00",STORES/LOGISTICS,CREDITORS -GR/IR CLEARING ACCOUNT,5902587561,1000030226
06.07.2023,SOUTHWARK BUILDING SERVICES,BEW ELECTRICAL DISTRIBUTORS LTD,"3,454.00",STORES/LOGISTICS,CREDITORS -GR/IR CLEARING ACCOUNT,5902587568,1000045371
06.07.2023,SOUTHWARK BUILDING SERVICES,BEW ELECTRICAL DISTRIBUTORS LTD,"3,712.00",STORES/LOGISTICS,CREDITORS -GR/IR CLEARING ACCOUNT,5902587568,1000045371
06.07.2023,SOUTHWARK BUILDING SERVICES,BEW ELECTRICAL DISTRIBUTORS LTD,"4,738.00",STORES/LOGISTICS,CREDITORS -GR/IR CLEARING ACCOUNT,5902587568,1000045371
07.07.2023,ADULT SOCIAL CARE,REDACTED PERSONAL DATA,397.2,APPOINTEESHIPS,OTHER PAYMENTS FOR CLIENTS,REDACTED,REDACTED
07.07.2023,ADULT SOCIAL CARE,NATIONAL FOSTERING AGENCY LTD,"5,772.60",DISABILITIES LAC,EXTERNAL AGENCIES AND BODIES,2103719697,1000038868
07.07.2023,ADULT SOCIAL CARE,FLOURISH FOSTERING LTD,"39,185.72",DISABILITIES LAC,EXTERNAL AGENCIES AND BODIES,2103719379,1000084796
07.07.2023,ADULT SOCIAL CARE,THE DRIVE CARE HOMES LTD,"2,160.00",DISABILITIES LAC,OTHER PAYMENTS FOR CLIENTS,2103719370,1000003889
07.07.2023,ADULT SOCIAL CARE,CREATING CARE CHOICES LTD,"21,214.28",DISABILITIES LAC,RESIDENTIAL CARE,2103719547,1000076738
07.07.2023,ADULT SOCIAL CARE,SURREY DOCKS FARM PROVIDENT SOCIETY,480,LD LTS 18-64,DAYCARE,2103719768,1000000958
07.07.2023,ADULT SOCIAL CARE,SURREY DOCKS FARM PROVIDENT SOCIETY,500,LD LTS 18-64,DAYCARE,2103719764,1000000958
07.07.2023,ADULT SOCIAL CARE,SURREY DOCKS FARM PROVIDENT SOCIETY,720,LD LTS 18-64,DAYCARE,2103719769,1000000958
07.07.2023,ADULT SOCIAL CARE,SURREY DOCKS FARM PROVIDENT SOCIETY,720,LD LTS 18-64,DAYCARE,2103719771,1000000958
07.07.2023,ADULT SOCIAL CARE,SHARE COMMUNITY LTD,544,LD LTS 18-64,DAYCARE,2103719300,1000062408
07.07.2023,ADULT SOCIAL CARE,SHARE COMMUNITY LTD,780,LD LTS 18-64,DAYCARE,2103719290,1000062408
07.07.2023,ADULT SOCIAL CARE,SHARE COMMUNITY LTD,780,LD LTS 18-64,DAYCARE,2103719291,1000062408
07.07.2023,ADULT SOCIAL CARE,SHARE COMMUNITY LTD,780,LD LTS 18-64,DAYCARE,2103719301,1000062408
07.07.2023,ADULT SOCIAL CARE,KEYRING-LIVING SUPPORT NETWORKS LTD,"7,544.75",LD LTS 18-64,EXTERNAL AGENCIES AND BODIES,5902587791,1486496
07.07.2023,ADULT SOCIAL CARE,TRUECARE HAVEN SUPPORT LTD,"1,580.80",LD LTS 18-64,HOMECARE - SPOT,2103719592,1000078974
07.07.2023,ADULT SOCIAL CARE,TRUECARE HAVEN SUPPORT LTD,"3,427.84",LD LTS 18-64,HOMECARE - SPOT,2103719590,1000078974
07.07.2023,ADULT SOCIAL CARE,PECULIAR CARE HOMES LTD,359,LD LTS 18-64,SUPPORTED LIVING,2103719304,1000076991
07.07.2023,ADULT SOCIAL CARE,PECULIAR CARE HOMES LTD,448.75,LD LTS 18-64,SUPPORTED LIVING,2103719297,1000076991
07.07.2023,ADULT SOCIAL CARE,PECULIAR CARE HOMES LTD,718,LD LTS 18-64,SUPPORTED LIVING,2103719292,1000076991
07.07.2023,ADULT SOCIAL CARE,PECULIAR CARE HOMES LTD,861.6,LD LTS 18-64,SUPPORTED LIVING,2103719293,1000076991
07.07.2023,ADULT SOCIAL CARE,PECULIAR CARE HOMES LTD,897.5,LD LTS 18-64,SUPPORTED LIVING,2103719298,1000076991
07.07.2023,ADULT SOCIAL CARE,PECULIAR CARE HOMES LTD,"1,077.00",LD LTS 18-64,SUPPORTED LIVING,2103719302,1000076991
07.07.2023,ADULT SOCIAL CARE,PECULIAR CARE HOMES LTD,"1,077.00",LD LTS 18-64,SUPPORTED LIVING,2103719303,1000076991
07.07.2023,ADULT SOCIAL CARE,PECULIAR CARE HOMES LTD,"1,346.25",LD LTS 18-64,SUPPORTED LIVING,2103719294,1000076991
07.07.2023,ADULT SOCIAL CARE,PECULIAR CARE HOMES LTD,"1,507.80",LD LTS 18-64,SUPPORTED LIVING,2103719296,1000076991
07.07.2023,ADULT SOCIAL CARE,PECULIAR CARE HOMES LTD,"1,884.75",LD LTS 18-64,SUPPORTED LIVING,2103719305,1000076991
07.07.2023,ADULT SOCIAL CARE,PECULIAR CARE HOMES LTD,"2,154.00",LD LTS 18-64,SUPPORTED LIVING,2103719295,1000076991
07.07.2023,ADULT SOCIAL CARE,PECULIAR CARE HOMES LTD,"2,692.50",LD LTS 18-64,SUPPORTED LIVING,2103719299,1000076991
07.07.2023,ADULT SOCIAL CARE,PHEBDAN HEALTHCARE SERVICES LIMITED,570,LD LTS 18-64,SUPPORTED LIVING,2103719588,1000087033
07.07.2023,ADULT SOCIAL CARE,SURREY DOCKS FARM PROVIDENT SOCIETY,360,LD LTS 65+,DAYCARE,2103719770,1000000958
07.07.2023,ADULT SOCIAL CARE,SAGECARE LTD,533.44,MEM LTS 65+,HOMECARE - C&V,2103719751,1000080924
07.07.2023,ADULT SOCIAL CARE,THAMES HOMECARE SERVICE LTD,738.82,MEM LTS 65+,HOMECARE - SPOT,2103719669,1000079295
07.07.2023,ADULT SOCIAL CARE,SERVESOUL LTD,416.64,MEM LTS 65+,HOMECARE - SPOT,2103719517,1000081503
07.07.2023,ADULT SOCIAL CARE,SERVESOUL LTD,416.64,MEM LTS 65+,HOMECARE - SPOT,2103719519,1000081503
07.07.2023,ADULT SOCIAL CARE,SERVESOUL LTD,416.64,MEM LTS 65+,HOMECARE - SPOT,2103719521,1000081503
07.07.2023,ADULT SOCIAL CARE,SERVESOUL LTD,416.64,MEM LTS 65+,HOMECARE - SPOT,2103719523,1000081503
07.07.2023,ADULT SOCIAL CARE,THAMES HOMECARE SERVICE LTD,871.7,MH LTS 65+,HOMECARE - C&V,2103719336,1000079295
07.07.2023,ADULT SOCIAL CARE,NPOWER LTD,990.85,ORIENT ST � RESPITE,SUBSCRIPTIONS,5902587794,1000078994
07.07.2023,ADULT SOCIAL CARE,NPOWER LTD,"1,032.83",ORIENT ST � RESPITE,SUBSCRIPTIONS,5902587795,1000078994
07.07.2023,ADULT SOCIAL CARE,NPOWER LTD,"1,055.66",ORIENT ST � RESPITE,SUBSCRIPTIONS,5902587798,1000078994
07.07.2023,ADULT SOCIAL CARE,NPOWER LTD,"1,109.76",ORIENT ST � RESPITE,SUBSCRIPTIONS,5902587797,1000078994
07.07.2023,ADULT SOCIAL CARE,BUDDI LTD,594,PHY LTS 18-64,EQUIPMENT PURCHASE & REPAIR,2103719680,1000067243
07.07.2023,ADULT SOCIAL CARE,BUDDI LTD,594,PHY LTS 18-64,EQUIPMENT PURCHASE & REPAIR,2103719682,1000067243
07.07.2023,ADULT SOCIAL CARE,LONDON CARE LTD,"1,039.50",PHY LTS 18-64,HOMECARE - C&V,2103719603,1000003398
07.07.2023,ADULT SOCIAL CARE,SUPREME CARE SERVICES LTD,704.95,PHY LTS 18-64,HOMECARE - C&V,2103719615,1000059416
07.07.2023,ADULT SOCIAL CARE,SUPREME CARE SERVICES LTD,884.64,PHY LTS 18-64,HOMECARE - C&V,2103719614,1000059416
07.07.2023,ADULT SOCIAL CARE,SUPREME CARE SERVICES LTD,921.5,PHY LTS 18-64,HOMECARE - C&V,2103719616,1000059416
07.07.2023,ADULT SOCIAL CARE,SUPREME CARE SERVICES LTD,"1,013.65",PHY LTS 18-64,HOMECARE - C&V,2103719613,1000059416
07.07.2023,ADULT SOCIAL CARE,SUPREME CARE SERVICES LTD,"1,059.73",PHY LTS 18-64,HOMECARE - C&V,2103719609,1000059416
07.07.2023,ADULT SOCIAL CARE,SUPREME CARE SERVICES LTD,"1,087.37",PHY LTS 18-64,HOMECARE - C&V,2103719617,1000059416
07.07.2023,ADULT SOCIAL CARE,THAMES HOMECARE SERVICE LTD,251.09,PHY LTS 18-64,HOMECARE - C&V,2103719319,1000079295
07.07.2023,ADULT SOCIAL CARE,THAMES HOMECARE SERVICE LTD,279.51,PHY LTS 18-64,HOMECARE - C&V,2103719309,1000079295
07.07.2023,ADULT SOCIAL CARE,THAMES HOMECARE SERVICE LTD,388.48,PHY LTS 18-64,HOMECARE - C&V,2103719334,1000079295
07.07.2023,ADULT SOCIAL CARE,THAMES HOMECARE SERVICE LTD,440.59,PHY LTS 18-64,HOMECARE - C&V,2103719362,1000079295
07.07.2023,ADULT SOCIAL CARE,SAGECARE LTD,358.91,PHY LTS 18-64,HOMECARE - C&V,2103719739,1000080924
07.07.2023,ADULT SOCIAL CARE,THAMES HOMECARE SERVICE LTD,254.27,PHY LTS 18-64,HOMECARE - SPOT,2103719663,1000079295
07.07.2023,ADULT SOCIAL CARE,THAMES HOMECARE SERVICE LTD,273.46,PHY LTS 18-64,HOMECARE - SPOT,2103719631,1000079295
07.07.2023,ADULT SOCIAL CARE,THAMES HOMECARE SERVICE LTD,388.6,PHY LTS 18-64,HOMECARE - SPOT,2103719629,1000079295
07.07.2023,ADULT SOCIAL CARE,THAMES HOMECARE SERVICE LTD,460.56,PHY LTS 18-64,HOMECARE - SPOT,2103719674,1000079295
07.07.2023,ADULT SOCIAL CARE,THAMES HOMECARE SERVICE LTD,820.37,PHY LTS 18-64,HOMECARE - SPOT,2103719634,1000079295
07.07.2023,ADULT SOCIAL CARE,SERVESOUL LTD,503.44,PHY LTS 18-64,HOMECARE - SPOT,2103719514,1000081503
07.07.2023,ADULT SOCIAL CARE,SERVESOUL LTD,503.44,PHY LTS 18-64,HOMECARE - SPOT,2103719520,1000081503
07.07.2023,ADULT SOCIAL CARE,SERVESOUL LTD,503.44,PHY LTS 18-64,HOMECARE - SPOT,2103719524,1000081503
07.07.2023,ADULT SOCIAL CARE,BUDDI LTD,360,PHY LTS 65+,EQUIPMENT PURCHASE & REPAIR,2103719681,1000067243
07.07.2023,ADULT SOCIAL CARE,LONDON CARE LTD,274.06,PHY LTS 65+,HOMECARE - C&V,2103719599,1000003398
07.07.2023,ADULT SOCIAL CARE,LONDON CARE LTD,274.06,PHY LTS 65+,HOMECARE - C&V,2103719602,1000003398
07.07.2023,ADULT SOCIAL CARE,LONDON CARE LTD,297.69,PHY LTS 65+,HOMECARE - C&V,2103719595,1000003398
07.07.2023,ADULT SOCIAL CARE,LONDON CARE LTD,366.35,PHY LTS 65+,HOMECARE - C&V,2103719594,1000003398
07.07.2023,ADULT SOCIAL CARE,LONDON CARE LTD,451.78,PHY LTS 65+,HOMECARE - C&V,2103719526,1000003398
07.07.2023,ADULT SOCIAL CARE,LONDON CARE LTD,497.88,PHY LTS 65+,HOMECARE - C&V,2103719528,1000003398
07.07.2023,ADULT SOCIAL CARE,LONDON CARE LTD,609.53,PHY LTS 65+,HOMECARE - C&V,2103719605,1000003398
07.07.2023,ADULT SOCIAL CARE,LONDON CARE LTD,751.29,PHY LTS 65+,HOMECARE - C&V,2103719606,1000003398
07.07.2023,ADULT SOCIAL CARE,LONDON CARE LTD,850.52,PHY LTS 65+,HOMECARE - C&V,2103719601,1000003398
07.07.2023,ADULT SOCIAL CARE,LONDON CARE LTD,"1,115.15",PHY LTS 65+,HOMECARE - C&V,2103719598,1000003398
07.07.2023,ADULT SOCIAL CARE,THAMES HOMECARE SERVICE LTD,251.09,PHY LTS 65+,HOMECARE - C&V,2103719325,1000079295
07.07.2023,ADULT SOCIAL CARE,THAMES HOMECARE SERVICE LTD,251.09,PHY LTS 65+,HOMECARE - C&V,2103719360,1000079295
07.07.2023,ADULT SOCIAL CARE,THAMES HOMECARE SERVICE LTD,251.09,PHY LTS 65+,HOMECARE - C&V,2103719365,1000079295
07.07.2023,ADULT SOCIAL CARE,THAMES HOMECARE SERVICE LTD,254.27,PHY LTS 65+,HOMECARE - C&V,2103719668,1000079295
07.07.2023,ADULT SOCIAL CARE,THAMES HOMECARE SERVICE LTD,255.83,PHY LTS 65+,HOMECARE - C&V,2103719316,1000079295
07.07.2023,ADULT SOCIAL CARE,THAMES HOMECARE SERVICE LTD,265.3,PHY LTS 65+,HOMECARE - C&V,2103719328,1000079295
07.07.2023,ADULT SOCIAL CARE,THAMES HOMECARE SERVICE LTD,270.04,PHY LTS 65+,HOMECARE - C&V,2103719338,1000079295
07.07.2023,ADULT SOCIAL CARE,THAMES HOMECARE SERVICE LTD,279.51,PHY LTS 65+,HOMECARE - C&V,2103719346,1000079295
07.07.2023,ADULT SOCIAL CARE,THAMES HOMECARE SERVICE LTD,298.46,PHY LTS 65+,HOMECARE - C&V,2103719349,1000079295
07.07.2023,ADULT SOCIAL CARE,THAMES HOMECARE SERVICE LTD,322.15,PHY LTS 65+,HOMECARE - C&V,2103719311,1000079295
07.07.2023,ADULT SOCIAL CARE,THAMES HOMECARE SERVICE LTD,326.89,PHY LTS 65+,HOMECARE - C&V,2103719363,1000079295
07.07.2023,ADULT SOCIAL CARE,THAMES HOMECARE SERVICE LTD,383.74,PHY LTS 65+,HOMECARE - C&V,2103719352,1000079295
07.07.2023,ADULT SOCIAL CARE,THAMES HOMECARE SERVICE LTD,596.93,PHY LTS 65+,HOMECARE - C&V,2103719317,1000079295
07.07.2023,ADULT SOCIAL CARE,THAMES HOMECARE SERVICE LTD,615.88,PHY LTS 65+,HOMECARE - C&V,2103719321,1000079295
07.07.2023,ADULT SOCIAL CARE,THAMES HOMECARE SERVICE LTD,663.25,PHY LTS 65+,HOMECARE - C&V,2103719330,1000079295
07.07.2023,ADULT SOCIAL CARE,THAMES HOMECARE SERVICE LTD,663.25,PHY LTS 65+,HOMECARE - C&V,2103719350,1000079295
07.07.2023,ADULT SOCIAL CARE,THAMES HOMECARE SERVICE LTD,729.58,PHY LTS 65+,HOMECARE - C&V,2103719326,1000079295
07.07.2023,ADULT SOCIAL CARE,THAMES HOMECARE SERVICE LTD,795.9,PHY LTS 65+,HOMECARE - C&V,2103719359,1000079295
07.07.2023,ADULT SOCIAL CARE,THAMES HOMECARE SERVICE LTD,852.75,PHY LTS 65+,HOMECARE - C&V,2103719318,1000079295
07.07.2023,ADULT SOCIAL CARE,THAMES HOMECARE SERVICE LTD,"1,591.80",PHY LTS 65+,HOMECARE - C&V,2103719313,1000079295
07.07.2023,ADULT SOCIAL CARE,SAGECARE LTD,359.1,PHY LTS 65+,HOMECARE - C&V,2103719740,1000080924
07.07.2023,ADULT SOCIAL CARE,SAGECARE LTD,378.45,PHY LTS 65+,HOMECARE - C&V,2103719736,1000080924
07.07.2023,ADULT SOCIAL CARE,SAGECARE LTD,392.03,PHY LTS 65+,HOMECARE - C&V,2103719752,1000080924
07.07.2023,ADULT SOCIAL CARE,SAGECARE LTD,536.12,PHY LTS 65+,HOMECARE - C&V,2103719742,1000080924
07.07.2023,ADULT SOCIAL CARE,SAGECARE LTD,"1,446.00",PHY LTS 65+,HOMECARE - C&V,2103719747,1000080924
07.07.2023,ADULT SOCIAL CARE,SAGECARE LTD,"1,754.67",PHY LTS 65+,HOMECARE - C&V,2103719741,1000080924
07.07.2023,ADULT SOCIAL CARE,THAMES HOMECARE SERVICE LTD,251.09,PHY LTS 65+,HOMECARE - SPOT,2103719342,1000079295
07.07.2023,ADULT SOCIAL CARE,THAMES HOMECARE SERVICE LTD,254.27,PHY LTS 65+,HOMECARE - SPOT,2103719655,1000079295
07.07.2023,ADULT SOCIAL CARE,THAMES HOMECARE SERVICE LTD,254.27,PHY LTS 65+,HOMECARE - SPOT,2103719676,1000079295
07.07.2023,ADULT SOCIAL CARE,THAMES HOMECARE SERVICE LTD,268.66,PHY LTS 65+,HOMECARE - SPOT,2103719677,1000079295
07.07.2023,ADULT SOCIAL CARE,THAMES HOMECARE SERVICE LTD,302.24,PHY LTS 65+,HOMECARE - SPOT,2103719670,1000079295
07.07.2023,ADULT SOCIAL CARE,THAMES HOMECARE SERVICE LTD,321.43,PHY LTS 65+,HOMECARE - SPOT,2103719628,1000079295
07.07.2023,ADULT SOCIAL CARE,THAMES HOMECARE SERVICE LTD,369.41,PHY LTS 65+,HOMECARE - SPOT,2103719658,1000079295
07.07.2023,ADULT SOCIAL CARE,THAMES HOMECARE SERVICE LTD,412.59,PHY LTS 65+,HOMECARE - SPOT,2103719649,1000079295
07.07.2023,ADULT SOCIAL CARE,THAMES HOMECARE SERVICE LTD,465.36,PHY LTS 65+,HOMECARE - SPOT,2103719625,1000079295
07.07.2023,ADULT SOCIAL CARE,THAMES HOMECARE SERVICE LTD,470.16,PHY LTS 65+,HOMECARE - SPOT,2103719646,1000079295
07.07.2023,ADULT SOCIAL CARE,THAMES HOMECARE SERVICE LTD,537.32,PHY LTS 65+,HOMECARE - SPOT,2103719671,1000079295
07.07.2023,ADULT SOCIAL CARE,THAMES HOMECARE SERVICE LTD,570.9,PHY LTS 65+,HOMECARE - SPOT,2103719665,1000079295
07.07.2023,ADULT SOCIAL CARE,THAMES HOMECARE SERVICE LTD,604.49,PHY LTS 65+,HOMECARE - SPOT,2103719642,1000079295
07.07.2023,ADULT SOCIAL CARE,THAMES HOMECARE SERVICE LTD,604.49,PHY LTS 65+,HOMECARE - SPOT,2103719654,1000079295
07.07.2023,ADULT SOCIAL CARE,THAMES HOMECARE SERVICE LTD,604.49,PHY LTS 65+,HOMECARE - SPOT,2103719656,1000079295
07.07.2023,ADULT SOCIAL CARE,THAMES HOMECARE SERVICE LTD,604.49,PHY LTS 65+,HOMECARE - SPOT,2103719672,1000079295
07.07.2023,ADULT SOCIAL CARE,THAMES HOMECARE SERVICE LTD,604.49,PHY LTS 65+,HOMECARE - SPOT,2103719679,1000079295
07.07.2023,ADULT SOCIAL CARE,THAMES HOMECARE SERVICE LTD,676.45,PHY LTS 65+,HOMECARE - SPOT,2103719660,1000079295
07.07.2023,ADULT SOCIAL CARE,THAMES HOMECARE SERVICE LTD,686.04,PHY LTS 65+,HOMECARE - SPOT,2103719652,1000079295
07.07.2023,ADULT SOCIAL CARE,THAMES HOMECARE SERVICE LTD,700.44,PHY LTS 65+,HOMECARE - SPOT,2103719627,1000079295
07.07.2023,ADULT SOCIAL CARE,THAMES HOMECARE SERVICE LTD,738.82,PHY LTS 65+,HOMECARE - SPOT,2103719624,1000079295
07.07.2023,ADULT SOCIAL CARE,THAMES HOMECARE SERVICE LTD,738.82,PHY LTS 65+,HOMECARE - SPOT,2103719630,1000079295
07.07.2023,ADULT SOCIAL CARE,THAMES HOMECARE SERVICE LTD,911.53,PHY LTS 65+,HOMECARE - SPOT,2103719639,1000079295
07.07.2023,ADULT SOCIAL CARE,THAMES HOMECARE SERVICE LTD,"1,007.48",PHY LTS 65+,HOMECARE - SPOT,2103719621,1000079295
07.07.2023,ADULT SOCIAL CARE,LONDON CARE LTD,264.6,PHY STS 65+,HOMECARE - IC,2103719604,1000003398
07.07.2023,ADULT SOCIAL CARE,THAMES HOMECARE SERVICE LTD,671.65,PHY STS 65+,HOMECARE - IC,2103719662,1000079295
07.07.2023,ADULT SOCIAL CARE,SURREY DOCKS FARM PROVIDENT SOCIETY,500,SOCIAL ISOLATION,DAYCARE,2103719765,1000000958
07.07.2023,ADULT SOCIAL CARE,SUPREME CARE SERVICES LTD,288,SPECIALIST CARE,SECTION 17 PAYMENTS TO AGENCIES/CARERS,2103719707,1000059416
07.07.2023,ADULT SOCIAL CARE,SUPREME CARE SERVICES LTD,288,SPECIALIST CARE,SECTION 17 PAYMENTS TO AGENCIES/CARERS,2103719708,1000059416
07.07.2023,ADULT SOCIAL CARE,SUPREME CARE SERVICES LTD,288,SPECIALIST CARE,SECTION 17 PAYMENTS TO AGENCIES/CARERS,2103719711,1000059416
07.07.2023,ADULT SOCIAL CARE,SUPREME CARE SERVICES LTD,288,SPECIALIST CARE,SECTION 17 PAYMENTS TO AGENCIES/CARERS,2103719712,1000059416
07.07.2023,ADULT SOCIAL CARE,SUPREME CARE SERVICES LTD,288,SPECIALIST CARE,SECTION 17 PAYMENTS TO AGENCIES/CARERS,2103719715,1000059416
07.07.2023,ADULT SOCIAL CARE,SUPREME CARE SERVICES LTD,288,SPECIALIST CARE,SECTION 17 PAYMENTS TO AGENCIES/CARERS,2103719721,1000059416
07.07.2023,ADULT SOCIAL CARE,SUPREME CARE SERVICES LTD,288,SPECIALIST CARE,SECTION 17 PAYMENTS TO AGENCIES/CARERS,2103719722,1000059416
07.07.2023,ADULT SOCIAL CARE,SUPREME CARE SERVICES LTD,288,SPECIALIST CARE,SECTION 17 PAYMENTS TO AGENCIES/CARERS,2103719723,1000059416
07.07.2023,ADULT SOCIAL CARE,SUPREME CARE SERVICES LTD,288,SPECIALIST CARE,SECTION 17 PAYMENTS TO AGENCIES/CARERS,2103719727,1000059416
07.07.2023,ADULT SOCIAL CARE,SUPREME CARE SERVICES LTD,288,SPECIALIST CARE,SECTION 17 PAYMENTS TO AGENCIES/CARERS,2103719729,1000059416
07.07.2023,ADULT SOCIAL CARE,SUPREME CARE SERVICES LTD,288,SPECIALIST CARE,SECTION 17 PAYMENTS TO AGENCIES/CARERS,2103719730,1000059416
07.07.2023,ADULT SOCIAL CARE,SUPREME CARE SERVICES LTD,288,SPECIALIST CARE,SECTION 17 PAYMENTS TO AGENCIES/CARERS,2103719731,1000059416
07.07.2023,ADULT SOCIAL CARE,SUPREME CARE SERVICES LTD,288,SPECIALIST CARE,SECTION 17 PAYMENTS TO AGENCIES/CARERS,2103719733,1000059416
07.07.2023,ADULT SOCIAL CARE,SUPREME CARE SERVICES LTD,324,SPECIALIST CARE,SECTION 17 PAYMENTS TO AGENCIES/CARERS,2103719706,1000059416
07.07.2023,ADULT SOCIAL CARE,SUPREME CARE SERVICES LTD,360,SPECIALIST CARE,SECTION 17 PAYMENTS TO AGENCIES/CARERS,2103719724,1000059416
07.07.2023,ADULT SOCIAL CARE,SUPREME CARE SERVICES LTD,360,SPECIALIST CARE,SECTION 17 PAYMENTS TO AGENCIES/CARERS,2103719726,1000059416
07.07.2023,ADULT SOCIAL CARE,SUPREME CARE SERVICES LTD,432,SPECIALIST CARE,SECTION 17 PAYMENTS TO AGENCIES/CARERS,2103719709,1000059416
07.07.2023,ADULT SOCIAL CARE,SUPREME CARE SERVICES LTD,432,SPECIALIST CARE,SECTION 17 PAYMENTS TO AGENCIES/CARERS,2103719720,1000059416
